{"text_format":"1","workbook":"xlsx","n_sheets":5,"sheets":["London","Rio","Sheet1","TOP 50 Ranking Shift","OVERALL"],"not_rendered":{"charts":2,"images":19,"macros":1,"external_links":0,"defined_names":12,"comments":0,"pivot_tables":3},"unopened":[],"bounds":{"document_bytes":16777216,"sheet_cells":100000,"rows_first":2000,"rows_last":500,"rows_between":2000,"halvings":0,"cell_chars":16384,"cell_head_chars":4096},"cells_cut":0,"cells_raw":0,"read":"whole","date_system":"1900"}

{"sheet":"London","index":0,"n_rows":94,"n_cols":16,"rows_kept":94,"cut":false,"hidden":false,"merged":[]}
["First Row",{"$f":"ROW(London[#Headers])","v":9}]
["Scrolling Link",0]
["Countries",{"$f":"COUNTA(London[Country])","v":85}]
["No of Golds",{"$f":"SUM(London[Gold])","v":301}]
["No of Silver",{"$f":"SUM(London[Silver])","v":302}]
["No of Bronze",{"$f":"SUM(London[Bronze])","v":354}]
["No of Overall",{"$f":"SUM(London[Overall])","v":957}]
[null,null,null,null,null,null,null,null,null,null,{"$f":"SMALL(IF(NOT($J9=London[[#Headers],[Gold]:[Overall]]),COLUMN(London[[#Headers],[Gold]:[Overall]])),COLUMNS($K8:K8))","v":2},{"$f":"SMALL(IF(NOT($J9=London[[#Headers],[Gold]:[Overall]]),COLUMN(London[[#Headers],[Gold]:[Overall]])),COLUMNS($K8:L8))","v":3},{"$f":"SMALL(IF(NOT($J9=London[[#Headers],[Gold]:[Overall]]),COLUMN(London[[#Headers],[Gold]:[Overall]])),COLUMNS($K8:M8))","v":4},null,"Sorting Order","Medal"]
["Country","Gold","Silver","Bronze","Overall",null,null,null,"Countries",{"$f":"London.medal","v":"Overall"},{"$f":"INDEX(London[#Headers],K8)","v":"Gold"},{"$f":"INDEX(London[#Headers],L8)","v":"Silver"},{"$f":"INDEX(London[#Headers],M8)","v":"Bronze"},null,null,"Overall"]
["United States",46,28,29,103,null,null,null,{"$f":"INDEX(London[Country],LARGE(IF(J10=OFFSET(London[[#Headers],[Country]],1,MATCH($P$9,London[#Headers],0)-1,COUNT(London[Gold])),ROW(OFFSET(London[[#Headers],[Country]],1,MATCH($P$9,London[#Headers],0)-1,COUNT(London[Gold])))-london.startrow,0),COUNTIF($J$10:J10,J10)))","v":"United States"},{"$f":"LARGE(OFFSET(London[[#Headers],[Country]],1,MATCH($P$9,London[#Headers],0)-1,COUNT(London[Gold])),ROW(I10)-london.startrow)","v":103},{"$f":"VLOOKUP($I10,London[],K$8,0)","v":46},{"$f":"VLOOKUP($I10,London[],L$8,0)","v":28},{"$f":"VLOOKUP($I10,London[],M$8,0)","v":29}]
["China",38,29,21,88,null,null,null,{"$f":"INDEX(London[Country],LARGE(IF(J11=OFFSET(London[[#Headers],[Country]],1,MATCH($P$9,London[#Headers],0)-1,COUNT(London[Gold])),ROW(OFFSET(London[[#Headers],[Country]],1,MATCH($P$9,London[#Headers],0)-1,COUNT(London[Gold])))-london.startrow,0),COUNTIF($J$10:J11,J11)))","v":"China"},{"$f":"LARGE(OFFSET(London[[#Headers],[Country]],1,MATCH($P$9,London[#Headers],0)-1,COUNT(London[Gold])),ROW(I11)-london.startrow)","v":88},{"$f":"VLOOKUP($I11,London[],K$8,0)","v":38},{"$f":"VLOOKUP($I11,London[],L$8,0)","v":29},{"$f":"VLOOKUP($I11,London[],M$8,0)","v":21}]
["Great Britain",29,17,19,65,null,null,null,{"$f":"INDEX(London[Country],LARGE(IF(J12=OFFSET(London[[#Headers],[Country]],1,MATCH($P$9,London[#Headers],0)-1,COUNT(London[Gold])),ROW(OFFSET(London[[#Headers],[Country]],1,MATCH($P$9,London[#Headers],0)-1,COUNT(London[Gold])))-london.startrow,0),COUNTIF($J$10:J12,J12)))","v":"Russia"},{"$f":"LARGE(OFFSET(London[[#Headers],[Country]],1,MATCH($P$9,London[#Headers],0)-1,COUNT(London[Gold])),ROW(I12)-london.startrow)","v":77},{"$f":"VLOOKUP($I12,London[],K$8,0)","v":22},{"$f":"VLOOKUP($I12,London[],L$8,0)","v":23},{"$f":"VLOOKUP($I12,London[],M$8,0)","v":32}]
["Russia",22,23,32,77,null,null,null,{"$f":"INDEX(London[Country],LARGE(IF(J13=OFFSET(London[[#Headers],[Country]],1,MATCH($P$9,London[#Headers],0)-1,COUNT(London[Gold])),ROW(OFFSET(London[[#Headers],[Country]],1,MATCH($P$9,London[#Headers],0)-1,COUNT(London[Gold])))-london.startrow,0),COUNTIF($J$10:J13,J13)))","v":"Great Britain"},{"$f":"LARGE(OFFSET(London[[#Headers],[Country]],1,MATCH($P$9,London[#Headers],0)-1,COUNT(London[Gold])),ROW(I13)-london.startrow)","v":65},{"$f":"VLOOKUP($I13,London[],K$8,0)","v":29},{"$f":"VLOOKUP($I13,London[],L$8,0)","v":17},{"$f":"VLOOKUP($I13,London[],M$8,0)","v":19}]
["South Korea",13,8,7,28,null,null,null,{"$f":"INDEX(London[Country],LARGE(IF(J14=OFFSET(London[[#Headers],[Country]],1,MATCH($P$9,London[#Headers],0)-1,COUNT(London[Gold])),ROW(OFFSET(London[[#Headers],[Country]],1,MATCH($P$9,London[#Headers],0)-1,COUNT(London[Gold])))-london.startrow,0),COUNTIF($J$10:J14,J14)))","v":"Germany"},{"$f":"LARGE(OFFSET(London[[#Headers],[Country]],1,MATCH($P$9,London[#Headers],0)-1,COUNT(London[Gold])),ROW(I14)-london.startrow)","v":44},{"$f":"VLOOKUP($I14,London[],K$8,0)","v":11},{"$f":"VLOOKUP($I14,London[],L$8,0)","v":19},{"$f":"VLOOKUP($I14,London[],M$8,0)","v":14}]
["Germany",11,19,14,44,null,null,null,{"$f":"INDEX(London[Country],LARGE(IF(J15=OFFSET(London[[#Headers],[Country]],1,MATCH($P$9,London[#Headers],0)-1,COUNT(London[Gold])),ROW(OFFSET(London[[#Headers],[Country]],1,MATCH($P$9,London[#Headers],0)-1,COUNT(London[Gold])))-london.startrow,0),COUNTIF($J$10:J15,J15)))","v":"Japan"},{"$f":"LARGE(OFFSET(London[[#Headers],[Country]],1,MATCH($P$9,London[#Headers],0)-1,COUNT(London[Gold])),ROW(I15)-london.startrow)","v":38},{"$f":"VLOOKUP($I15,London[],K$8,0)","v":7},{"$f":"VLOOKUP($I15,London[],L$8,0)","v":14},{"$f":"VLOOKUP($I15,London[],M$8,0)","v":17}]
["France",11,11,12,34,null,null,null,{"$f":"INDEX(London[Country],LARGE(IF(J16=OFFSET(London[[#Headers],[Country]],1,MATCH($P$9,London[#Headers],0)-1,COUNT(London[Gold])),ROW(OFFSET(London[[#Headers],[Country]],1,MATCH($P$9,London[#Headers],0)-1,COUNT(London[Gold])))-london.startrow,0),COUNTIF($J$10:J16,J16)))","v":"Australia"},{"$f":"LARGE(OFFSET(London[[#Headers],[Country]],1,MATCH($P$9,London[#Headers],0)-1,COUNT(London[Gold])),ROW(I16)-london.startrow)","v":35},{"$f":"VLOOKUP($I16,London[],K$8,0)","v":8},{"$f":"VLOOKUP($I16,London[],L$8,0)","v":15},{"$f":"VLOOKUP($I16,London[],M$8,0)","v":12}]
["Australia",8,15,12,35,null,null,null,{"$f":"INDEX(London[Country],LARGE(IF(J17=OFFSET(London[[#Headers],[Country]],1,MATCH($P$9,London[#Headers],0)-1,COUNT(London[Gold])),ROW(OFFSET(London[[#Headers],[Country]],1,MATCH($P$9,London[#Headers],0)-1,COUNT(London[Gold])))-london.startrow,0),COUNTIF($J$10:J17,J17)))","v":"France"},{"$f":"LARGE(OFFSET(London[[#Headers],[Country]],1,MATCH($P$9,London[#Headers],0)-1,COUNT(London[Gold])),ROW(I17)-london.startrow)","v":34},{"$f":"VLOOKUP($I17,London[],K$8,0)","v":11},{"$f":"VLOOKUP($I17,London[],L$8,0)","v":11},{"$f":"VLOOKUP($I17,London[],M$8,0)","v":12}]
["Italy",8,9,11,28,null,null,null,{"$f":"INDEX(London[Country],LARGE(IF(J18=OFFSET(London[[#Headers],[Country]],1,MATCH($P$9,London[#Headers],0)-1,COUNT(London[Gold])),ROW(OFFSET(London[[#Headers],[Country]],1,MATCH($P$9,London[#Headers],0)-1,COUNT(London[Gold])))-london.startrow,0),COUNTIF($J$10:J18,J18)))","v":"Italy"},{"$f":"LARGE(OFFSET(London[[#Headers],[Country]],1,MATCH($P$9,London[#Headers],0)-1,COUNT(London[Gold])),ROW(I18)-london.startrow)","v":28},{"$f":"VLOOKUP($I18,London[],K$8,0)","v":8},{"$f":"VLOOKUP($I18,London[],L$8,0)","v":9},{"$f":"VLOOKUP($I18,London[],M$8,0)","v":11}]
["Hungary",8,4,6,18,null,null,null,{"$f":"INDEX(London[Country],LARGE(IF(J19=OFFSET(London[[#Headers],[Country]],1,MATCH($P$9,London[#Headers],0)-1,COUNT(London[Gold])),ROW(OFFSET(London[[#Headers],[Country]],1,MATCH($P$9,London[#Headers],0)-1,COUNT(London[Gold])))-london.startrow,0),COUNTIF($J$10:J19,J19)))","v":"South Korea"},{"$f":"LARGE(OFFSET(London[[#Headers],[Country]],1,MATCH($P$9,London[#Headers],0)-1,COUNT(London[Gold])),ROW(I19)-london.startrow)","v":28},{"$f":"VLOOKUP($I19,London[],K$8,0)","v":13},{"$f":"VLOOKUP($I19,London[],L$8,0)","v":8},{"$f":"VLOOKUP($I19,London[],M$8,0)","v":7}]
["Japan",7,14,17,38,null,null,null,{"$f":"INDEX(London[Country],LARGE(IF(J20=OFFSET(London[[#Headers],[Country]],1,MATCH($P$9,London[#Headers],0)-1,COUNT(London[Gold])),ROW(OFFSET(London[[#Headers],[Country]],1,MATCH($P$9,London[#Headers],0)-1,COUNT(London[Gold])))-london.startrow,0),COUNTIF($J$10:J20,J20)))","v":"Netherlands"},{"$f":"LARGE(OFFSET(London[[#Headers],[Country]],1,MATCH($P$9,London[#Headers],0)-1,COUNT(London[Gold])),ROW(I20)-london.startrow)","v":20},{"$f":"VLOOKUP($I20,London[],K$8,0)","v":6},{"$f":"VLOOKUP($I20,London[],L$8,0)","v":6},{"$f":"VLOOKUP($I20,London[],M$8,0)","v":8}]
["Kazakhstan",7,1,5,13,null,null,null,{"$f":"INDEX(London[Country],LARGE(IF(J21=OFFSET(London[[#Headers],[Country]],1,MATCH($P$9,London[#Headers],0)-1,COUNT(London[Gold])),ROW(OFFSET(London[[#Headers],[Country]],1,MATCH($P$9,London[#Headers],0)-1,COUNT(London[Gold])))-london.startrow,0),COUNTIF($J$10:J21,J21)))","v":"Canada"},{"$f":"LARGE(OFFSET(London[[#Headers],[Country]],1,MATCH($P$9,London[#Headers],0)-1,COUNT(London[Gold])),ROW(I21)-london.startrow)","v":18},{"$f":"VLOOKUP($I21,London[],K$8,0)","v":1},{"$f":"VLOOKUP($I21,London[],L$8,0)","v":5},{"$f":"VLOOKUP($I21,London[],M$8,0)","v":12}]
["Netherlands",6,6,8,20,null,null,null,{"$f":"INDEX(London[Country],LARGE(IF(J22=OFFSET(London[[#Headers],[Country]],1,MATCH($P$9,London[#Headers],0)-1,COUNT(London[Gold])),ROW(OFFSET(London[[#Headers],[Country]],1,MATCH($P$9,London[#Headers],0)-1,COUNT(London[Gold])))-london.startrow,0),COUNTIF($J$10:J22,J22)))","v":"Ukraine"},{"$f":"LARGE(OFFSET(London[[#Headers],[Country]],1,MATCH($P$9,London[#Headers],0)-1,COUNT(London[Gold])),ROW(I22)-london.startrow)","v":18},{"$f":"VLOOKUP($I22,London[],K$8,0)","v":6},{"$f":"VLOOKUP($I22,London[],L$8,0)","v":4},{"$f":"VLOOKUP($I22,London[],M$8,0)","v":8}]
["Ukraine",6,4,8,18,null,null,null,{"$f":"INDEX(London[Country],LARGE(IF(J23=OFFSET(London[[#Headers],[Country]],1,MATCH($P$9,London[#Headers],0)-1,COUNT(London[Gold])),ROW(OFFSET(London[[#Headers],[Country]],1,MATCH($P$9,London[#Headers],0)-1,COUNT(London[Gold])))-london.startrow,0),COUNTIF($J$10:J23,J23)))","v":"Hungary"},{"$f":"LARGE(OFFSET(London[[#Headers],[Country]],1,MATCH($P$9,London[#Headers],0)-1,COUNT(London[Gold])),ROW(I23)-london.startrow)","v":18},{"$f":"VLOOKUP($I23,London[],K$8,0)","v":8},{"$f":"VLOOKUP($I23,London[],L$8,0)","v":4},{"$f":"VLOOKUP($I23,London[],M$8,0)","v":6}]
["New Zealand",6,2,5,13,null,null,null,{"$f":"INDEX(London[Country],LARGE(IF(J24=OFFSET(London[[#Headers],[Country]],1,MATCH($P$9,London[#Headers],0)-1,COUNT(London[Gold])),ROW(OFFSET(London[[#Headers],[Country]],1,MATCH($P$9,London[#Headers],0)-1,COUNT(London[Gold])))-london.startrow,0),COUNTIF($J$10:J24,J24)))","v":"Brazil"},{"$f":"LARGE(OFFSET(London[[#Headers],[Country]],1,MATCH($P$9,London[#Headers],0)-1,COUNT(London[Gold])),ROW(I24)-london.startrow)","v":17},{"$f":"VLOOKUP($I24,London[],K$8,0)","v":3},{"$f":"VLOOKUP($I24,London[],L$8,0)","v":5},{"$f":"VLOOKUP($I24,London[],M$8,0)","v":9}]
["Cuba",5,3,7,15,null,null,null,{"$f":"INDEX(London[Country],LARGE(IF(J25=OFFSET(London[[#Headers],[Country]],1,MATCH($P$9,London[#Headers],0)-1,COUNT(London[Gold])),ROW(OFFSET(London[[#Headers],[Country]],1,MATCH($P$9,London[#Headers],0)-1,COUNT(London[Gold])))-london.startrow,0),COUNTIF($J$10:J25,J25)))","v":"Spain"},{"$f":"LARGE(OFFSET(London[[#Headers],[Country]],1,MATCH($P$9,London[#Headers],0)-1,COUNT(London[Gold])),ROW(I25)-london.startrow)","v":17},{"$f":"VLOOKUP($I25,London[],K$8,0)","v":3},{"$f":"VLOOKUP($I25,London[],L$8,0)","v":10},{"$f":"VLOOKUP($I25,London[],M$8,0)","v":4}]
["Iran",4,6,2,12,null,null,null,{"$f":"INDEX(London[Country],LARGE(IF(J26=OFFSET(London[[#Headers],[Country]],1,MATCH($P$9,London[#Headers],0)-1,COUNT(London[Gold])),ROW(OFFSET(London[[#Headers],[Country]],1,MATCH($P$9,London[#Headers],0)-1,COUNT(London[Gold])))-london.startrow,0),COUNTIF($J$10:J26,J26)))","v":"Cuba"},{"$f":"LARGE(OFFSET(London[[#Headers],[Country]],1,MATCH($P$9,London[#Headers],0)-1,COUNT(London[Gold])),ROW(I26)-london.startrow)","v":15},{"$f":"VLOOKUP($I26,London[],K$8,0)","v":5},{"$f":"VLOOKUP($I26,London[],L$8,0)","v":3},{"$f":"VLOOKUP($I26,London[],M$8,0)","v":7}]
["Jamaica",4,4,4,12,null,null,null,{"$f":"INDEX(London[Country],LARGE(IF(J27=OFFSET(London[[#Headers],[Country]],1,MATCH($P$9,London[#Headers],0)-1,COUNT(London[Gold])),ROW(OFFSET(London[[#Headers],[Country]],1,MATCH($P$9,London[#Headers],0)-1,COUNT(London[Gold])))-london.startrow,0),COUNTIF($J$10:J27,J27)))","v":"New Zealand"},{"$f":"LARGE(OFFSET(London[[#Headers],[Country]],1,MATCH($P$9,London[#Headers],0)-1,COUNT(London[Gold])),ROW(I27)-london.startrow)","v":13},{"$f":"VLOOKUP($I27,London[],K$8,0)","v":6},{"$f":"VLOOKUP($I27,London[],L$8,0)","v":2},{"$f":"VLOOKUP($I27,London[],M$8,0)","v":5}]
["Czech Republic",4,3,3,10,null,null,null,{"$f":"INDEX(London[Country],LARGE(IF(J28=OFFSET(London[[#Headers],[Country]],1,MATCH($P$9,London[#Headers],0)-1,COUNT(London[Gold])),ROW(OFFSET(London[[#Headers],[Country]],1,MATCH($P$9,London[#Headers],0)-1,COUNT(London[Gold])))-london.startrow,0),COUNTIF($J$10:J28,J28)))","v":"Kazakhstan"},{"$f":"LARGE(OFFSET(London[[#Headers],[Country]],1,MATCH($P$9,London[#Headers],0)-1,COUNT(London[Gold])),ROW(I28)-london.startrow)","v":13},{"$f":"VLOOKUP($I28,London[],K$8,0)","v":7},{"$f":"VLOOKUP($I28,London[],L$8,0)","v":1},{"$f":"VLOOKUP($I28,London[],M$8,0)","v":5}]
["North Korea",4,0,2,6,null,null,null,{"$f":"INDEX(London[Country],LARGE(IF(J29=OFFSET(London[[#Headers],[Country]],1,MATCH($P$9,London[#Headers],0)-1,COUNT(London[Gold])),ROW(OFFSET(London[[#Headers],[Country]],1,MATCH($P$9,London[#Headers],0)-1,COUNT(London[Gold])))-london.startrow,0),COUNTIF($J$10:J29,J29)))","v":"Kenya"},{"$f":"LARGE(OFFSET(London[[#Headers],[Country]],1,MATCH($P$9,London[#Headers],0)-1,COUNT(London[Gold])),ROW(I29)-london.startrow)","v":12},{"$f":"VLOOKUP($I29,London[],K$8,0)","v":2},{"$f":"VLOOKUP($I29,London[],L$8,0)","v":4},{"$f":"VLOOKUP($I29,London[],M$8,0)","v":6}]
["Spain",3,10,4,17,null,null,null,{"$f":"INDEX(London[Country],LARGE(IF(J30=OFFSET(London[[#Headers],[Country]],1,MATCH($P$9,London[#Headers],0)-1,COUNT(London[Gold])),ROW(OFFSET(London[[#Headers],[Country]],1,MATCH($P$9,London[#Headers],0)-1,COUNT(London[Gold])))-london.startrow,0),COUNTIF($J$10:J30,J30)))","v":"Belarus"},{"$f":"LARGE(OFFSET(London[[#Headers],[Country]],1,MATCH($P$9,London[#Headers],0)-1,COUNT(London[Gold])),ROW(I30)-london.startrow)","v":12},{"$f":"VLOOKUP($I30,London[],K$8,0)","v":2},{"$f":"VLOOKUP($I30,London[],L$8,0)","v":5},{"$f":"VLOOKUP($I30,London[],M$8,0)","v":5}]
["Brazil",3,5,9,17,null,null,null,{"$f":"INDEX(London[Country],LARGE(IF(J31=OFFSET(London[[#Headers],[Country]],1,MATCH($P$9,London[#Headers],0)-1,COUNT(London[Gold])),ROW(OFFSET(London[[#Headers],[Country]],1,MATCH($P$9,London[#Headers],0)-1,COUNT(London[Gold])))-london.startrow,0),COUNTIF($J$10:J31,J31)))","v":"Jamaica"},{"$f":"LARGE(OFFSET(London[[#Headers],[Country]],1,MATCH($P$9,London[#Headers],0)-1,COUNT(London[Gold])),ROW(I31)-london.startrow)","v":12},{"$f":"VLOOKUP($I31,London[],K$8,0)","v":4},{"$f":"VLOOKUP($I31,London[],L$8,0)","v":4},{"$f":"VLOOKUP($I31,London[],M$8,0)","v":4}]
["Ethiopia",3,2,2,7,null,null,null,{"$f":"INDEX(London[Country],LARGE(IF(J32=OFFSET(London[[#Headers],[Country]],1,MATCH($P$9,London[#Headers],0)-1,COUNT(London[Gold])),ROW(OFFSET(London[[#Headers],[Country]],1,MATCH($P$9,London[#Headers],0)-1,COUNT(London[Gold])))-london.startrow,0),COUNTIF($J$10:J32,J32)))","v":"Iran"},{"$f":"LARGE(OFFSET(London[[#Headers],[Country]],1,MATCH($P$9,London[#Headers],0)-1,COUNT(London[Gold])),ROW(I32)-london.startrow)","v":12},{"$f":"VLOOKUP($I32,London[],K$8,0)","v":4},{"$f":"VLOOKUP($I32,London[],L$8,0)","v":6},{"$f":"VLOOKUP($I32,London[],M$8,0)","v":2}]
["South Africa",3,2,1,6,null,null,null,{"$f":"INDEX(London[Country],LARGE(IF(J33=OFFSET(London[[#Headers],[Country]],1,MATCH($P$9,London[#Headers],0)-1,COUNT(London[Gold])),ROW(OFFSET(London[[#Headers],[Country]],1,MATCH($P$9,London[#Headers],0)-1,COUNT(London[Gold])))-london.startrow,0),COUNTIF($J$10:J33,J33)))","v":"Poland"},{"$f":"LARGE(OFFSET(London[[#Headers],[Country]],1,MATCH($P$9,London[#Headers],0)-1,COUNT(London[Gold])),ROW(I33)-london.startrow)","v":10},{"$f":"VLOOKUP($I33,London[],K$8,0)","v":2},{"$f":"VLOOKUP($I33,London[],L$8,0)","v":2},{"$f":"VLOOKUP($I33,London[],M$8,0)","v":6}]
["Croatia",3,1,2,6,null,null,null,{"$f":"INDEX(London[Country],LARGE(IF(J34=OFFSET(London[[#Headers],[Country]],1,MATCH($P$9,London[#Headers],0)-1,COUNT(London[Gold])),ROW(OFFSET(London[[#Headers],[Country]],1,MATCH($P$9,London[#Headers],0)-1,COUNT(London[Gold])))-london.startrow,0),COUNTIF($J$10:J34,J34)))","v":"Azerbaijan"},{"$f":"LARGE(OFFSET(London[[#Headers],[Country]],1,MATCH($P$9,London[#Headers],0)-1,COUNT(London[Gold])),ROW(I34)-london.startrow)","v":10},{"$f":"VLOOKUP($I34,London[],K$8,0)","v":2},{"$f":"VLOOKUP($I34,London[],L$8,0)","v":2},{"$f":"VLOOKUP($I34,London[],M$8,0)","v":6}]
["Belarus",2,5,5,12,null,null,null,{"$f":"INDEX(London[Country],LARGE(IF(J35=OFFSET(London[[#Headers],[Country]],1,MATCH($P$9,London[#Headers],0)-1,COUNT(London[Gold])),ROW(OFFSET(London[[#Headers],[Country]],1,MATCH($P$9,London[#Headers],0)-1,COUNT(London[Gold])))-london.startrow,0),COUNTIF($J$10:J35,J35)))","v":"Czech Republic"},{"$f":"LARGE(OFFSET(London[[#Headers],[Country]],1,MATCH($P$9,London[#Headers],0)-1,COUNT(London[Gold])),ROW(I35)-london.startrow)","v":10},{"$f":"VLOOKUP($I35,London[],K$8,0)","v":4},{"$f":"VLOOKUP($I35,London[],L$8,0)","v":3},{"$f":"VLOOKUP($I35,London[],M$8,0)","v":3}]
["Romania",2,5,2,9,null,null,null,{"$f":"INDEX(London[Country],LARGE(IF(J36=OFFSET(London[[#Headers],[Country]],1,MATCH($P$9,London[#Headers],0)-1,COUNT(London[Gold])),ROW(OFFSET(London[[#Headers],[Country]],1,MATCH($P$9,London[#Headers],0)-1,COUNT(London[Gold])))-london.startrow,0),COUNTIF($J$10:J36,J36)))","v":"Denmark"},{"$f":"LARGE(OFFSET(London[[#Headers],[Country]],1,MATCH($P$9,London[#Headers],0)-1,COUNT(London[Gold])),ROW(I36)-london.startrow)","v":9},{"$f":"VLOOKUP($I36,London[],K$8,0)","v":2},{"$f":"VLOOKUP($I36,London[],L$8,0)","v":4},{"$f":"VLOOKUP($I36,London[],M$8,0)","v":3}]
["Kenya",2,4,6,12,null,null,null,{"$f":"INDEX(London[Country],LARGE(IF(J37=OFFSET(London[[#Headers],[Country]],1,MATCH($P$9,London[#Headers],0)-1,COUNT(London[Gold])),ROW(OFFSET(London[[#Headers],[Country]],1,MATCH($P$9,London[#Headers],0)-1,COUNT(London[Gold])))-london.startrow,0),COUNTIF($J$10:J37,J37)))","v":"Romania"},{"$f":"LARGE(OFFSET(London[[#Headers],[Country]],1,MATCH($P$9,London[#Headers],0)-1,COUNT(London[Gold])),ROW(I37)-london.startrow)","v":9},{"$f":"VLOOKUP($I37,London[],K$8,0)","v":2},{"$f":"VLOOKUP($I37,London[],L$8,0)","v":5},{"$f":"VLOOKUP($I37,London[],M$8,0)","v":2}]
["Denmark",2,4,3,9,null,null,null,{"$f":"INDEX(London[Country],LARGE(IF(J38=OFFSET(London[[#Headers],[Country]],1,MATCH($P$9,London[#Headers],0)-1,COUNT(London[Gold])),ROW(OFFSET(London[[#Headers],[Country]],1,MATCH($P$9,London[#Headers],0)-1,COUNT(London[Gold])))-london.startrow,0),COUNTIF($J$10:J38,J38)))","v":"Colombia"},{"$f":"LARGE(OFFSET(London[[#Headers],[Country]],1,MATCH($P$9,London[#Headers],0)-1,COUNT(London[Gold])),ROW(I38)-london.startrow)","v":8},{"$f":"VLOOKUP($I38,London[],K$8,0)","v":1},{"$f":"VLOOKUP($I38,London[],L$8,0)","v":3},{"$f":"VLOOKUP($I38,London[],M$8,0)","v":4}]
["Azerbaijan",2,2,6,10,null,null,null,{"$f":"INDEX(London[Country],LARGE(IF(J39=OFFSET(London[[#Headers],[Country]],1,MATCH($P$9,London[#Headers],0)-1,COUNT(London[Gold])),ROW(OFFSET(London[[#Headers],[Country]],1,MATCH($P$9,London[#Headers],0)-1,COUNT(London[Gold])))-london.startrow,0),COUNTIF($J$10:J39,J39)))","v":"Sweden"},{"$f":"LARGE(OFFSET(London[[#Headers],[Country]],1,MATCH($P$9,London[#Headers],0)-1,COUNT(London[Gold])),ROW(I39)-london.startrow)","v":8},{"$f":"VLOOKUP($I39,London[],K$8,0)","v":1},{"$f":"VLOOKUP($I39,London[],L$8,0)","v":4},{"$f":"VLOOKUP($I39,London[],M$8,0)","v":3}]
["Poland",2,2,6,10,null,null,null,{"$f":"INDEX(London[Country],LARGE(IF(J40=OFFSET(London[[#Headers],[Country]],1,MATCH($P$9,London[#Headers],0)-1,COUNT(London[Gold])),ROW(OFFSET(London[[#Headers],[Country]],1,MATCH($P$9,London[#Headers],0)-1,COUNT(London[Gold])))-london.startrow,0),COUNTIF($J$10:J40,J40)))","v":"Mexico"},{"$f":"LARGE(OFFSET(London[[#Headers],[Country]],1,MATCH($P$9,London[#Headers],0)-1,COUNT(London[Gold])),ROW(I40)-london.startrow)","v":7},{"$f":"VLOOKUP($I40,London[],K$8,0)","v":1},{"$f":"VLOOKUP($I40,London[],L$8,0)","v":3},{"$f":"VLOOKUP($I40,London[],M$8,0)","v":3}]
["Switzerland",2,2,0,4,null,null,null,{"$f":"INDEX(London[Country],LARGE(IF(J41=OFFSET(London[[#Headers],[Country]],1,MATCH($P$9,London[#Headers],0)-1,COUNT(London[Gold])),ROW(OFFSET(London[[#Headers],[Country]],1,MATCH($P$9,London[#Headers],0)-1,COUNT(London[Gold])))-london.startrow,0),COUNTIF($J$10:J41,J41)))","v":"Georgia"},{"$f":"LARGE(OFFSET(London[[#Headers],[Country]],1,MATCH($P$9,London[#Headers],0)-1,COUNT(London[Gold])),ROW(I41)-london.startrow)","v":7},{"$f":"VLOOKUP($I41,London[],K$8,0)","v":1},{"$f":"VLOOKUP($I41,London[],L$8,0)","v":3},{"$f":"VLOOKUP($I41,London[],M$8,0)","v":3}]
["Lithuania",2,1,2,5,null,null,null,{"$f":"INDEX(London[Country],LARGE(IF(J42=OFFSET(London[[#Headers],[Country]],1,MATCH($P$9,London[#Headers],0)-1,COUNT(London[Gold])),ROW(OFFSET(London[[#Headers],[Country]],1,MATCH($P$9,London[#Headers],0)-1,COUNT(London[Gold])))-london.startrow,0),COUNTIF($J$10:J42,J42)))","v":"Ethiopia"},{"$f":"LARGE(OFFSET(London[[#Headers],[Country]],1,MATCH($P$9,London[#Headers],0)-1,COUNT(London[Gold])),ROW(I42)-london.startrow)","v":7},{"$f":"VLOOKUP($I42,London[],K$8,0)","v":3},{"$f":"VLOOKUP($I42,London[],L$8,0)","v":2},{"$f":"VLOOKUP($I42,London[],M$8,0)","v":2}]
["Norway",2,1,1,4,null,null,null,{"$f":"INDEX(London[Country],LARGE(IF(J43=OFFSET(London[[#Headers],[Country]],1,MATCH($P$9,London[#Headers],0)-1,COUNT(London[Gold])),ROW(OFFSET(London[[#Headers],[Country]],1,MATCH($P$9,London[#Headers],0)-1,COUNT(London[Gold])))-london.startrow,0),COUNTIF($J$10:J43,J43)))","v":"India"},{"$f":"LARGE(OFFSET(London[[#Headers],[Country]],1,MATCH($P$9,London[#Headers],0)-1,COUNT(London[Gold])),ROW(I43)-london.startrow)","v":6},{"$f":"VLOOKUP($I43,London[],K$8,0)","v":0},{"$f":"VLOOKUP($I43,London[],L$8,0)","v":2},{"$f":"VLOOKUP($I43,London[],M$8,0)","v":4}]
["Tunisia",2,0,1,3,null,null,null,{"$f":"INDEX(London[Country],LARGE(IF(J44=OFFSET(London[[#Headers],[Country]],1,MATCH($P$9,London[#Headers],0)-1,COUNT(London[Gold])),ROW(OFFSET(London[[#Headers],[Country]],1,MATCH($P$9,London[#Headers],0)-1,COUNT(London[Gold])))-london.startrow,0),COUNTIF($J$10:J44,J44)))","v":"Ireland"},{"$f":"LARGE(OFFSET(London[[#Headers],[Country]],1,MATCH($P$9,London[#Headers],0)-1,COUNT(London[Gold])),ROW(I44)-london.startrow)","v":6},{"$f":"VLOOKUP($I44,London[],K$8,0)","v":1},{"$f":"VLOOKUP($I44,London[],L$8,0)","v":1},{"$f":"VLOOKUP($I44,London[],M$8,0)","v":4}]
["Canada",1,5,12,18,null,null,null,{"$f":"INDEX(London[Country],LARGE(IF(J45=OFFSET(London[[#Headers],[Country]],1,MATCH($P$9,London[#Headers],0)-1,COUNT(London[Gold])),ROW(OFFSET(London[[#Headers],[Country]],1,MATCH($P$9,London[#Headers],0)-1,COUNT(London[Gold])))-london.startrow,0),COUNTIF($J$10:J45,J45)))","v":"Croatia"},{"$f":"LARGE(OFFSET(London[[#Headers],[Country]],1,MATCH($P$9,London[#Headers],0)-1,COUNT(London[Gold])),ROW(I45)-london.startrow)","v":6},{"$f":"VLOOKUP($I45,London[],K$8,0)","v":3},{"$f":"VLOOKUP($I45,London[],L$8,0)","v":1},{"$f":"VLOOKUP($I45,London[],M$8,0)","v":2}]
["Sweden",1,4,3,8,null,null,null,{"$f":"INDEX(London[Country],LARGE(IF(J46=OFFSET(London[[#Headers],[Country]],1,MATCH($P$9,London[#Headers],0)-1,COUNT(London[Gold])),ROW(OFFSET(London[[#Headers],[Country]],1,MATCH($P$9,London[#Headers],0)-1,COUNT(London[Gold])))-london.startrow,0),COUNTIF($J$10:J46,J46)))","v":"South Africa"},{"$f":"LARGE(OFFSET(London[[#Headers],[Country]],1,MATCH($P$9,London[#Headers],0)-1,COUNT(London[Gold])),ROW(I46)-london.startrow)","v":6},{"$f":"VLOOKUP($I46,London[],K$8,0)","v":3},{"$f":"VLOOKUP($I46,London[],L$8,0)","v":2},{"$f":"VLOOKUP($I46,London[],M$8,0)","v":1}]
["Colombia",1,3,4,8,null,null,null,{"$f":"INDEX(London[Country],LARGE(IF(J47=OFFSET(London[[#Headers],[Country]],1,MATCH($P$9,London[#Headers],0)-1,COUNT(London[Gold])),ROW(OFFSET(London[[#Headers],[Country]],1,MATCH($P$9,London[#Headers],0)-1,COUNT(London[Gold])))-london.startrow,0),COUNTIF($J$10:J47,J47)))","v":"North Korea"},{"$f":"LARGE(OFFSET(London[[#Headers],[Country]],1,MATCH($P$9,London[#Headers],0)-1,COUNT(London[Gold])),ROW(I47)-london.startrow)","v":6},{"$f":"VLOOKUP($I47,London[],K$8,0)","v":4},{"$f":"VLOOKUP($I47,London[],L$8,0)","v":0},{"$f":"VLOOKUP($I47,London[],M$8,0)","v":2}]
["Georgia",1,3,3,7,null,null,null,{"$f":"INDEX(London[Country],LARGE(IF(J48=OFFSET(London[[#Headers],[Country]],1,MATCH($P$9,London[#Headers],0)-1,COUNT(London[Gold])),ROW(OFFSET(London[[#Headers],[Country]],1,MATCH($P$9,London[#Headers],0)-1,COUNT(London[Gold])))-london.startrow,0),COUNTIF($J$10:J48,J48)))","v":"Mongolia"},{"$f":"LARGE(OFFSET(London[[#Headers],[Country]],1,MATCH($P$9,London[#Headers],0)-1,COUNT(London[Gold])),ROW(I48)-london.startrow)","v":5},{"$f":"VLOOKUP($I48,London[],K$8,0)","v":0},{"$f":"VLOOKUP($I48,London[],L$8,0)","v":2},{"$f":"VLOOKUP($I48,London[],M$8,0)","v":3}]
["Mexico",1,3,3,7,null,null,null,{"$f":"INDEX(London[Country],LARGE(IF(J49=OFFSET(London[[#Headers],[Country]],1,MATCH($P$9,London[#Headers],0)-1,COUNT(London[Gold])),ROW(OFFSET(London[[#Headers],[Country]],1,MATCH($P$9,London[#Headers],0)-1,COUNT(London[Gold])))-london.startrow,0),COUNTIF($J$10:J49,J49)))","v":"Lithuania"},{"$f":"LARGE(OFFSET(London[[#Headers],[Country]],1,MATCH($P$9,London[#Headers],0)-1,COUNT(London[Gold])),ROW(I49)-london.startrow)","v":5},{"$f":"VLOOKUP($I49,London[],K$8,0)","v":2},{"$f":"VLOOKUP($I49,London[],L$8,0)","v":1},{"$f":"VLOOKUP($I49,London[],M$8,0)","v":2}]
["Turkey",1,2,1,4,null,null,null,{"$f":"INDEX(London[Country],LARGE(IF(J50=OFFSET(London[[#Headers],[Country]],1,MATCH($P$9,London[#Headers],0)-1,COUNT(London[Gold])),ROW(OFFSET(London[[#Headers],[Country]],1,MATCH($P$9,London[#Headers],0)-1,COUNT(London[Gold])))-london.startrow,0),COUNTIF($J$10:J50,J50)))","v":"Slovakia"},{"$f":"LARGE(OFFSET(London[[#Headers],[Country]],1,MATCH($P$9,London[#Headers],0)-1,COUNT(London[Gold])),ROW(I50)-london.startrow)","v":4},{"$f":"VLOOKUP($I50,London[],K$8,0)","v":0},{"$f":"VLOOKUP($I50,London[],L$8,0)","v":1},{"$f":"VLOOKUP($I50,London[],M$8,0)","v":3}]
["Ireland",1,1,4,6,null,null,null,{"$f":"INDEX(London[Country],LARGE(IF(J51=OFFSET(London[[#Headers],[Country]],1,MATCH($P$9,London[#Headers],0)-1,COUNT(London[Gold])),ROW(OFFSET(London[[#Headers],[Country]],1,MATCH($P$9,London[#Headers],0)-1,COUNT(London[Gold])))-london.startrow,0),COUNTIF($J$10:J51,J51)))","v":"Thailand"},{"$f":"LARGE(OFFSET(London[[#Headers],[Country]],1,MATCH($P$9,London[#Headers],0)-1,COUNT(London[Gold])),ROW(I51)-london.startrow)","v":4},{"$f":"VLOOKUP($I51,London[],K$8,0)","v":0},{"$f":"VLOOKUP($I51,London[],L$8,0)","v":2},{"$f":"VLOOKUP($I51,London[],M$8,0)","v":2}]
["Argentina",1,1,2,4,null,null,null,{"$f":"INDEX(London[Country],LARGE(IF(J52=OFFSET(London[[#Headers],[Country]],1,MATCH($P$9,London[#Headers],0)-1,COUNT(London[Gold])),ROW(OFFSET(London[[#Headers],[Country]],1,MATCH($P$9,London[#Headers],0)-1,COUNT(London[Gold])))-london.startrow,0),COUNTIF($J$10:J52,J52)))","v":"Trinidad and Tobago"},{"$f":"LARGE(OFFSET(London[[#Headers],[Country]],1,MATCH($P$9,London[#Headers],0)-1,COUNT(London[Gold])),ROW(I52)-london.startrow)","v":4},{"$f":"VLOOKUP($I52,London[],K$8,0)","v":1},{"$f":"VLOOKUP($I52,London[],L$8,0)","v":1},{"$f":"VLOOKUP($I52,London[],M$8,0)","v":2}]
["Serbia",1,1,2,4,null,null,null,{"$f":"INDEX(London[Country],LARGE(IF(J53=OFFSET(London[[#Headers],[Country]],1,MATCH($P$9,London[#Headers],0)-1,COUNT(London[Gold])),ROW(OFFSET(London[[#Headers],[Country]],1,MATCH($P$9,London[#Headers],0)-1,COUNT(London[Gold])))-london.startrow,0),COUNTIF($J$10:J53,J53)))","v":"Slovenia"},{"$f":"LARGE(OFFSET(London[[#Headers],[Country]],1,MATCH($P$9,London[#Headers],0)-1,COUNT(London[Gold])),ROW(I53)-london.startrow)","v":4},{"$f":"VLOOKUP($I53,London[],K$8,0)","v":1},{"$f":"VLOOKUP($I53,London[],L$8,0)","v":1},{"$f":"VLOOKUP($I53,London[],M$8,0)","v":2}]
["Slovenia",1,1,2,4,null,null,null,{"$f":"INDEX(London[Country],LARGE(IF(J54=OFFSET(London[[#Headers],[Country]],1,MATCH($P$9,London[#Headers],0)-1,COUNT(London[Gold])),ROW(OFFSET(London[[#Headers],[Country]],1,MATCH($P$9,London[#Headers],0)-1,COUNT(London[Gold])))-london.startrow,0),COUNTIF($J$10:J54,J54)))","v":"Serbia"},{"$f":"LARGE(OFFSET(London[[#Headers],[Country]],1,MATCH($P$9,London[#Headers],0)-1,COUNT(London[Gold])),ROW(I54)-london.startrow)","v":4},{"$f":"VLOOKUP($I54,London[],K$8,0)","v":1},{"$f":"VLOOKUP($I54,London[],L$8,0)","v":1},{"$f":"VLOOKUP($I54,London[],M$8,0)","v":2}]
["Dominican Republic",1,1,0,2,null,null,null,{"$f":"INDEX(London[Country],LARGE(IF(J55=OFFSET(London[[#Headers],[Country]],1,MATCH($P$9,London[#Headers],0)-1,COUNT(London[Gold])),ROW(OFFSET(London[[#Headers],[Country]],1,MATCH($P$9,London[#Headers],0)-1,COUNT(London[Gold])))-london.startrow,0),COUNTIF($J$10:J55,J55)))","v":"Argentina"},{"$f":"LARGE(OFFSET(London[[#Headers],[Country]],1,MATCH($P$9,London[#Headers],0)-1,COUNT(London[Gold])),ROW(I55)-london.startrow)","v":4},{"$f":"VLOOKUP($I55,London[],K$8,0)","v":1},{"$f":"VLOOKUP($I55,London[],L$8,0)","v":1},{"$f":"VLOOKUP($I55,London[],M$8,0)","v":2}]
["Trinidad and Tobago",1,1,2,4,null,null,null,{"$f":"INDEX(London[Country],LARGE(IF(J56=OFFSET(London[[#Headers],[Country]],1,MATCH($P$9,London[#Headers],0)-1,COUNT(London[Gold])),ROW(OFFSET(London[[#Headers],[Country]],1,MATCH($P$9,London[#Headers],0)-1,COUNT(London[Gold])))-london.startrow,0),COUNTIF($J$10:J56,J56)))","v":"Turkey"},{"$f":"LARGE(OFFSET(London[[#Headers],[Country]],1,MATCH($P$9,London[#Headers],0)-1,COUNT(London[Gold])),ROW(I56)-london.startrow)","v":4},{"$f":"VLOOKUP($I56,London[],K$8,0)","v":1},{"$f":"VLOOKUP($I56,London[],L$8,0)","v":2},{"$f":"VLOOKUP($I56,London[],M$8,0)","v":1}]
["Uzbekistan",1,0,2,3,null,null,null,{"$f":"INDEX(London[Country],LARGE(IF(J57=OFFSET(London[[#Headers],[Country]],1,MATCH($P$9,London[#Headers],0)-1,COUNT(London[Gold])),ROW(OFFSET(London[[#Headers],[Country]],1,MATCH($P$9,London[#Headers],0)-1,COUNT(London[Gold])))-london.startrow,0),COUNTIF($J$10:J57,J57)))","v":"Norway"},{"$f":"LARGE(OFFSET(London[[#Headers],[Country]],1,MATCH($P$9,London[#Headers],0)-1,COUNT(London[Gold])),ROW(I57)-london.startrow)","v":4},{"$f":"VLOOKUP($I57,London[],K$8,0)","v":2},{"$f":"VLOOKUP($I57,London[],L$8,0)","v":1},{"$f":"VLOOKUP($I57,London[],M$8,0)","v":1}]
["Latvia",1,0,1,2,null,null,null,{"$f":"INDEX(London[Country],LARGE(IF(J58=OFFSET(London[[#Headers],[Country]],1,MATCH($P$9,London[#Headers],0)-1,COUNT(London[Gold])),ROW(OFFSET(London[[#Headers],[Country]],1,MATCH($P$9,London[#Headers],0)-1,COUNT(London[Gold])))-london.startrow,0),COUNTIF($J$10:J58,J58)))","v":"Switzerland"},{"$f":"LARGE(OFFSET(London[[#Headers],[Country]],1,MATCH($P$9,London[#Headers],0)-1,COUNT(London[Gold])),ROW(I58)-london.startrow)","v":4},{"$f":"VLOOKUP($I58,London[],K$8,0)","v":2},{"$f":"VLOOKUP($I58,London[],L$8,0)","v":2},{"$f":"VLOOKUP($I58,London[],M$8,0)","v":0}]
["Algeria",1,0,0,1,null,null,null,{"$f":"INDEX(London[Country],LARGE(IF(J59=OFFSET(London[[#Headers],[Country]],1,MATCH($P$9,London[#Headers],0)-1,COUNT(London[Gold])),ROW(OFFSET(London[[#Headers],[Country]],1,MATCH($P$9,London[#Headers],0)-1,COUNT(London[Gold])))-london.startrow,0),COUNTIF($J$10:J59,J59)))","v":"Finland"},{"$f":"LARGE(OFFSET(London[[#Headers],[Country]],1,MATCH($P$9,London[#Headers],0)-1,COUNT(London[Gold])),ROW(I59)-london.startrow)","v":3},{"$f":"VLOOKUP($I59,London[],K$8,0)","v":0},{"$f":"VLOOKUP($I59,London[],L$8,0)","v":1},{"$f":"VLOOKUP($I59,London[],M$8,0)","v":2}]
["Bahamas",1,0,0,1,null,null,null,{"$f":"INDEX(London[Country],LARGE(IF(J60=OFFSET(London[[#Headers],[Country]],1,MATCH($P$9,London[#Headers],0)-1,COUNT(London[Gold])),ROW(OFFSET(London[[#Headers],[Country]],1,MATCH($P$9,London[#Headers],0)-1,COUNT(London[Gold])))-london.startrow,0),COUNTIF($J$10:J60,J60)))","v":"Belgium"},{"$f":"LARGE(OFFSET(London[[#Headers],[Country]],1,MATCH($P$9,London[#Headers],0)-1,COUNT(London[Gold])),ROW(I60)-london.startrow)","v":3},{"$f":"VLOOKUP($I60,London[],K$8,0)","v":0},{"$f":"VLOOKUP($I60,London[],L$8,0)","v":1},{"$f":"VLOOKUP($I60,London[],M$8,0)","v":2}]
["Grenada",1,0,0,1,null,null,null,{"$f":"INDEX(London[Country],LARGE(IF(J61=OFFSET(London[[#Headers],[Country]],1,MATCH($P$9,London[#Headers],0)-1,COUNT(London[Gold])),ROW(OFFSET(London[[#Headers],[Country]],1,MATCH($P$9,London[#Headers],0)-1,COUNT(London[Gold])))-london.startrow,0),COUNTIF($J$10:J61,J61)))","v":"Armenia"},{"$f":"LARGE(OFFSET(London[[#Headers],[Country]],1,MATCH($P$9,London[#Headers],0)-1,COUNT(London[Gold])),ROW(I61)-london.startrow)","v":3},{"$f":"VLOOKUP($I61,London[],K$8,0)","v":0},{"$f":"VLOOKUP($I61,London[],L$8,0)","v":1},{"$f":"VLOOKUP($I61,London[],M$8,0)","v":2}]
["Uganda",1,0,0,1,null,null,null,{"$f":"INDEX(London[Country],LARGE(IF(J62=OFFSET(London[[#Headers],[Country]],1,MATCH($P$9,London[#Headers],0)-1,COUNT(London[Gold])),ROW(OFFSET(London[[#Headers],[Country]],1,MATCH($P$9,London[#Headers],0)-1,COUNT(London[Gold])))-london.startrow,0),COUNTIF($J$10:J62,J62)))","v":"Uzbekistan"},{"$f":"LARGE(OFFSET(London[[#Headers],[Country]],1,MATCH($P$9,London[#Headers],0)-1,COUNT(London[Gold])),ROW(I62)-london.startrow)","v":3},{"$f":"VLOOKUP($I62,London[],K$8,0)","v":1},{"$f":"VLOOKUP($I62,London[],L$8,0)","v":0},{"$f":"VLOOKUP($I62,London[],M$8,0)","v":2}]
["Venezuela",1,0,0,1,null,null,null,{"$f":"INDEX(London[Country],LARGE(IF(J63=OFFSET(London[[#Headers],[Country]],1,MATCH($P$9,London[#Headers],0)-1,COUNT(London[Gold])),ROW(OFFSET(London[[#Headers],[Country]],1,MATCH($P$9,London[#Headers],0)-1,COUNT(London[Gold])))-london.startrow,0),COUNTIF($J$10:J63,J63)))","v":"Tunisia"},{"$f":"LARGE(OFFSET(London[[#Headers],[Country]],1,MATCH($P$9,London[#Headers],0)-1,COUNT(London[Gold])),ROW(I63)-london.startrow)","v":3},{"$f":"VLOOKUP($I63,London[],K$8,0)","v":2},{"$f":"VLOOKUP($I63,London[],L$8,0)","v":0},{"$f":"VLOOKUP($I63,London[],M$8,0)","v":1}]
["India",0,2,4,6,null,null,null,{"$f":"INDEX(London[Country],LARGE(IF(J64=OFFSET(London[[#Headers],[Country]],1,MATCH($P$9,London[#Headers],0)-1,COUNT(London[Gold])),ROW(OFFSET(London[[#Headers],[Country]],1,MATCH($P$9,London[#Headers],0)-1,COUNT(London[Gold])))-london.startrow,0),COUNTIF($J$10:J64,J64)))","v":"Singapore"},{"$f":"LARGE(OFFSET(London[[#Headers],[Country]],1,MATCH($P$9,London[#Headers],0)-1,COUNT(London[Gold])),ROW(I64)-london.startrow)","v":2},{"$f":"VLOOKUP($I64,London[],K$8,0)","v":0},{"$f":"VLOOKUP($I64,London[],L$8,0)","v":0},{"$f":"VLOOKUP($I64,London[],M$8,0)","v":2}]
["Mongolia",0,2,3,5,null,null,null,{"$f":"INDEX(London[Country],LARGE(IF(J65=OFFSET(London[[#Headers],[Country]],1,MATCH($P$9,London[#Headers],0)-1,COUNT(London[Gold])),ROW(OFFSET(London[[#Headers],[Country]],1,MATCH($P$9,London[#Headers],0)-1,COUNT(London[Gold])))-london.startrow,0),COUNTIF($J$10:J65,J65)))","v":"Qatar"},{"$f":"LARGE(OFFSET(London[[#Headers],[Country]],1,MATCH($P$9,London[#Headers],0)-1,COUNT(London[Gold])),ROW(I65)-london.startrow)","v":2},{"$f":"VLOOKUP($I65,London[],K$8,0)","v":0},{"$f":"VLOOKUP($I65,London[],L$8,0)","v":0},{"$f":"VLOOKUP($I65,London[],M$8,0)","v":2}]
["Thailand",0,2,2,4,null,null,null,{"$f":"INDEX(London[Country],LARGE(IF(J66=OFFSET(London[[#Headers],[Country]],1,MATCH($P$9,London[#Headers],0)-1,COUNT(London[Gold])),ROW(OFFSET(London[[#Headers],[Country]],1,MATCH($P$9,London[#Headers],0)-1,COUNT(London[Gold])))-london.startrow,0),COUNTIF($J$10:J66,J66)))","v":"Moldova"},{"$f":"LARGE(OFFSET(London[[#Headers],[Country]],1,MATCH($P$9,London[#Headers],0)-1,COUNT(London[Gold])),ROW(I66)-london.startrow)","v":2},{"$f":"VLOOKUP($I66,London[],K$8,0)","v":0},{"$f":"VLOOKUP($I66,London[],L$8,0)","v":0},{"$f":"VLOOKUP($I66,London[],M$8,0)","v":2}]
["Egypt",0,2,0,2,null,null,null,{"$f":"INDEX(London[Country],LARGE(IF(J67=OFFSET(London[[#Headers],[Country]],1,MATCH($P$9,London[#Headers],0)-1,COUNT(London[Gold])),ROW(OFFSET(London[[#Headers],[Country]],1,MATCH($P$9,London[#Headers],0)-1,COUNT(London[Gold])))-london.startrow,0),COUNTIF($J$10:J67,J67)))","v":"Greece"},{"$f":"LARGE(OFFSET(London[[#Headers],[Country]],1,MATCH($P$9,London[#Headers],0)-1,COUNT(London[Gold])),ROW(I67)-london.startrow)","v":2},{"$f":"VLOOKUP($I67,London[],K$8,0)","v":0},{"$f":"VLOOKUP($I67,London[],L$8,0)","v":0},{"$f":"VLOOKUP($I67,London[],M$8,0)","v":2}]
["Slovakia",0,1,3,4,null,null,null,{"$f":"INDEX(London[Country],LARGE(IF(J68=OFFSET(London[[#Headers],[Country]],1,MATCH($P$9,London[#Headers],0)-1,COUNT(London[Gold])),ROW(OFFSET(London[[#Headers],[Country]],1,MATCH($P$9,London[#Headers],0)-1,COUNT(London[Gold])))-london.startrow,0),COUNTIF($J$10:J68,J68)))","v":"Chinese Taipei"},{"$f":"LARGE(OFFSET(London[[#Headers],[Country]],1,MATCH($P$9,London[#Headers],0)-1,COUNT(London[Gold])),ROW(I68)-london.startrow)","v":2},{"$f":"VLOOKUP($I68,London[],K$8,0)","v":0},{"$f":"VLOOKUP($I68,London[],L$8,0)","v":1},{"$f":"VLOOKUP($I68,London[],M$8,0)","v":1}]
["Armenia",0,1,2,3,null,null,null,{"$f":"INDEX(London[Country],LARGE(IF(J69=OFFSET(London[[#Headers],[Country]],1,MATCH($P$9,London[#Headers],0)-1,COUNT(London[Gold])),ROW(OFFSET(London[[#Headers],[Country]],1,MATCH($P$9,London[#Headers],0)-1,COUNT(London[Gold])))-london.startrow,0),COUNTIF($J$10:J69,J69)))","v":"Puerto Rico"},{"$f":"LARGE(OFFSET(London[[#Headers],[Country]],1,MATCH($P$9,London[#Headers],0)-1,COUNT(London[Gold])),ROW(I69)-london.startrow)","v":2},{"$f":"VLOOKUP($I69,London[],K$8,0)","v":0},{"$f":"VLOOKUP($I69,London[],L$8,0)","v":1},{"$f":"VLOOKUP($I69,London[],M$8,0)","v":1}]
["Belgium",0,1,2,3,null,null,null,{"$f":"INDEX(London[Country],LARGE(IF(J70=OFFSET(London[[#Headers],[Country]],1,MATCH($P$9,London[#Headers],0)-1,COUNT(London[Gold])),ROW(OFFSET(London[[#Headers],[Country]],1,MATCH($P$9,London[#Headers],0)-1,COUNT(London[Gold])))-london.startrow,0),COUNTIF($J$10:J70,J70)))","v":"Malaysia"},{"$f":"LARGE(OFFSET(London[[#Headers],[Country]],1,MATCH($P$9,London[#Headers],0)-1,COUNT(London[Gold])),ROW(I70)-london.startrow)","v":2},{"$f":"VLOOKUP($I70,London[],K$8,0)","v":0},{"$f":"VLOOKUP($I70,London[],L$8,0)","v":1},{"$f":"VLOOKUP($I70,London[],M$8,0)","v":1}]
["Finland",0,1,2,3,null,null,null,{"$f":"INDEX(London[Country],LARGE(IF(J71=OFFSET(London[[#Headers],[Country]],1,MATCH($P$9,London[#Headers],0)-1,COUNT(London[Gold])),ROW(OFFSET(London[[#Headers],[Country]],1,MATCH($P$9,London[#Headers],0)-1,COUNT(London[Gold])))-london.startrow,0),COUNTIF($J$10:J71,J71)))","v":"Indonesia"},{"$f":"LARGE(OFFSET(London[[#Headers],[Country]],1,MATCH($P$9,London[#Headers],0)-1,COUNT(London[Gold])),ROW(I71)-london.startrow)","v":2},{"$f":"VLOOKUP($I71,London[],K$8,0)","v":0},{"$f":"VLOOKUP($I71,London[],L$8,0)","v":1},{"$f":"VLOOKUP($I71,London[],M$8,0)","v":1}]
["Bulgaria",0,1,1,2,null,null,null,{"$f":"INDEX(London[Country],LARGE(IF(J72=OFFSET(London[[#Headers],[Country]],1,MATCH($P$9,London[#Headers],0)-1,COUNT(London[Gold])),ROW(OFFSET(London[[#Headers],[Country]],1,MATCH($P$9,London[#Headers],0)-1,COUNT(London[Gold])))-london.startrow,0),COUNTIF($J$10:J72,J72)))","v":"Estonia"},{"$f":"LARGE(OFFSET(London[[#Headers],[Country]],1,MATCH($P$9,London[#Headers],0)-1,COUNT(London[Gold])),ROW(I72)-london.startrow)","v":2},{"$f":"VLOOKUP($I72,London[],K$8,0)","v":0},{"$f":"VLOOKUP($I72,London[],L$8,0)","v":1},{"$f":"VLOOKUP($I72,London[],M$8,0)","v":1}]
["Estonia",0,1,1,2,null,null,null,{"$f":"INDEX(London[Country],LARGE(IF(J73=OFFSET(London[[#Headers],[Country]],1,MATCH($P$9,London[#Headers],0)-1,COUNT(London[Gold])),ROW(OFFSET(London[[#Headers],[Country]],1,MATCH($P$9,London[#Headers],0)-1,COUNT(London[Gold])))-london.startrow,0),COUNTIF($J$10:J73,J73)))","v":"Bulgaria"},{"$f":"LARGE(OFFSET(London[[#Headers],[Country]],1,MATCH($P$9,London[#Headers],0)-1,COUNT(London[Gold])),ROW(I73)-london.startrow)","v":2},{"$f":"VLOOKUP($I73,London[],K$8,0)","v":0},{"$f":"VLOOKUP($I73,London[],L$8,0)","v":1},{"$f":"VLOOKUP($I73,London[],M$8,0)","v":1}]
["Indonesia",0,1,1,2,null,null,null,{"$f":"INDEX(London[Country],LARGE(IF(J74=OFFSET(London[[#Headers],[Country]],1,MATCH($P$9,London[#Headers],0)-1,COUNT(London[Gold])),ROW(OFFSET(London[[#Headers],[Country]],1,MATCH($P$9,London[#Headers],0)-1,COUNT(London[Gold])))-london.startrow,0),COUNTIF($J$10:J74,J74)))","v":"Egypt"},{"$f":"LARGE(OFFSET(London[[#Headers],[Country]],1,MATCH($P$9,London[#Headers],0)-1,COUNT(London[Gold])),ROW(I74)-london.startrow)","v":2},{"$f":"VLOOKUP($I74,London[],K$8,0)","v":0},{"$f":"VLOOKUP($I74,London[],L$8,0)","v":2},{"$f":"VLOOKUP($I74,London[],M$8,0)","v":0}]
["Malaysia",0,1,1,2,null,null,null,{"$f":"INDEX(London[Country],LARGE(IF(J75=OFFSET(London[[#Headers],[Country]],1,MATCH($P$9,London[#Headers],0)-1,COUNT(London[Gold])),ROW(OFFSET(London[[#Headers],[Country]],1,MATCH($P$9,London[#Headers],0)-1,COUNT(London[Gold])))-london.startrow,0),COUNTIF($J$10:J75,J75)))","v":"Latvia"},{"$f":"LARGE(OFFSET(London[[#Headers],[Country]],1,MATCH($P$9,London[#Headers],0)-1,COUNT(London[Gold])),ROW(I75)-london.startrow)","v":2},{"$f":"VLOOKUP($I75,London[],K$8,0)","v":1},{"$f":"VLOOKUP($I75,London[],L$8,0)","v":0},{"$f":"VLOOKUP($I75,London[],M$8,0)","v":1}]
["Puerto Rico",0,1,1,2,null,null,null,{"$f":"INDEX(London[Country],LARGE(IF(J76=OFFSET(London[[#Headers],[Country]],1,MATCH($P$9,London[#Headers],0)-1,COUNT(London[Gold])),ROW(OFFSET(London[[#Headers],[Country]],1,MATCH($P$9,London[#Headers],0)-1,COUNT(London[Gold])))-london.startrow,0),COUNTIF($J$10:J76,J76)))","v":"Dominican Republic"},{"$f":"LARGE(OFFSET(London[[#Headers],[Country]],1,MATCH($P$9,London[#Headers],0)-1,COUNT(London[Gold])),ROW(I76)-london.startrow)","v":2},{"$f":"VLOOKUP($I76,London[],K$8,0)","v":1},{"$f":"VLOOKUP($I76,London[],L$8,0)","v":1},{"$f":"VLOOKUP($I76,London[],M$8,0)","v":0}]
["Chinese Taipei",0,1,1,2,null,null,null,{"$f":"INDEX(London[Country],LARGE(IF(J77=OFFSET(London[[#Headers],[Country]],1,MATCH($P$9,London[#Headers],0)-1,COUNT(London[Gold])),ROW(OFFSET(London[[#Headers],[Country]],1,MATCH($P$9,London[#Headers],0)-1,COUNT(London[Gold])))-london.startrow,0),COUNTIF($J$10:J77,J77)))","v":"Tajikistan"},{"$f":"LARGE(OFFSET(London[[#Headers],[Country]],1,MATCH($P$9,London[#Headers],0)-1,COUNT(London[Gold])),ROW(I77)-london.startrow)","v":1},{"$f":"VLOOKUP($I77,London[],K$8,0)","v":0},{"$f":"VLOOKUP($I77,London[],L$8,0)","v":0},{"$f":"VLOOKUP($I77,London[],M$8,0)","v":1}]
["Botswana",0,1,0,1,null,null,null,{"$f":"INDEX(London[Country],LARGE(IF(J78=OFFSET(London[[#Headers],[Country]],1,MATCH($P$9,London[#Headers],0)-1,COUNT(London[Gold])),ROW(OFFSET(London[[#Headers],[Country]],1,MATCH($P$9,London[#Headers],0)-1,COUNT(London[Gold])))-london.startrow,0),COUNTIF($J$10:J78,J78)))","v":"Morocco"},{"$f":"LARGE(OFFSET(London[[#Headers],[Country]],1,MATCH($P$9,London[#Headers],0)-1,COUNT(London[Gold])),ROW(I78)-london.startrow)","v":1},{"$f":"VLOOKUP($I78,London[],K$8,0)","v":0},{"$f":"VLOOKUP($I78,London[],L$8,0)","v":0},{"$f":"VLOOKUP($I78,London[],M$8,0)","v":1}]
["Cyprus",0,1,0,1,null,null,null,{"$f":"INDEX(London[Country],LARGE(IF(J79=OFFSET(London[[#Headers],[Country]],1,MATCH($P$9,London[#Headers],0)-1,COUNT(London[Gold])),ROW(OFFSET(London[[#Headers],[Country]],1,MATCH($P$9,London[#Headers],0)-1,COUNT(London[Gold])))-london.startrow,0),COUNTIF($J$10:J79,J79)))","v":"Kuwait"},{"$f":"LARGE(OFFSET(London[[#Headers],[Country]],1,MATCH($P$9,London[#Headers],0)-1,COUNT(London[Gold])),ROW(I79)-london.startrow)","v":1},{"$f":"VLOOKUP($I79,London[],K$8,0)","v":0},{"$f":"VLOOKUP($I79,London[],L$8,0)","v":0},{"$f":"VLOOKUP($I79,London[],M$8,0)","v":1}]
["Gabon",0,1,0,1,null,null,null,{"$f":"INDEX(London[Country],LARGE(IF(J80=OFFSET(London[[#Headers],[Country]],1,MATCH($P$9,London[#Headers],0)-1,COUNT(London[Gold])),ROW(OFFSET(London[[#Headers],[Country]],1,MATCH($P$9,London[#Headers],0)-1,COUNT(London[Gold])))-london.startrow,0),COUNTIF($J$10:J80,J80)))","v":"Saudi Arabia"},{"$f":"LARGE(OFFSET(London[[#Headers],[Country]],1,MATCH($P$9,London[#Headers],0)-1,COUNT(London[Gold])),ROW(I80)-london.startrow)","v":1},{"$f":"VLOOKUP($I80,London[],K$8,0)","v":0},{"$f":"VLOOKUP($I80,London[],L$8,0)","v":0},{"$f":"VLOOKUP($I80,London[],M$8,0)","v":1}]
["Guatemala",0,1,0,1,null,null,null,{"$f":"INDEX(London[Country],LARGE(IF(J81=OFFSET(London[[#Headers],[Country]],1,MATCH($P$9,London[#Headers],0)-1,COUNT(London[Gold])),ROW(OFFSET(London[[#Headers],[Country]],1,MATCH($P$9,London[#Headers],0)-1,COUNT(London[Gold])))-london.startrow,0),COUNTIF($J$10:J81,J81)))","v":"Hong Kong"},{"$f":"LARGE(OFFSET(London[[#Headers],[Country]],1,MATCH($P$9,London[#Headers],0)-1,COUNT(London[Gold])),ROW(I81)-london.startrow)","v":1},{"$f":"VLOOKUP($I81,London[],K$8,0)","v":0},{"$f":"VLOOKUP($I81,London[],L$8,0)","v":0},{"$f":"VLOOKUP($I81,London[],M$8,0)","v":1}]
["Montenegro",0,1,0,1,null,null,null,{"$f":"INDEX(London[Country],LARGE(IF(J82=OFFSET(London[[#Headers],[Country]],1,MATCH($P$9,London[#Headers],0)-1,COUNT(London[Gold])),ROW(OFFSET(London[[#Headers],[Country]],1,MATCH($P$9,London[#Headers],0)-1,COUNT(London[Gold])))-london.startrow,0),COUNTIF($J$10:J82,J82)))","v":"Bahrain"},{"$f":"LARGE(OFFSET(London[[#Headers],[Country]],1,MATCH($P$9,London[#Headers],0)-1,COUNT(London[Gold])),ROW(I82)-london.startrow)","v":1},{"$f":"VLOOKUP($I82,London[],K$8,0)","v":0},{"$f":"VLOOKUP($I82,London[],L$8,0)","v":0},{"$f":"VLOOKUP($I82,London[],M$8,0)","v":1}]
["Portugal",0,1,0,1,null,null,null,{"$f":"INDEX(London[Country],LARGE(IF(J83=OFFSET(London[[#Headers],[Country]],1,MATCH($P$9,London[#Headers],0)-1,COUNT(London[Gold])),ROW(OFFSET(London[[#Headers],[Country]],1,MATCH($P$9,London[#Headers],0)-1,COUNT(London[Gold])))-london.startrow,0),COUNTIF($J$10:J83,J83)))","v":"Afghanistan"},{"$f":"LARGE(OFFSET(London[[#Headers],[Country]],1,MATCH($P$9,London[#Headers],0)-1,COUNT(London[Gold])),ROW(I83)-london.startrow)","v":1},{"$f":"VLOOKUP($I83,London[],K$8,0)","v":0},{"$f":"VLOOKUP($I83,London[],L$8,0)","v":0},{"$f":"VLOOKUP($I83,London[],M$8,0)","v":1}]
["Greece",0,0,2,2,null,null,null,{"$f":"INDEX(London[Country],LARGE(IF(J84=OFFSET(London[[#Headers],[Country]],1,MATCH($P$9,London[#Headers],0)-1,COUNT(London[Gold])),ROW(OFFSET(London[[#Headers],[Country]],1,MATCH($P$9,London[#Headers],0)-1,COUNT(London[Gold])))-london.startrow,0),COUNTIF($J$10:J84,J84)))","v":"Portugal"},{"$f":"LARGE(OFFSET(London[[#Headers],[Country]],1,MATCH($P$9,London[#Headers],0)-1,COUNT(London[Gold])),ROW(I84)-london.startrow)","v":1},{"$f":"VLOOKUP($I84,London[],K$8,0)","v":0},{"$f":"VLOOKUP($I84,London[],L$8,0)","v":1},{"$f":"VLOOKUP($I84,London[],M$8,0)","v":0}]
["Moldova",0,0,2,2,null,null,null,{"$f":"INDEX(London[Country],LARGE(IF(J85=OFFSET(London[[#Headers],[Country]],1,MATCH($P$9,London[#Headers],0)-1,COUNT(London[Gold])),ROW(OFFSET(London[[#Headers],[Country]],1,MATCH($P$9,London[#Headers],0)-1,COUNT(London[Gold])))-london.startrow,0),COUNTIF($J$10:J85,J85)))","v":"Montenegro"},{"$f":"LARGE(OFFSET(London[[#Headers],[Country]],1,MATCH($P$9,London[#Headers],0)-1,COUNT(London[Gold])),ROW(I85)-london.startrow)","v":1},{"$f":"VLOOKUP($I85,London[],K$8,0)","v":0},{"$f":"VLOOKUP($I85,London[],L$8,0)","v":1},{"$f":"VLOOKUP($I85,London[],M$8,0)","v":0}]
["Qatar",0,0,2,2,null,null,null,{"$f":"INDEX(London[Country],LARGE(IF(J86=OFFSET(London[[#Headers],[Country]],1,MATCH($P$9,London[#Headers],0)-1,COUNT(London[Gold])),ROW(OFFSET(London[[#Headers],[Country]],1,MATCH($P$9,London[#Headers],0)-1,COUNT(London[Gold])))-london.startrow,0),COUNTIF($J$10:J86,J86)))","v":"Guatemala"},{"$f":"LARGE(OFFSET(London[[#Headers],[Country]],1,MATCH($P$9,London[#Headers],0)-1,COUNT(London[Gold])),ROW(I86)-london.startrow)","v":1},{"$f":"VLOOKUP($I86,London[],K$8,0)","v":0},{"$f":"VLOOKUP($I86,London[],L$8,0)","v":1},{"$f":"VLOOKUP($I86,London[],M$8,0)","v":0}]
["Singapore",0,0,2,2,null,null,null,{"$f":"INDEX(London[Country],LARGE(IF(J87=OFFSET(London[[#Headers],[Country]],1,MATCH($P$9,London[#Headers],0)-1,COUNT(London[Gold])),ROW(OFFSET(London[[#Headers],[Country]],1,MATCH($P$9,London[#Headers],0)-1,COUNT(London[Gold])))-london.startrow,0),COUNTIF($J$10:J87,J87)))","v":"Gabon"},{"$f":"LARGE(OFFSET(London[[#Headers],[Country]],1,MATCH($P$9,London[#Headers],0)-1,COUNT(London[Gold])),ROW(I87)-london.startrow)","v":1},{"$f":"VLOOKUP($I87,London[],K$8,0)","v":0},{"$f":"VLOOKUP($I87,London[],L$8,0)","v":1},{"$f":"VLOOKUP($I87,London[],M$8,0)","v":0}]
["Afghanistan",0,0,1,1,null,null,null,{"$f":"INDEX(London[Country],LARGE(IF(J88=OFFSET(London[[#Headers],[Country]],1,MATCH($P$9,London[#Headers],0)-1,COUNT(London[Gold])),ROW(OFFSET(London[[#Headers],[Country]],1,MATCH($P$9,London[#Headers],0)-1,COUNT(London[Gold])))-london.startrow,0),COUNTIF($J$10:J88,J88)))","v":"Cyprus"},{"$f":"LARGE(OFFSET(London[[#Headers],[Country]],1,MATCH($P$9,London[#Headers],0)-1,COUNT(London[Gold])),ROW(I88)-london.startrow)","v":1},{"$f":"VLOOKUP($I88,London[],K$8,0)","v":0},{"$f":"VLOOKUP($I88,London[],L$8,0)","v":1},{"$f":"VLOOKUP($I88,London[],M$8,0)","v":0}]
["Bahrain",0,0,1,1,null,null,null,{"$f":"INDEX(London[Country],LARGE(IF(J89=OFFSET(London[[#Headers],[Country]],1,MATCH($P$9,London[#Headers],0)-1,COUNT(London[Gold])),ROW(OFFSET(London[[#Headers],[Country]],1,MATCH($P$9,London[#Headers],0)-1,COUNT(London[Gold])))-london.startrow,0),COUNTIF($J$10:J89,J89)))","v":"Botswana"},{"$f":"LARGE(OFFSET(London[[#Headers],[Country]],1,MATCH($P$9,London[#Headers],0)-1,COUNT(London[Gold])),ROW(I89)-london.startrow)","v":1},{"$f":"VLOOKUP($I89,London[],K$8,0)","v":0},{"$f":"VLOOKUP($I89,London[],L$8,0)","v":1},{"$f":"VLOOKUP($I89,London[],M$8,0)","v":0}]
["Hong Kong",0,0,1,1,null,null,null,{"$f":"INDEX(London[Country],LARGE(IF(J90=OFFSET(London[[#Headers],[Country]],1,MATCH($P$9,London[#Headers],0)-1,COUNT(London[Gold])),ROW(OFFSET(London[[#Headers],[Country]],1,MATCH($P$9,London[#Headers],0)-1,COUNT(London[Gold])))-london.startrow,0),COUNTIF($J$10:J90,J90)))","v":"Venezuela"},{"$f":"LARGE(OFFSET(London[[#Headers],[Country]],1,MATCH($P$9,London[#Headers],0)-1,COUNT(London[Gold])),ROW(I90)-london.startrow)","v":1},{"$f":"VLOOKUP($I90,London[],K$8,0)","v":1},{"$f":"VLOOKUP($I90,London[],L$8,0)","v":0},{"$f":"VLOOKUP($I90,London[],M$8,0)","v":0}]
["Saudi Arabia",0,0,1,1,null,null,null,{"$f":"INDEX(London[Country],LARGE(IF(J91=OFFSET(London[[#Headers],[Country]],1,MATCH($P$9,London[#Headers],0)-1,COUNT(London[Gold])),ROW(OFFSET(London[[#Headers],[Country]],1,MATCH($P$9,London[#Headers],0)-1,COUNT(London[Gold])))-london.startrow,0),COUNTIF($J$10:J91,J91)))","v":"Uganda"},{"$f":"LARGE(OFFSET(London[[#Headers],[Country]],1,MATCH($P$9,London[#Headers],0)-1,COUNT(London[Gold])),ROW(I91)-london.startrow)","v":1},{"$f":"VLOOKUP($I91,London[],K$8,0)","v":1},{"$f":"VLOOKUP($I91,London[],L$8,0)","v":0},{"$f":"VLOOKUP($I91,London[],M$8,0)","v":0}]
["Kuwait",0,0,1,1,null,null,null,{"$f":"INDEX(London[Country],LARGE(IF(J92=OFFSET(London[[#Headers],[Country]],1,MATCH($P$9,London[#Headers],0)-1,COUNT(London[Gold])),ROW(OFFSET(London[[#Headers],[Country]],1,MATCH($P$9,London[#Headers],0)-1,COUNT(London[Gold])))-london.startrow,0),COUNTIF($J$10:J92,J92)))","v":"Grenada"},{"$f":"LARGE(OFFSET(London[[#Headers],[Country]],1,MATCH($P$9,London[#Headers],0)-1,COUNT(London[Gold])),ROW(I92)-london.startrow)","v":1},{"$f":"VLOOKUP($I92,London[],K$8,0)","v":1},{"$f":"VLOOKUP($I92,London[],L$8,0)","v":0},{"$f":"VLOOKUP($I92,London[],M$8,0)","v":0}]
["Morocco",0,0,1,1,null,null,null,{"$f":"INDEX(London[Country],LARGE(IF(J93=OFFSET(London[[#Headers],[Country]],1,MATCH($P$9,London[#Headers],0)-1,COUNT(London[Gold])),ROW(OFFSET(London[[#Headers],[Country]],1,MATCH($P$9,London[#Headers],0)-1,COUNT(London[Gold])))-london.startrow,0),COUNTIF($J$10:J93,J93)))","v":"Bahamas"},{"$f":"LARGE(OFFSET(London[[#Headers],[Country]],1,MATCH($P$9,London[#Headers],0)-1,COUNT(London[Gold])),ROW(I93)-london.startrow)","v":1},{"$f":"VLOOKUP($I93,London[],K$8,0)","v":1},{"$f":"VLOOKUP($I93,London[],L$8,0)","v":0},{"$f":"VLOOKUP($I93,London[],M$8,0)","v":0}]
["Tajikistan",0,0,1,1,null,null,null,{"$f":"INDEX(London[Country],LARGE(IF(J94=OFFSET(London[[#Headers],[Country]],1,MATCH($P$9,London[#Headers],0)-1,COUNT(London[Gold])),ROW(OFFSET(London[[#Headers],[Country]],1,MATCH($P$9,London[#Headers],0)-1,COUNT(London[Gold])))-london.startrow,0),COUNTIF($J$10:J94,J94)))","v":"Algeria"},{"$f":"LARGE(OFFSET(London[[#Headers],[Country]],1,MATCH($P$9,London[#Headers],0)-1,COUNT(London[Gold])),ROW(I94)-london.startrow)","v":1},{"$f":"VLOOKUP($I94,London[],K$8,0)","v":1},{"$f":"VLOOKUP($I94,London[],L$8,0)","v":0},{"$f":"VLOOKUP($I94,London[],M$8,0)","v":0}]

{"sheet":"Rio","index":1,"n_rows":160,"n_cols":42,"rows_kept":160,"cut":false,"hidden":false,"merged":[]}
["First Row",{"$f":"ROW(Rio[#Headers])","v":10}]
["Scrolling Link",0]
["Countries",{"$f":"COUNTA(Rio[Country])","v":88}]
["No of Golds",{"$f":"SUM(Rio[Gold])","v":307}]
["No of Silver",{"$f":"SUM(Rio[Silver])","v":307}]
["No of Bronze",{"$f":"SUM(Rio[Bronze])","v":361}]
["No of Overall",{"$f":"SUM(Rio[Overall])","v":975}]
["Comparision Country Selection","Denmark"]
[null,null,null,null,null,null,null,null,null,null,{"$f":"SMALL(IF(NOT($J10=Rio[[#Headers],[Gold]:[Overall]]),COLUMN(Rio[[#Headers],[Gold]:[Overall]])),COLUMNS($K9:K9))","v":2},{"$f":"SMALL(IF(NOT($J10=Rio[[#Headers],[Gold]:[Overall]]),COLUMN(Rio[[#Headers],[Gold]:[Overall]])),COLUMNS($K9:L9))","v":3},{"$f":"SMALL(IF(NOT($J10=Rio[[#Headers],[Gold]:[Overall]]),COLUMN(Rio[[#Headers],[Gold]:[Overall]])),COLUMNS($K9:M9))","v":4},null,"Sorting Order","Medal",null,"Row Labels",null,"Comparison Calculations RIO",null,null,"Comparison Calculations LONDON"]
["Country","Gold","Silver","Bronze","Overall",null,null,null,"Countries",{"$f":"Rio.medal","v":"Overall"},{"$f":"INDEX(Rio[#Headers],K9)","v":"Gold"},{"$f":"INDEX(Rio[#Headers],L9)","v":"Silver"},{"$f":"INDEX(Rio[#Headers],M9)","v":"Bronze"},null,null,"Overall",null,"Overall",null,"Country",{"$f":"Comparison.medal","v":"Overall"},null,"Rio's Rank in London","Country",{"$f":"Comparison.medal","v":"Overall"},null,null,"Count","Ranking Dummy",null,"Common X Axis","Y Axis for Connectors",null,"Dummy for Values not found",null,"Y Axis Back Up Calc",null,"Highlighted Country","Highlight Dummy 1","Highlight Dummy 2"]
["United States",46,37,38,{"$f":"SUM(B11:D11)","v":121},null,null,null,{"$f":"INDEX(Rio[Country],LARGE(IF(J11=OFFSET(Rio[[#Headers],[Country]],1,MATCH(Rio.medal,Rio[#Headers],0)-1,COUNT(Rio[Gold])),ROW(OFFSET(Rio[[#Headers],[Country]],1,MATCH(Rio.medal,Rio[#Headers],0)-1,COUNT(Rio[Gold])))-Rio.startrow,0),COUNTIF(J$11:$J11,J11)))","v":"United States"},{"$f":"LARGE(OFFSET(Rio[[#Headers],[Country]],1,MATCH(Rio.medal,Rio[#Headers],0)-1,COUNT(Rio[Gold])),ROW(I11)-Rio.startrow)","v":121},{"$f":"VLOOKUP($I11,Rio[],K$9,0)","v":46},{"$f":"VLOOKUP($I11,Rio[],L$9,0)","v":37},{"$f":"VLOOKUP($I11,Rio[],M$9,0)","v":38},null,null,null,null,null,null,{"$f":"INDEX(Rio[Country],LARGE(IF(U11=OFFSET(Rio[[#Headers],[Country]],1,MATCH(Comparison.medal,Rio[#Headers],0)-1,COUNT(Rio[Gold])),ROW(OFFSET(Rio[[#Headers],[Country]],1,MATCH(Comparison.medal,Rio[#Headers],0)-1,COUNT(Rio[Gold])))-Rio.startrow,0),COUNTIF($U$11:U11,U11)))","v":"United States"},{"$f":"LARGE(OFFSET(Rio[[#Headers],[Country]],1,MATCH(Comparison.medal,Rio[#Headers],0)-1,COUNT(Rio[Gold])),ROW(S11)-Rio.startrow)","v":121},null,{"$f":"MATCH(T11,$X$11:$X$61,0)","v":1},{"$f":"INDEX(London[Country],LARGE(IF(Y11=OFFSET(London[[#Headers],[Country]],1,MATCH(Comparison.medal,London[#Headers],0)-1,COUNT(London[Gold])),ROW(OFFSET(London[[#Headers],[Country]],1,MATCH(Comparison.medal,London[#Headers],0)-1,COUNT(London[Gold])))-london.startrow,0),COUNTIF($Y$11:Y11,Y11)))","v":"United States"},{"$f":"LARGE(OFFSET(London[[#Headers],[Country]],1,MATCH(Comparison.medal,London[#Headers],0)-1,COUNT(London[Gold])),ROW(U11)-Rio.startrow)","v":103},null,null,1,{"$f":"IFERROR(IF(AP11,CEILING(ROWS(AC$11:$AC11),3)/3,CEILING(ROWS(AC$11:$AC11),3)/3),NA())","v":1},null,1,{"$f":"IF(AH11,AJ11,-1)","v":-1},null,{"$f":"NOT(AND(AP11<>\"\",ISERROR(INDEX($W$11:$W$60,AC11))))","v":true},null,{"$f":"-IFERROR(IF(AP11,CEILING(ROWS(AJ$11:$AJ11),3)/3,IFERROR(INDEX($W$11:$W$60,ABS(AJ10)),1)),0)","v":-1},null,{"$f":"IF(AN11,IF(AH11=FALSE,1,AF11),NA())","v":{"$error":"#N/A"}},{"$f":"OR(AM10,AND(-MATCH(Overall.country,$T$11:$T$60,0)=AJ11,AP11))","v":false},{"$f":"OR(AM11,AM10)","v":false},null,{"$f":"IF(MOD(AB11,3)=0,\"\",IF(AP10=\"\",TRUE,FALSE))","v":true}]
["Great Britain",27,23,17,67,null,null,null,{"$f":"INDEX(Rio[Country],LARGE(IF(J12=OFFSET(Rio[[#Headers],[Country]],1,MATCH(Rio.medal,Rio[#Headers],0)-1,COUNT(Rio[Gold])),ROW(OFFSET(Rio[[#Headers],[Country]],1,MATCH(Rio.medal,Rio[#Headers],0)-1,COUNT(Rio[Gold])))-Rio.startrow,0),COUNTIF(J$11:$J12,J12)))","v":"China"},{"$f":"LARGE(OFFSET(Rio[[#Headers],[Country]],1,MATCH(Rio.medal,Rio[#Headers],0)-1,COUNT(Rio[Gold])),ROW(I12)-Rio.startrow)","v":70},{"$f":"VLOOKUP($I12,Rio[],K$9,0)","v":26},{"$f":"VLOOKUP($I12,Rio[],L$9,0)","v":18},{"$f":"VLOOKUP($I12,Rio[],M$9,0)","v":26},null,null,null,null,null,null,{"$f":"INDEX(Rio[Country],LARGE(IF(U12=OFFSET(Rio[[#Headers],[Country]],1,MATCH(Comparison.medal,Rio[#Headers],0)-1,COUNT(Rio[Gold])),ROW(OFFSET(Rio[[#Headers],[Country]],1,MATCH(Comparison.medal,Rio[#Headers],0)-1,COUNT(Rio[Gold])))-Rio.startrow,0),COUNTIF($U$11:U12,U12)))","v":"China"},{"$f":"LARGE(OFFSET(Rio[[#Headers],[Country]],1,MATCH(Comparison.medal,Rio[#Headers],0)-1,COUNT(Rio[Gold])),ROW(S12)-Rio.startrow)","v":70},null,{"$f":"MATCH(T12,$X$11:$X$61,0)","v":2},{"$f":"INDEX(London[Country],LARGE(IF(Y12=OFFSET(London[[#Headers],[Country]],1,MATCH(Comparison.medal,London[#Headers],0)-1,COUNT(London[Gold])),ROW(OFFSET(London[[#Headers],[Country]],1,MATCH(Comparison.medal,London[#Headers],0)-1,COUNT(London[Gold])))-london.startrow,0),COUNTIF($Y$11:Y12,Y12)))","v":"China"},{"$f":"LARGE(OFFSET(London[[#Headers],[Country]],1,MATCH(Comparison.medal,London[#Headers],0)-1,COUNT(London[Gold])),ROW(U12)-Rio.startrow)","v":88},null,null,{"$f":"AB11+1","v":2},{"$f":"IFERROR(IF(AP12,CEILING(ROWS(AC$11:$AC12),3)/3,CEILING(ROWS(AC$11:$AC12),3)/3),NA())","v":1},null,10,-1,null,true,null,{"$f":"-IFERROR(IF(AP12,CEILING(ROWS(AJ$11:$AJ12),3)/3,IFERROR(INDEX($W$11:$W$60,ABS(AJ11)),1)),0)","v":-1},null,{"$error":"#N/A"},{"$f":"AND(-MATCH(Overall.country,$T$11:$T$60,0)=AJ12,AP12)","v":false},false,null,false]
["China",26,18,26,70,null,null,null,{"$f":"INDEX(Rio[Country],LARGE(IF(J13=OFFSET(Rio[[#Headers],[Country]],1,MATCH(Rio.medal,Rio[#Headers],0)-1,COUNT(Rio[Gold])),ROW(OFFSET(Rio[[#Headers],[Country]],1,MATCH(Rio.medal,Rio[#Headers],0)-1,COUNT(Rio[Gold])))-Rio.startrow,0),COUNTIF(J$11:$J13,J13)))","v":"Great Britain"},{"$f":"LARGE(OFFSET(Rio[[#Headers],[Country]],1,MATCH(Rio.medal,Rio[#Headers],0)-1,COUNT(Rio[Gold])),ROW(I13)-Rio.startrow)","v":67},{"$f":"VLOOKUP($I13,Rio[],K$9,0)","v":27},{"$f":"VLOOKUP($I13,Rio[],L$9,0)","v":23},{"$f":"VLOOKUP($I13,Rio[],M$9,0)","v":17},null,null,null,null,null,null,{"$f":"INDEX(Rio[Country],LARGE(IF(U13=OFFSET(Rio[[#Headers],[Country]],1,MATCH(Comparison.medal,Rio[#Headers],0)-1,COUNT(Rio[Gold])),ROW(OFFSET(Rio[[#Headers],[Country]],1,MATCH(Comparison.medal,Rio[#Headers],0)-1,COUNT(Rio[Gold])))-Rio.startrow,0),COUNTIF($U$11:U13,U13)))","v":"Great Britain"},{"$f":"LARGE(OFFSET(Rio[[#Headers],[Country]],1,MATCH(Comparison.medal,Rio[#Headers],0)-1,COUNT(Rio[Gold])),ROW(S13)-Rio.startrow)","v":67},null,4,{"$f":"INDEX(London[Country],LARGE(IF(Y13=OFFSET(London[[#Headers],[Country]],1,MATCH(Comparison.medal,London[#Headers],0)-1,COUNT(London[Gold])),ROW(OFFSET(London[[#Headers],[Country]],1,MATCH(Comparison.medal,London[#Headers],0)-1,COUNT(London[Gold])))-london.startrow,0),COUNTIF($Y$11:Y13,Y13)))","v":"Russia"},{"$f":"LARGE(OFFSET(London[[#Headers],[Country]],1,MATCH(Comparison.medal,London[#Headers],0)-1,COUNT(London[Gold])),ROW(U13)-Rio.startrow)","v":77},null,null,3,{"$f":"IFERROR(IF(AP13,CEILING(ROWS(AC$11:$AC13),3)/3,CEILING(ROWS(AC$11:$AC13),3)/3),NA())","v":{"$error":"#N/A"}},null,null,0,null,true,null,{"$f":"-IFERROR(IF(AP13,CEILING(ROWS(AJ$11:$AJ13),3)/3,IFERROR(INDEX($W$11:$W$60,ABS(AJ12)),1)),0)","v":0},null,{"$error":"#N/A"},false,false,null,""]
["Russia",19,18,19,56,null,null,null,{"$f":"INDEX(Rio[Country],LARGE(IF(J14=OFFSET(Rio[[#Headers],[Country]],1,MATCH(Rio.medal,Rio[#Headers],0)-1,COUNT(Rio[Gold])),ROW(OFFSET(Rio[[#Headers],[Country]],1,MATCH(Rio.medal,Rio[#Headers],0)-1,COUNT(Rio[Gold])))-Rio.startrow,0),COUNTIF(J$11:$J14,J14)))","v":"Russia"},{"$f":"LARGE(OFFSET(Rio[[#Headers],[Country]],1,MATCH(Rio.medal,Rio[#Headers],0)-1,COUNT(Rio[Gold])),ROW(I14)-Rio.startrow)","v":56},{"$f":"VLOOKUP($I14,Rio[],K$9,0)","v":19},{"$f":"VLOOKUP($I14,Rio[],L$9,0)","v":18},{"$f":"VLOOKUP($I14,Rio[],M$9,0)","v":19},null,null,null,null,null,null,{"$f":"INDEX(Rio[Country],LARGE(IF(U14=OFFSET(Rio[[#Headers],[Country]],1,MATCH(Comparison.medal,Rio[#Headers],0)-1,COUNT(Rio[Gold])),ROW(OFFSET(Rio[[#Headers],[Country]],1,MATCH(Comparison.medal,Rio[#Headers],0)-1,COUNT(Rio[Gold])))-Rio.startrow,0),COUNTIF($U$11:U14,U14)))","v":"Russia"},{"$f":"LARGE(OFFSET(Rio[[#Headers],[Country]],1,MATCH(Comparison.medal,Rio[#Headers],0)-1,COUNT(Rio[Gold])),ROW(S14)-Rio.startrow)","v":56},null,3,{"$f":"INDEX(London[Country],LARGE(IF(Y14=OFFSET(London[[#Headers],[Country]],1,MATCH(Comparison.medal,London[#Headers],0)-1,COUNT(London[Gold])),ROW(OFFSET(London[[#Headers],[Country]],1,MATCH(Comparison.medal,London[#Headers],0)-1,COUNT(London[Gold])))-london.startrow,0),COUNTIF($Y$11:Y14,Y14)))","v":"Great Britain"},{"$f":"LARGE(OFFSET(London[[#Headers],[Country]],1,MATCH(Comparison.medal,London[#Headers],0)-1,COUNT(London[Gold])),ROW(U14)-Rio.startrow)","v":65},null,null,4,{"$f":"IFERROR(IF(AP14,CEILING(ROWS(AC$11:$AC14),3)/3,CEILING(ROWS(AC$11:$AC14),3)/3),NA())","v":2},null,1,-2,null,true,null,{"$f":"-IFERROR(IF(AP14,CEILING(ROWS(AJ$11:$AJ14),3)/3,IFERROR(INDEX($W$11:$W$60,ABS(AJ13)),1)),0)","v":-2},null,{"$error":"#N/A"},false,false,null,true]
["Germany",17,10,15,42,null,null,null,{"$f":"INDEX(Rio[Country],LARGE(IF(J15=OFFSET(Rio[[#Headers],[Country]],1,MATCH(Rio.medal,Rio[#Headers],0)-1,COUNT(Rio[Gold])),ROW(OFFSET(Rio[[#Headers],[Country]],1,MATCH(Rio.medal,Rio[#Headers],0)-1,COUNT(Rio[Gold])))-Rio.startrow,0),COUNTIF(J$11:$J15,J15)))","v":"France"},{"$f":"LARGE(OFFSET(Rio[[#Headers],[Country]],1,MATCH(Rio.medal,Rio[#Headers],0)-1,COUNT(Rio[Gold])),ROW(I15)-Rio.startrow)","v":42},{"$f":"VLOOKUP($I15,Rio[],K$9,0)","v":10},{"$f":"VLOOKUP($I15,Rio[],L$9,0)","v":18},{"$f":"VLOOKUP($I15,Rio[],M$9,0)","v":14},null,null,null,null,null,null,{"$f":"INDEX(Rio[Country],LARGE(IF(U15=OFFSET(Rio[[#Headers],[Country]],1,MATCH(Comparison.medal,Rio[#Headers],0)-1,COUNT(Rio[Gold])),ROW(OFFSET(Rio[[#Headers],[Country]],1,MATCH(Comparison.medal,Rio[#Headers],0)-1,COUNT(Rio[Gold])))-Rio.startrow,0),COUNTIF($U$11:U15,U15)))","v":"France"},{"$f":"LARGE(OFFSET(Rio[[#Headers],[Country]],1,MATCH(Comparison.medal,Rio[#Headers],0)-1,COUNT(Rio[Gold])),ROW(S15)-Rio.startrow)","v":42},null,8,{"$f":"INDEX(London[Country],LARGE(IF(Y15=OFFSET(London[[#Headers],[Country]],1,MATCH(Comparison.medal,London[#Headers],0)-1,COUNT(London[Gold])),ROW(OFFSET(London[[#Headers],[Country]],1,MATCH(Comparison.medal,London[#Headers],0)-1,COUNT(London[Gold])))-london.startrow,0),COUNTIF($Y$11:Y15,Y15)))","v":"Germany"},{"$f":"LARGE(OFFSET(London[[#Headers],[Country]],1,MATCH(Comparison.medal,London[#Headers],0)-1,COUNT(London[Gold])),ROW(U15)-Rio.startrow)","v":44},null,null,5,{"$f":"IFERROR(IF(AP15,CEILING(ROWS(AC$11:$AC15),3)/3,CEILING(ROWS(AC$11:$AC15),3)/3),NA())","v":2},null,10,-2,null,true,null,{"$f":"-IFERROR(IF(AP15,CEILING(ROWS(AJ$11:$AJ15),3)/3,IFERROR(INDEX($W$11:$W$60,ABS(AJ14)),1)),0)","v":-2},null,{"$error":"#N/A"},false,false,null,false]
["Japan",12,8,21,41,null,null,null,{"$f":"INDEX(Rio[Country],LARGE(IF(J16=OFFSET(Rio[[#Headers],[Country]],1,MATCH(Rio.medal,Rio[#Headers],0)-1,COUNT(Rio[Gold])),ROW(OFFSET(Rio[[#Headers],[Country]],1,MATCH(Rio.medal,Rio[#Headers],0)-1,COUNT(Rio[Gold])))-Rio.startrow,0),COUNTIF(J$11:$J16,J16)))","v":"Germany"},{"$f":"LARGE(OFFSET(Rio[[#Headers],[Country]],1,MATCH(Rio.medal,Rio[#Headers],0)-1,COUNT(Rio[Gold])),ROW(I16)-Rio.startrow)","v":42},{"$f":"VLOOKUP($I16,Rio[],K$9,0)","v":17},{"$f":"VLOOKUP($I16,Rio[],L$9,0)","v":10},{"$f":"VLOOKUP($I16,Rio[],M$9,0)","v":15},null,null,null,null,null,null,{"$f":"INDEX(Rio[Country],LARGE(IF(U16=OFFSET(Rio[[#Headers],[Country]],1,MATCH(Comparison.medal,Rio[#Headers],0)-1,COUNT(Rio[Gold])),ROW(OFFSET(Rio[[#Headers],[Country]],1,MATCH(Comparison.medal,Rio[#Headers],0)-1,COUNT(Rio[Gold])))-Rio.startrow,0),COUNTIF($U$11:U16,U16)))","v":"Germany"},{"$f":"LARGE(OFFSET(Rio[[#Headers],[Country]],1,MATCH(Comparison.medal,Rio[#Headers],0)-1,COUNT(Rio[Gold])),ROW(S16)-Rio.startrow)","v":42},null,5,{"$f":"INDEX(London[Country],LARGE(IF(Y16=OFFSET(London[[#Headers],[Country]],1,MATCH(Comparison.medal,London[#Headers],0)-1,COUNT(London[Gold])),ROW(OFFSET(London[[#Headers],[Country]],1,MATCH(Comparison.medal,London[#Headers],0)-1,COUNT(London[Gold])))-london.startrow,0),COUNTIF($Y$11:Y16,Y16)))","v":"Japan"},{"$f":"LARGE(OFFSET(London[[#Headers],[Country]],1,MATCH(Comparison.medal,London[#Headers],0)-1,COUNT(London[Gold])),ROW(U16)-Rio.startrow)","v":38},null,null,6,{"$f":"IFERROR(IF(AP16,CEILING(ROWS(AC$11:$AC16),3)/3,CEILING(ROWS(AC$11:$AC16),3)/3),NA())","v":{"$error":"#N/A"}},null,null,0,null,true,null,{"$f":"-IFERROR(IF(AP16,CEILING(ROWS(AJ$11:$AJ16),3)/3,IFERROR(INDEX($W$11:$W$60,ABS(AJ15)),1)),0)","v":0},null,{"$error":"#N/A"},false,false,null,""]
["France",10,18,14,42,null,null,null,{"$f":"INDEX(Rio[Country],LARGE(IF(J17=OFFSET(Rio[[#Headers],[Country]],1,MATCH(Rio.medal,Rio[#Headers],0)-1,COUNT(Rio[Gold])),ROW(OFFSET(Rio[[#Headers],[Country]],1,MATCH(Rio.medal,Rio[#Headers],0)-1,COUNT(Rio[Gold])))-Rio.startrow,0),COUNTIF(J$11:$J17,J17)))","v":"Japan"},{"$f":"LARGE(OFFSET(Rio[[#Headers],[Country]],1,MATCH(Rio.medal,Rio[#Headers],0)-1,COUNT(Rio[Gold])),ROW(I17)-Rio.startrow)","v":41},{"$f":"VLOOKUP($I17,Rio[],K$9,0)","v":12},{"$f":"VLOOKUP($I17,Rio[],L$9,0)","v":8},{"$f":"VLOOKUP($I17,Rio[],M$9,0)","v":21},null,null,null,null,null,null,{"$f":"INDEX(Rio[Country],LARGE(IF(U17=OFFSET(Rio[[#Headers],[Country]],1,MATCH(Comparison.medal,Rio[#Headers],0)-1,COUNT(Rio[Gold])),ROW(OFFSET(Rio[[#Headers],[Country]],1,MATCH(Comparison.medal,Rio[#Headers],0)-1,COUNT(Rio[Gold])))-Rio.startrow,0),COUNTIF($U$11:U17,U17)))","v":"Japan"},{"$f":"LARGE(OFFSET(Rio[[#Headers],[Country]],1,MATCH(Comparison.medal,Rio[#Headers],0)-1,COUNT(Rio[Gold])),ROW(S17)-Rio.startrow)","v":41},null,6,{"$f":"INDEX(London[Country],LARGE(IF(Y17=OFFSET(London[[#Headers],[Country]],1,MATCH(Comparison.medal,London[#Headers],0)-1,COUNT(London[Gold])),ROW(OFFSET(London[[#Headers],[Country]],1,MATCH(Comparison.medal,London[#Headers],0)-1,COUNT(London[Gold])))-london.startrow,0),COUNTIF($Y$11:Y17,Y17)))","v":"Australia"},{"$f":"LARGE(OFFSET(London[[#Headers],[Country]],1,MATCH(Comparison.medal,London[#Headers],0)-1,COUNT(London[Gold])),ROW(U17)-Rio.startrow)","v":35},null,null,7,{"$f":"IFERROR(IF(AP17,CEILING(ROWS(AC$11:$AC17),3)/3,CEILING(ROWS(AC$11:$AC17),3)/3),NA())","v":3},null,1,-3,null,true,null,{"$f":"-IFERROR(IF(AP17,CEILING(ROWS(AJ$11:$AJ17),3)/3,IFERROR(INDEX($W$11:$W$60,ABS(AJ16)),1)),0)","v":-3},null,{"$error":"#N/A"},false,false,null,true]
["Republic of Korea",9,3,9,21,null,null,null,{"$f":"INDEX(Rio[Country],LARGE(IF(J18=OFFSET(Rio[[#Headers],[Country]],1,MATCH(Rio.medal,Rio[#Headers],0)-1,COUNT(Rio[Gold])),ROW(OFFSET(Rio[[#Headers],[Country]],1,MATCH(Rio.medal,Rio[#Headers],0)-1,COUNT(Rio[Gold])))-Rio.startrow,0),COUNTIF(J$11:$J18,J18)))","v":"Australia"},{"$f":"LARGE(OFFSET(Rio[[#Headers],[Country]],1,MATCH(Rio.medal,Rio[#Headers],0)-1,COUNT(Rio[Gold])),ROW(I18)-Rio.startrow)","v":29},{"$f":"VLOOKUP($I18,Rio[],K$9,0)","v":8},{"$f":"VLOOKUP($I18,Rio[],L$9,0)","v":11},{"$f":"VLOOKUP($I18,Rio[],M$9,0)","v":10},null,null,null,null,null,null,{"$f":"INDEX(Rio[Country],LARGE(IF(U18=OFFSET(Rio[[#Headers],[Country]],1,MATCH(Comparison.medal,Rio[#Headers],0)-1,COUNT(Rio[Gold])),ROW(OFFSET(Rio[[#Headers],[Country]],1,MATCH(Comparison.medal,Rio[#Headers],0)-1,COUNT(Rio[Gold])))-Rio.startrow,0),COUNTIF($U$11:U18,U18)))","v":"Australia"},{"$f":"LARGE(OFFSET(Rio[[#Headers],[Country]],1,MATCH(Comparison.medal,Rio[#Headers],0)-1,COUNT(Rio[Gold])),ROW(S18)-Rio.startrow)","v":29},null,7,{"$f":"INDEX(London[Country],LARGE(IF(Y18=OFFSET(London[[#Headers],[Country]],1,MATCH(Comparison.medal,London[#Headers],0)-1,COUNT(London[Gold])),ROW(OFFSET(London[[#Headers],[Country]],1,MATCH(Comparison.medal,London[#Headers],0)-1,COUNT(London[Gold])))-london.startrow,0),COUNTIF($Y$11:Y18,Y18)))","v":"France"},{"$f":"LARGE(OFFSET(London[[#Headers],[Country]],1,MATCH(Comparison.medal,London[#Headers],0)-1,COUNT(London[Gold])),ROW(U18)-Rio.startrow)","v":34},null,null,8,{"$f":"IFERROR(IF(AP18,CEILING(ROWS(AC$11:$AC18),3)/3,CEILING(ROWS(AC$11:$AC18),3)/3),NA())","v":3},null,10,-4,null,true,null,{"$f":"-IFERROR(IF(AP18,CEILING(ROWS(AJ$11:$AJ18),3)/3,IFERROR(INDEX($W$11:$W$60,ABS(AJ17)),1)),0)","v":-4},null,{"$error":"#N/A"},false,false,null,false]
["Italy",8,12,8,28,null,null,null,{"$f":"INDEX(Rio[Country],LARGE(IF(J19=OFFSET(Rio[[#Headers],[Country]],1,MATCH(Rio.medal,Rio[#Headers],0)-1,COUNT(Rio[Gold])),ROW(OFFSET(Rio[[#Headers],[Country]],1,MATCH(Rio.medal,Rio[#Headers],0)-1,COUNT(Rio[Gold])))-Rio.startrow,0),COUNTIF(J$11:$J19,J19)))","v":"Italy"},{"$f":"LARGE(OFFSET(Rio[[#Headers],[Country]],1,MATCH(Rio.medal,Rio[#Headers],0)-1,COUNT(Rio[Gold])),ROW(I19)-Rio.startrow)","v":28},{"$f":"VLOOKUP($I19,Rio[],K$9,0)","v":8},{"$f":"VLOOKUP($I19,Rio[],L$9,0)","v":12},{"$f":"VLOOKUP($I19,Rio[],M$9,0)","v":8},null,null,null,null,null,null,{"$f":"INDEX(Rio[Country],LARGE(IF(U19=OFFSET(Rio[[#Headers],[Country]],1,MATCH(Comparison.medal,Rio[#Headers],0)-1,COUNT(Rio[Gold])),ROW(OFFSET(Rio[[#Headers],[Country]],1,MATCH(Comparison.medal,Rio[#Headers],0)-1,COUNT(Rio[Gold])))-Rio.startrow,0),COUNTIF($U$11:U19,U19)))","v":"Italy"},{"$f":"LARGE(OFFSET(Rio[[#Headers],[Country]],1,MATCH(Comparison.medal,Rio[#Headers],0)-1,COUNT(Rio[Gold])),ROW(S19)-Rio.startrow)","v":28},null,9,{"$f":"INDEX(London[Country],LARGE(IF(Y19=OFFSET(London[[#Headers],[Country]],1,MATCH(Comparison.medal,London[#Headers],0)-1,COUNT(London[Gold])),ROW(OFFSET(London[[#Headers],[Country]],1,MATCH(Comparison.medal,London[#Headers],0)-1,COUNT(London[Gold])))-london.startrow,0),COUNTIF($Y$11:Y19,Y19)))","v":"Italy"},{"$f":"LARGE(OFFSET(London[[#Headers],[Country]],1,MATCH(Comparison.medal,London[#Headers],0)-1,COUNT(London[Gold])),ROW(U19)-Rio.startrow)","v":28},null,null,9,{"$f":"IFERROR(IF(AP19,CEILING(ROWS(AC$11:$AC19),3)/3,CEILING(ROWS(AC$11:$AC19),3)/3),NA())","v":{"$error":"#N/A"}},null,null,0,null,true,null,{"$f":"-IFERROR(IF(AP19,CEILING(ROWS(AJ$11:$AJ19),3)/3,IFERROR(INDEX($W$11:$W$60,ABS(AJ18)),1)),0)","v":0},null,{"$error":"#N/A"},false,false,null,""]
["Australia",8,11,10,29,null,null,null,{"$f":"INDEX(Rio[Country],LARGE(IF(J20=OFFSET(Rio[[#Headers],[Country]],1,MATCH(Rio.medal,Rio[#Headers],0)-1,COUNT(Rio[Gold])),ROW(OFFSET(Rio[[#Headers],[Country]],1,MATCH(Rio.medal,Rio[#Headers],0)-1,COUNT(Rio[Gold])))-Rio.startrow,0),COUNTIF(J$11:$J20,J20)))","v":"Canada"},{"$f":"LARGE(OFFSET(Rio[[#Headers],[Country]],1,MATCH(Rio.medal,Rio[#Headers],0)-1,COUNT(Rio[Gold])),ROW(I20)-Rio.startrow)","v":22},{"$f":"VLOOKUP($I20,Rio[],K$9,0)","v":4},{"$f":"VLOOKUP($I20,Rio[],L$9,0)","v":3},{"$f":"VLOOKUP($I20,Rio[],M$9,0)","v":15},null,null,null,null,null,null,{"$f":"INDEX(Rio[Country],LARGE(IF(U20=OFFSET(Rio[[#Headers],[Country]],1,MATCH(Comparison.medal,Rio[#Headers],0)-1,COUNT(Rio[Gold])),ROW(OFFSET(Rio[[#Headers],[Country]],1,MATCH(Comparison.medal,Rio[#Headers],0)-1,COUNT(Rio[Gold])))-Rio.startrow,0),COUNTIF($U$11:U20,U20)))","v":"Canada"},{"$f":"LARGE(OFFSET(Rio[[#Headers],[Country]],1,MATCH(Comparison.medal,Rio[#Headers],0)-1,COUNT(Rio[Gold])),ROW(S20)-Rio.startrow)","v":22},null,12,{"$f":"INDEX(London[Country],LARGE(IF(Y20=OFFSET(London[[#Headers],[Country]],1,MATCH(Comparison.medal,London[#Headers],0)-1,COUNT(London[Gold])),ROW(OFFSET(London[[#Headers],[Country]],1,MATCH(Comparison.medal,London[#Headers],0)-1,COUNT(London[Gold])))-london.startrow,0),COUNTIF($Y$11:Y20,Y20)))","v":"South Korea"},{"$f":"LARGE(OFFSET(London[[#Headers],[Country]],1,MATCH(Comparison.medal,London[#Headers],0)-1,COUNT(London[Gold])),ROW(U20)-Rio.startrow)","v":28},null,null,10,{"$f":"IFERROR(IF(AP20,CEILING(ROWS(AC$11:$AC20),3)/3,CEILING(ROWS(AC$11:$AC20),3)/3),NA())","v":4},null,1,-4,null,true,null,{"$f":"-IFERROR(IF(AP20,CEILING(ROWS(AJ$11:$AJ20),3)/3,IFERROR(INDEX($W$11:$W$60,ABS(AJ19)),1)),0)","v":-4},null,{"$error":"#N/A"},false,false,null,true]
["Netherlands",8,7,4,19,null,null,null,{"$f":"INDEX(Rio[Country],LARGE(IF(J21=OFFSET(Rio[[#Headers],[Country]],1,MATCH(Rio.medal,Rio[#Headers],0)-1,COUNT(Rio[Gold])),ROW(OFFSET(Rio[[#Headers],[Country]],1,MATCH(Rio.medal,Rio[#Headers],0)-1,COUNT(Rio[Gold])))-Rio.startrow,0),COUNTIF(J$11:$J21,J21)))","v":"Republic of Korea"},{"$f":"LARGE(OFFSET(Rio[[#Headers],[Country]],1,MATCH(Rio.medal,Rio[#Headers],0)-1,COUNT(Rio[Gold])),ROW(I21)-Rio.startrow)","v":21},{"$f":"VLOOKUP($I21,Rio[],K$9,0)","v":9},{"$f":"VLOOKUP($I21,Rio[],L$9,0)","v":3},{"$f":"VLOOKUP($I21,Rio[],M$9,0)","v":9},null,null,null,null,null,null,{"$f":"INDEX(Rio[Country],LARGE(IF(U21=OFFSET(Rio[[#Headers],[Country]],1,MATCH(Comparison.medal,Rio[#Headers],0)-1,COUNT(Rio[Gold])),ROW(OFFSET(Rio[[#Headers],[Country]],1,MATCH(Comparison.medal,Rio[#Headers],0)-1,COUNT(Rio[Gold])))-Rio.startrow,0),COUNTIF($U$11:U21,U21)))","v":"Republic of Korea"},{"$f":"LARGE(OFFSET(Rio[[#Headers],[Country]],1,MATCH(Comparison.medal,Rio[#Headers],0)-1,COUNT(Rio[Gold])),ROW(S21)-Rio.startrow)","v":21},null,{"$error":"#N/A"},{"$f":"INDEX(London[Country],LARGE(IF(Y21=OFFSET(London[[#Headers],[Country]],1,MATCH(Comparison.medal,London[#Headers],0)-1,COUNT(London[Gold])),ROW(OFFSET(London[[#Headers],[Country]],1,MATCH(Comparison.medal,London[#Headers],0)-1,COUNT(London[Gold])))-london.startrow,0),COUNTIF($Y$11:Y21,Y21)))","v":"Netherlands"},{"$f":"LARGE(OFFSET(London[[#Headers],[Country]],1,MATCH(Comparison.medal,London[#Headers],0)-1,COUNT(London[Gold])),ROW(U21)-Rio.startrow)","v":20},null,null,11,{"$f":"IFERROR(IF(AP21,CEILING(ROWS(AC$11:$AC21),3)/3,CEILING(ROWS(AC$11:$AC21),3)/3),NA())","v":4},null,10,-3,null,true,null,{"$f":"-IFERROR(IF(AP21,CEILING(ROWS(AJ$11:$AJ21),3)/3,IFERROR(INDEX($W$11:$W$60,ABS(AJ20)),1)),0)","v":-3},null,{"$error":"#N/A"},false,false,null,false]
["Hungary",8,3,4,15,null,null,null,{"$f":"INDEX(Rio[Country],LARGE(IF(J22=OFFSET(Rio[[#Headers],[Country]],1,MATCH(Rio.medal,Rio[#Headers],0)-1,COUNT(Rio[Gold])),ROW(OFFSET(Rio[[#Headers],[Country]],1,MATCH(Rio.medal,Rio[#Headers],0)-1,COUNT(Rio[Gold])))-Rio.startrow,0),COUNTIF(J$11:$J22,J22)))","v":"Brazil"},{"$f":"LARGE(OFFSET(Rio[[#Headers],[Country]],1,MATCH(Rio.medal,Rio[#Headers],0)-1,COUNT(Rio[Gold])),ROW(I22)-Rio.startrow)","v":19},{"$f":"VLOOKUP($I22,Rio[],K$9,0)","v":7},{"$f":"VLOOKUP($I22,Rio[],L$9,0)","v":6},{"$f":"VLOOKUP($I22,Rio[],M$9,0)","v":6},null,null,null,null,null,null,{"$f":"INDEX(Rio[Country],LARGE(IF(U22=OFFSET(Rio[[#Headers],[Country]],1,MATCH(Comparison.medal,Rio[#Headers],0)-1,COUNT(Rio[Gold])),ROW(OFFSET(Rio[[#Headers],[Country]],1,MATCH(Comparison.medal,Rio[#Headers],0)-1,COUNT(Rio[Gold])))-Rio.startrow,0),COUNTIF($U$11:U22,U22)))","v":"Brazil"},{"$f":"LARGE(OFFSET(Rio[[#Headers],[Country]],1,MATCH(Comparison.medal,Rio[#Headers],0)-1,COUNT(Rio[Gold])),ROW(S22)-Rio.startrow)","v":19},null,15,{"$f":"INDEX(London[Country],LARGE(IF(Y22=OFFSET(London[[#Headers],[Country]],1,MATCH(Comparison.medal,London[#Headers],0)-1,COUNT(London[Gold])),ROW(OFFSET(London[[#Headers],[Country]],1,MATCH(Comparison.medal,London[#Headers],0)-1,COUNT(London[Gold])))-london.startrow,0),COUNTIF($Y$11:Y22,Y22)))","v":"Canada"},{"$f":"LARGE(OFFSET(London[[#Headers],[Country]],1,MATCH(Comparison.medal,London[#Headers],0)-1,COUNT(London[Gold])),ROW(U22)-Rio.startrow)","v":18},null,null,12,{"$f":"IFERROR(IF(AP22,CEILING(ROWS(AC$11:$AC22),3)/3,CEILING(ROWS(AC$11:$AC22),3)/3),NA())","v":{"$error":"#N/A"}},null,null,0,null,true,null,{"$f":"-IFERROR(IF(AP22,CEILING(ROWS(AJ$11:$AJ22),3)/3,IFERROR(INDEX($W$11:$W$60,ABS(AJ21)),1)),0)","v":0},null,{"$error":"#N/A"},false,false,null,""]
["Brazil",7,6,6,19,null,null,null,{"$f":"INDEX(Rio[Country],LARGE(IF(J23=OFFSET(Rio[[#Headers],[Country]],1,MATCH(Rio.medal,Rio[#Headers],0)-1,COUNT(Rio[Gold])),ROW(OFFSET(Rio[[#Headers],[Country]],1,MATCH(Rio.medal,Rio[#Headers],0)-1,COUNT(Rio[Gold])))-Rio.startrow,0),COUNTIF(J$11:$J23,J23)))","v":"Netherlands"},{"$f":"LARGE(OFFSET(Rio[[#Headers],[Country]],1,MATCH(Rio.medal,Rio[#Headers],0)-1,COUNT(Rio[Gold])),ROW(I23)-Rio.startrow)","v":19},{"$f":"VLOOKUP($I23,Rio[],K$9,0)","v":8},{"$f":"VLOOKUP($I23,Rio[],L$9,0)","v":7},{"$f":"VLOOKUP($I23,Rio[],M$9,0)","v":4},null,null,null,null,null,null,{"$f":"INDEX(Rio[Country],LARGE(IF(U23=OFFSET(Rio[[#Headers],[Country]],1,MATCH(Comparison.medal,Rio[#Headers],0)-1,COUNT(Rio[Gold])),ROW(OFFSET(Rio[[#Headers],[Country]],1,MATCH(Comparison.medal,Rio[#Headers],0)-1,COUNT(Rio[Gold])))-Rio.startrow,0),COUNTIF($U$11:U23,U23)))","v":"Netherlands"},{"$f":"LARGE(OFFSET(Rio[[#Headers],[Country]],1,MATCH(Comparison.medal,Rio[#Headers],0)-1,COUNT(Rio[Gold])),ROW(S23)-Rio.startrow)","v":19},null,11,{"$f":"INDEX(London[Country],LARGE(IF(Y23=OFFSET(London[[#Headers],[Country]],1,MATCH(Comparison.medal,London[#Headers],0)-1,COUNT(London[Gold])),ROW(OFFSET(London[[#Headers],[Country]],1,MATCH(Comparison.medal,London[#Headers],0)-1,COUNT(London[Gold])))-london.startrow,0),COUNTIF($Y$11:Y23,Y23)))","v":"Ukraine"},{"$f":"LARGE(OFFSET(London[[#Headers],[Country]],1,MATCH(Comparison.medal,London[#Headers],0)-1,COUNT(London[Gold])),ROW(U23)-Rio.startrow)","v":18},null,null,13,{"$f":"IFERROR(IF(AP23,CEILING(ROWS(AC$11:$AC23),3)/3,CEILING(ROWS(AC$11:$AC23),3)/3),NA())","v":5},null,1,-5,null,true,null,{"$f":"-IFERROR(IF(AP23,CEILING(ROWS(AJ$11:$AJ23),3)/3,IFERROR(INDEX($W$11:$W$60,ABS(AJ22)),1)),0)","v":-5},null,{"$error":"#N/A"},false,false,null,true]
["Spain",7,4,6,17,null,null,null,{"$f":"INDEX(Rio[Country],LARGE(IF(J24=OFFSET(Rio[[#Headers],[Country]],1,MATCH(Rio.medal,Rio[#Headers],0)-1,COUNT(Rio[Gold])),ROW(OFFSET(Rio[[#Headers],[Country]],1,MATCH(Rio.medal,Rio[#Headers],0)-1,COUNT(Rio[Gold])))-Rio.startrow,0),COUNTIF(J$11:$J24,J24)))","v":"Azerbaijan"},{"$f":"LARGE(OFFSET(Rio[[#Headers],[Country]],1,MATCH(Rio.medal,Rio[#Headers],0)-1,COUNT(Rio[Gold])),ROW(I24)-Rio.startrow)","v":18},{"$f":"VLOOKUP($I24,Rio[],K$9,0)","v":1},{"$f":"VLOOKUP($I24,Rio[],L$9,0)","v":7},{"$f":"VLOOKUP($I24,Rio[],M$9,0)","v":10},null,null,null,null,null,null,{"$f":"INDEX(Rio[Country],LARGE(IF(U24=OFFSET(Rio[[#Headers],[Country]],1,MATCH(Comparison.medal,Rio[#Headers],0)-1,COUNT(Rio[Gold])),ROW(OFFSET(Rio[[#Headers],[Country]],1,MATCH(Comparison.medal,Rio[#Headers],0)-1,COUNT(Rio[Gold])))-Rio.startrow,0),COUNTIF($U$11:U24,U24)))","v":"Azerbaijan"},{"$f":"LARGE(OFFSET(Rio[[#Headers],[Country]],1,MATCH(Comparison.medal,Rio[#Headers],0)-1,COUNT(Rio[Gold])),ROW(S24)-Rio.startrow)","v":18},null,25,{"$f":"INDEX(London[Country],LARGE(IF(Y24=OFFSET(London[[#Headers],[Country]],1,MATCH(Comparison.medal,London[#Headers],0)-1,COUNT(London[Gold])),ROW(OFFSET(London[[#Headers],[Country]],1,MATCH(Comparison.medal,London[#Headers],0)-1,COUNT(London[Gold])))-london.startrow,0),COUNTIF($Y$11:Y24,Y24)))","v":"Hungary"},{"$f":"LARGE(OFFSET(London[[#Headers],[Country]],1,MATCH(Comparison.medal,London[#Headers],0)-1,COUNT(London[Gold])),ROW(U24)-Rio.startrow)","v":18},null,null,14,{"$f":"IFERROR(IF(AP24,CEILING(ROWS(AC$11:$AC24),3)/3,CEILING(ROWS(AC$11:$AC24),3)/3),NA())","v":5},null,10,-8,null,true,null,{"$f":"-IFERROR(IF(AP24,CEILING(ROWS(AJ$11:$AJ24),3)/3,IFERROR(INDEX($W$11:$W$60,ABS(AJ23)),1)),0)","v":-8},null,{"$error":"#N/A"},false,false,null,false]
["Kenya",6,6,1,13,null,null,null,{"$f":"INDEX(Rio[Country],LARGE(IF(J25=OFFSET(Rio[[#Headers],[Country]],1,MATCH(Rio.medal,Rio[#Headers],0)-1,COUNT(Rio[Gold])),ROW(OFFSET(Rio[[#Headers],[Country]],1,MATCH(Rio.medal,Rio[#Headers],0)-1,COUNT(Rio[Gold])))-Rio.startrow,0),COUNTIF(J$11:$J25,J25)))","v":"New Zealand"},{"$f":"LARGE(OFFSET(Rio[[#Headers],[Country]],1,MATCH(Rio.medal,Rio[#Headers],0)-1,COUNT(Rio[Gold])),ROW(I25)-Rio.startrow)","v":18},{"$f":"VLOOKUP($I25,Rio[],K$9,0)","v":4},{"$f":"VLOOKUP($I25,Rio[],L$9,0)","v":9},{"$f":"VLOOKUP($I25,Rio[],M$9,0)","v":5},null,null,null,null,null,null,{"$f":"INDEX(Rio[Country],LARGE(IF(U25=OFFSET(Rio[[#Headers],[Country]],1,MATCH(Comparison.medal,Rio[#Headers],0)-1,COUNT(Rio[Gold])),ROW(OFFSET(Rio[[#Headers],[Country]],1,MATCH(Comparison.medal,Rio[#Headers],0)-1,COUNT(Rio[Gold])))-Rio.startrow,0),COUNTIF($U$11:U25,U25)))","v":"New Zealand"},{"$f":"LARGE(OFFSET(Rio[[#Headers],[Country]],1,MATCH(Comparison.medal,Rio[#Headers],0)-1,COUNT(Rio[Gold])),ROW(S25)-Rio.startrow)","v":18},null,18,{"$f":"INDEX(London[Country],LARGE(IF(Y25=OFFSET(London[[#Headers],[Country]],1,MATCH(Comparison.medal,London[#Headers],0)-1,COUNT(London[Gold])),ROW(OFFSET(London[[#Headers],[Country]],1,MATCH(Comparison.medal,London[#Headers],0)-1,COUNT(London[Gold])))-london.startrow,0),COUNTIF($Y$11:Y25,Y25)))","v":"Brazil"},{"$f":"LARGE(OFFSET(London[[#Headers],[Country]],1,MATCH(Comparison.medal,London[#Headers],0)-1,COUNT(London[Gold])),ROW(U25)-Rio.startrow)","v":17},null,null,15,{"$f":"IFERROR(IF(AP25,CEILING(ROWS(AC$11:$AC25),3)/3,CEILING(ROWS(AC$11:$AC25),3)/3),NA())","v":{"$error":"#N/A"}},null,null,0,null,true,null,{"$f":"-IFERROR(IF(AP25,CEILING(ROWS(AJ$11:$AJ25),3)/3,IFERROR(INDEX($W$11:$W$60,ABS(AJ24)),1)),0)","v":0},null,{"$error":"#N/A"},false,{"$f":"OR(AM25,AM24)","v":false},null,""]
["Jamaica",6,3,2,11,null,null,null,{"$f":"INDEX(Rio[Country],LARGE(IF(J26=OFFSET(Rio[[#Headers],[Country]],1,MATCH(Rio.medal,Rio[#Headers],0)-1,COUNT(Rio[Gold])),ROW(OFFSET(Rio[[#Headers],[Country]],1,MATCH(Rio.medal,Rio[#Headers],0)-1,COUNT(Rio[Gold])))-Rio.startrow,0),COUNTIF(J$11:$J26,J26)))","v":"Kazakhstan"},{"$f":"LARGE(OFFSET(Rio[[#Headers],[Country]],1,MATCH(Rio.medal,Rio[#Headers],0)-1,COUNT(Rio[Gold])),ROW(I26)-Rio.startrow)","v":17},{"$f":"VLOOKUP($I26,Rio[],K$9,0)","v":3},{"$f":"VLOOKUP($I26,Rio[],L$9,0)","v":5},{"$f":"VLOOKUP($I26,Rio[],M$9,0)","v":9},null,null,null,null,null,null,{"$f":"INDEX(Rio[Country],LARGE(IF(U26=OFFSET(Rio[[#Headers],[Country]],1,MATCH(Comparison.medal,Rio[#Headers],0)-1,COUNT(Rio[Gold])),ROW(OFFSET(Rio[[#Headers],[Country]],1,MATCH(Comparison.medal,Rio[#Headers],0)-1,COUNT(Rio[Gold])))-Rio.startrow,0),COUNTIF($U$11:U26,U26)))","v":"Kazakhstan"},{"$f":"LARGE(OFFSET(Rio[[#Headers],[Country]],1,MATCH(Comparison.medal,Rio[#Headers],0)-1,COUNT(Rio[Gold])),ROW(S26)-Rio.startrow)","v":17},null,19,{"$f":"INDEX(London[Country],LARGE(IF(Y26=OFFSET(London[[#Headers],[Country]],1,MATCH(Comparison.medal,London[#Headers],0)-1,COUNT(London[Gold])),ROW(OFFSET(London[[#Headers],[Country]],1,MATCH(Comparison.medal,London[#Headers],0)-1,COUNT(London[Gold])))-london.startrow,0),COUNTIF($Y$11:Y26,Y26)))","v":"Spain"},{"$f":"LARGE(OFFSET(London[[#Headers],[Country]],1,MATCH(Comparison.medal,London[#Headers],0)-1,COUNT(London[Gold])),ROW(U26)-Rio.startrow)","v":17},null,null,16,{"$f":"IFERROR(IF(AP26,CEILING(ROWS(AC$11:$AC26),3)/3,CEILING(ROWS(AC$11:$AC26),3)/3),NA())","v":6},null,1,-6,null,true,null,{"$f":"-IFERROR(IF(AP26,CEILING(ROWS(AJ$11:$AJ26),3)/3,IFERROR(INDEX($W$11:$W$60,ABS(AJ25)),1)),0)","v":-6},null,{"$error":"#N/A"},false,false,null,true]
["Croatia",5,3,2,10,null,null,null,{"$f":"INDEX(Rio[Country],LARGE(IF(J27=OFFSET(Rio[[#Headers],[Country]],1,MATCH(Rio.medal,Rio[#Headers],0)-1,COUNT(Rio[Gold])),ROW(OFFSET(Rio[[#Headers],[Country]],1,MATCH(Rio.medal,Rio[#Headers],0)-1,COUNT(Rio[Gold])))-Rio.startrow,0),COUNTIF(J$11:$J27,J27)))","v":"Spain"},{"$f":"LARGE(OFFSET(Rio[[#Headers],[Country]],1,MATCH(Rio.medal,Rio[#Headers],0)-1,COUNT(Rio[Gold])),ROW(I27)-Rio.startrow)","v":17},{"$f":"VLOOKUP($I27,Rio[],K$9,0)","v":7},{"$f":"VLOOKUP($I27,Rio[],L$9,0)","v":4},{"$f":"VLOOKUP($I27,Rio[],M$9,0)","v":6},null,null,null,null,null,null,{"$f":"INDEX(Rio[Country],LARGE(IF(U27=OFFSET(Rio[[#Headers],[Country]],1,MATCH(Comparison.medal,Rio[#Headers],0)-1,COUNT(Rio[Gold])),ROW(OFFSET(Rio[[#Headers],[Country]],1,MATCH(Comparison.medal,Rio[#Headers],0)-1,COUNT(Rio[Gold])))-Rio.startrow,0),COUNTIF($U$11:U27,U27)))","v":"Spain"},{"$f":"LARGE(OFFSET(Rio[[#Headers],[Country]],1,MATCH(Comparison.medal,Rio[#Headers],0)-1,COUNT(Rio[Gold])),ROW(S27)-Rio.startrow)","v":17},null,16,{"$f":"INDEX(London[Country],LARGE(IF(Y27=OFFSET(London[[#Headers],[Country]],1,MATCH(Comparison.medal,London[#Headers],0)-1,COUNT(London[Gold])),ROW(OFFSET(London[[#Headers],[Country]],1,MATCH(Comparison.medal,London[#Headers],0)-1,COUNT(London[Gold])))-london.startrow,0),COUNTIF($Y$11:Y27,Y27)))","v":"Cuba"},{"$f":"LARGE(OFFSET(London[[#Headers],[Country]],1,MATCH(Comparison.medal,London[#Headers],0)-1,COUNT(London[Gold])),ROW(U27)-Rio.startrow)","v":15},null,null,17,{"$f":"IFERROR(IF(AP27,CEILING(ROWS(AC$11:$AC27),3)/3,CEILING(ROWS(AC$11:$AC27),3)/3),NA())","v":6},null,10,-5,null,true,null,{"$f":"-IFERROR(IF(AP27,CEILING(ROWS(AJ$11:$AJ27),3)/3,IFERROR(INDEX($W$11:$W$60,ABS(AJ26)),1)),0)","v":-5},null,{"$error":"#N/A"},false,false,null,false]
["Cuba",5,2,4,11,null,null,null,{"$f":"INDEX(Rio[Country],LARGE(IF(J28=OFFSET(Rio[[#Headers],[Country]],1,MATCH(Rio.medal,Rio[#Headers],0)-1,COUNT(Rio[Gold])),ROW(OFFSET(Rio[[#Headers],[Country]],1,MATCH(Rio.medal,Rio[#Headers],0)-1,COUNT(Rio[Gold])))-Rio.startrow,0),COUNTIF(J$11:$J28,J28)))","v":"Denmark"},{"$f":"LARGE(OFFSET(Rio[[#Headers],[Country]],1,MATCH(Rio.medal,Rio[#Headers],0)-1,COUNT(Rio[Gold])),ROW(I28)-Rio.startrow)","v":15},{"$f":"VLOOKUP($I28,Rio[],K$9,0)","v":2},{"$f":"VLOOKUP($I28,Rio[],L$9,0)","v":6},{"$f":"VLOOKUP($I28,Rio[],M$9,0)","v":7},null,null,null,null,null,null,{"$f":"INDEX(Rio[Country],LARGE(IF(U28=OFFSET(Rio[[#Headers],[Country]],1,MATCH(Comparison.medal,Rio[#Headers],0)-1,COUNT(Rio[Gold])),ROW(OFFSET(Rio[[#Headers],[Country]],1,MATCH(Comparison.medal,Rio[#Headers],0)-1,COUNT(Rio[Gold])))-Rio.startrow,0),COUNTIF($U$11:U28,U28)))","v":"Denmark"},{"$f":"LARGE(OFFSET(Rio[[#Headers],[Country]],1,MATCH(Comparison.medal,Rio[#Headers],0)-1,COUNT(Rio[Gold])),ROW(S28)-Rio.startrow)","v":15},null,27,{"$f":"INDEX(London[Country],LARGE(IF(Y28=OFFSET(London[[#Headers],[Country]],1,MATCH(Comparison.medal,London[#Headers],0)-1,COUNT(London[Gold])),ROW(OFFSET(London[[#Headers],[Country]],1,MATCH(Comparison.medal,London[#Headers],0)-1,COUNT(London[Gold])))-london.startrow,0),COUNTIF($Y$11:Y28,Y28)))","v":"New Zealand"},{"$f":"LARGE(OFFSET(London[[#Headers],[Country]],1,MATCH(Comparison.medal,London[#Headers],0)-1,COUNT(London[Gold])),ROW(U28)-Rio.startrow)","v":13},null,null,18,{"$f":"IFERROR(IF(AP28,CEILING(ROWS(AC$11:$AC28),3)/3,CEILING(ROWS(AC$11:$AC28),3)/3),NA())","v":{"$error":"#N/A"}},null,null,0,null,true,null,{"$f":"-IFERROR(IF(AP28,CEILING(ROWS(AJ$11:$AJ28),3)/3,IFERROR(INDEX($W$11:$W$60,ABS(AJ27)),1)),0)","v":0},null,{"$error":"#N/A"},false,false,null,""]
["New Zealand",4,9,5,18,null,null,null,{"$f":"INDEX(Rio[Country],LARGE(IF(J29=OFFSET(Rio[[#Headers],[Country]],1,MATCH(Rio.medal,Rio[#Headers],0)-1,COUNT(Rio[Gold])),ROW(OFFSET(Rio[[#Headers],[Country]],1,MATCH(Rio.medal,Rio[#Headers],0)-1,COUNT(Rio[Gold])))-Rio.startrow,0),COUNTIF(J$11:$J29,J29)))","v":"Hungary"},{"$f":"LARGE(OFFSET(Rio[[#Headers],[Country]],1,MATCH(Rio.medal,Rio[#Headers],0)-1,COUNT(Rio[Gold])),ROW(I29)-Rio.startrow)","v":15},{"$f":"VLOOKUP($I29,Rio[],K$9,0)","v":8},{"$f":"VLOOKUP($I29,Rio[],L$9,0)","v":3},{"$f":"VLOOKUP($I29,Rio[],M$9,0)","v":4},null,null,null,null,null,null,{"$f":"INDEX(Rio[Country],LARGE(IF(U29=OFFSET(Rio[[#Headers],[Country]],1,MATCH(Comparison.medal,Rio[#Headers],0)-1,COUNT(Rio[Gold])),ROW(OFFSET(Rio[[#Headers],[Country]],1,MATCH(Comparison.medal,Rio[#Headers],0)-1,COUNT(Rio[Gold])))-Rio.startrow,0),COUNTIF($U$11:U29,U29)))","v":"Hungary"},{"$f":"LARGE(OFFSET(Rio[[#Headers],[Country]],1,MATCH(Comparison.medal,Rio[#Headers],0)-1,COUNT(Rio[Gold])),ROW(S29)-Rio.startrow)","v":15},null,14,{"$f":"INDEX(London[Country],LARGE(IF(Y29=OFFSET(London[[#Headers],[Country]],1,MATCH(Comparison.medal,London[#Headers],0)-1,COUNT(London[Gold])),ROW(OFFSET(London[[#Headers],[Country]],1,MATCH(Comparison.medal,London[#Headers],0)-1,COUNT(London[Gold])))-london.startrow,0),COUNTIF($Y$11:Y29,Y29)))","v":"Kazakhstan"},{"$f":"LARGE(OFFSET(London[[#Headers],[Country]],1,MATCH(Comparison.medal,London[#Headers],0)-1,COUNT(London[Gold])),ROW(U29)-Rio.startrow)","v":13},null,null,19,{"$f":"IFERROR(IF(AP29,CEILING(ROWS(AC$11:$AC29),3)/3,CEILING(ROWS(AC$11:$AC29),3)/3),NA())","v":7},null,1,-7,null,true,null,{"$f":"-IFERROR(IF(AP29,CEILING(ROWS(AJ$11:$AJ29),3)/3,IFERROR(INDEX($W$11:$W$60,ABS(AJ28)),1)),0)","v":-7},null,{"$error":"#N/A"},false,false,null,true]
["Canada",4,3,15,22,null,null,null,{"$f":"INDEX(Rio[Country],LARGE(IF(J30=OFFSET(Rio[[#Headers],[Country]],1,MATCH(Rio.medal,Rio[#Headers],0)-1,COUNT(Rio[Gold])),ROW(OFFSET(Rio[[#Headers],[Country]],1,MATCH(Rio.medal,Rio[#Headers],0)-1,COUNT(Rio[Gold])))-Rio.startrow,0),COUNTIF(J$11:$J30,J30)))","v":"Uzbekistan"},{"$f":"LARGE(OFFSET(Rio[[#Headers],[Country]],1,MATCH(Rio.medal,Rio[#Headers],0)-1,COUNT(Rio[Gold])),ROW(I30)-Rio.startrow)","v":13},{"$f":"VLOOKUP($I30,Rio[],K$9,0)","v":4},{"$f":"VLOOKUP($I30,Rio[],L$9,0)","v":2},{"$f":"VLOOKUP($I30,Rio[],M$9,0)","v":7},null,null,null,null,null,null,{"$f":"INDEX(Rio[Country],LARGE(IF(U30=OFFSET(Rio[[#Headers],[Country]],1,MATCH(Comparison.medal,Rio[#Headers],0)-1,COUNT(Rio[Gold])),ROW(OFFSET(Rio[[#Headers],[Country]],1,MATCH(Comparison.medal,Rio[#Headers],0)-1,COUNT(Rio[Gold])))-Rio.startrow,0),COUNTIF($U$11:U30,U30)))","v":"Uzbekistan"},{"$f":"LARGE(OFFSET(Rio[[#Headers],[Country]],1,MATCH(Comparison.medal,Rio[#Headers],0)-1,COUNT(Rio[Gold])),ROW(S30)-Rio.startrow)","v":13},null,{"$error":"#N/A"},{"$f":"INDEX(London[Country],LARGE(IF(Y30=OFFSET(London[[#Headers],[Country]],1,MATCH(Comparison.medal,London[#Headers],0)-1,COUNT(London[Gold])),ROW(OFFSET(London[[#Headers],[Country]],1,MATCH(Comparison.medal,London[#Headers],0)-1,COUNT(London[Gold])))-london.startrow,0),COUNTIF($Y$11:Y30,Y30)))","v":"Kenya"},{"$f":"LARGE(OFFSET(London[[#Headers],[Country]],1,MATCH(Comparison.medal,London[#Headers],0)-1,COUNT(London[Gold])),ROW(U30)-Rio.startrow)","v":12},null,null,20,{"$f":"IFERROR(IF(AP30,CEILING(ROWS(AC$11:$AC30),3)/3,CEILING(ROWS(AC$11:$AC30),3)/3),NA())","v":7},null,10,-6,null,true,null,{"$f":"-IFERROR(IF(AP30,CEILING(ROWS(AJ$11:$AJ30),3)/3,IFERROR(INDEX($W$11:$W$60,ABS(AJ29)),1)),0)","v":-6},null,{"$error":"#N/A"},false,false,null,false]
["Uzbekistan",4,2,7,13,null,null,null,{"$f":"INDEX(Rio[Country],LARGE(IF(J31=OFFSET(Rio[[#Headers],[Country]],1,MATCH(Rio.medal,Rio[#Headers],0)-1,COUNT(Rio[Gold])),ROW(OFFSET(Rio[[#Headers],[Country]],1,MATCH(Rio.medal,Rio[#Headers],0)-1,COUNT(Rio[Gold])))-Rio.startrow,0),COUNTIF(J$11:$J31,J31)))","v":"Kenya"},{"$f":"LARGE(OFFSET(Rio[[#Headers],[Country]],1,MATCH(Rio.medal,Rio[#Headers],0)-1,COUNT(Rio[Gold])),ROW(I31)-Rio.startrow)","v":13},{"$f":"VLOOKUP($I31,Rio[],K$9,0)","v":6},{"$f":"VLOOKUP($I31,Rio[],L$9,0)","v":6},{"$f":"VLOOKUP($I31,Rio[],M$9,0)","v":1},null,null,null,null,null,null,{"$f":"INDEX(Rio[Country],LARGE(IF(U31=OFFSET(Rio[[#Headers],[Country]],1,MATCH(Comparison.medal,Rio[#Headers],0)-1,COUNT(Rio[Gold])),ROW(OFFSET(Rio[[#Headers],[Country]],1,MATCH(Comparison.medal,Rio[#Headers],0)-1,COUNT(Rio[Gold])))-Rio.startrow,0),COUNTIF($U$11:U31,U31)))","v":"Kenya"},{"$f":"LARGE(OFFSET(Rio[[#Headers],[Country]],1,MATCH(Comparison.medal,Rio[#Headers],0)-1,COUNT(Rio[Gold])),ROW(S31)-Rio.startrow)","v":13},null,20,{"$f":"INDEX(London[Country],LARGE(IF(Y31=OFFSET(London[[#Headers],[Country]],1,MATCH(Comparison.medal,London[#Headers],0)-1,COUNT(London[Gold])),ROW(OFFSET(London[[#Headers],[Country]],1,MATCH(Comparison.medal,London[#Headers],0)-1,COUNT(London[Gold])))-london.startrow,0),COUNTIF($Y$11:Y31,Y31)))","v":"Belarus"},{"$f":"LARGE(OFFSET(London[[#Headers],[Country]],1,MATCH(Comparison.medal,London[#Headers],0)-1,COUNT(London[Gold])),ROW(U31)-Rio.startrow)","v":12},null,null,21,{"$f":"IFERROR(IF(AP31,CEILING(ROWS(AC$11:$AC31),3)/3,CEILING(ROWS(AC$11:$AC31),3)/3),NA())","v":{"$error":"#N/A"}},null,null,0,null,true,null,{"$f":"-IFERROR(IF(AP31,CEILING(ROWS(AJ$11:$AJ31),3)/3,IFERROR(INDEX($W$11:$W$60,ABS(AJ30)),1)),0)","v":0},null,{"$error":"#N/A"},false,false,null,""]
["Kazakhstan",3,5,9,17,null,null,null,{"$f":"INDEX(Rio[Country],LARGE(IF(J32=OFFSET(Rio[[#Headers],[Country]],1,MATCH(Rio.medal,Rio[#Headers],0)-1,COUNT(Rio[Gold])),ROW(OFFSET(Rio[[#Headers],[Country]],1,MATCH(Rio.medal,Rio[#Headers],0)-1,COUNT(Rio[Gold])))-Rio.startrow,0),COUNTIF(J$11:$J32,J32)))","v":"Poland"},{"$f":"LARGE(OFFSET(Rio[[#Headers],[Country]],1,MATCH(Rio.medal,Rio[#Headers],0)-1,COUNT(Rio[Gold])),ROW(I32)-Rio.startrow)","v":11},{"$f":"VLOOKUP($I32,Rio[],K$9,0)","v":2},{"$f":"VLOOKUP($I32,Rio[],L$9,0)","v":3},{"$f":"VLOOKUP($I32,Rio[],M$9,0)","v":6},null,null,null,null,null,null,{"$f":"INDEX(Rio[Country],LARGE(IF(U32=OFFSET(Rio[[#Headers],[Country]],1,MATCH(Comparison.medal,Rio[#Headers],0)-1,COUNT(Rio[Gold])),ROW(OFFSET(Rio[[#Headers],[Country]],1,MATCH(Comparison.medal,Rio[#Headers],0)-1,COUNT(Rio[Gold])))-Rio.startrow,0),COUNTIF($U$11:U32,U32)))","v":"Poland"},{"$f":"LARGE(OFFSET(Rio[[#Headers],[Country]],1,MATCH(Comparison.medal,Rio[#Headers],0)-1,COUNT(Rio[Gold])),ROW(S32)-Rio.startrow)","v":11},null,24,{"$f":"INDEX(London[Country],LARGE(IF(Y32=OFFSET(London[[#Headers],[Country]],1,MATCH(Comparison.medal,London[#Headers],0)-1,COUNT(London[Gold])),ROW(OFFSET(London[[#Headers],[Country]],1,MATCH(Comparison.medal,London[#Headers],0)-1,COUNT(London[Gold])))-london.startrow,0),COUNTIF($Y$11:Y32,Y32)))","v":"Jamaica"},{"$f":"LARGE(OFFSET(London[[#Headers],[Country]],1,MATCH(Comparison.medal,London[#Headers],0)-1,COUNT(London[Gold])),ROW(U32)-Rio.startrow)","v":12},null,null,22,{"$f":"IFERROR(IF(AP32,CEILING(ROWS(AC$11:$AC32),3)/3,CEILING(ROWS(AC$11:$AC32),3)/3),NA())","v":8},null,1,-8,null,true,null,{"$f":"-IFERROR(IF(AP32,CEILING(ROWS(AJ$11:$AJ32),3)/3,IFERROR(INDEX($W$11:$W$60,ABS(AJ31)),1)),0)","v":-8},null,{"$error":"#N/A"},false,false,null,true]
["Colombia",3,2,3,8,null,null,null,{"$f":"INDEX(Rio[Country],LARGE(IF(J33=OFFSET(Rio[[#Headers],[Country]],1,MATCH(Rio.medal,Rio[#Headers],0)-1,COUNT(Rio[Gold])),ROW(OFFSET(Rio[[#Headers],[Country]],1,MATCH(Rio.medal,Rio[#Headers],0)-1,COUNT(Rio[Gold])))-Rio.startrow,0),COUNTIF(J$11:$J33,J33)))","v":"Ukraine"},{"$f":"LARGE(OFFSET(Rio[[#Headers],[Country]],1,MATCH(Rio.medal,Rio[#Headers],0)-1,COUNT(Rio[Gold])),ROW(I33)-Rio.startrow)","v":11},{"$f":"VLOOKUP($I33,Rio[],K$9,0)","v":2},{"$f":"VLOOKUP($I33,Rio[],L$9,0)","v":5},{"$f":"VLOOKUP($I33,Rio[],M$9,0)","v":4},null,null,null,null,null,null,{"$f":"INDEX(Rio[Country],LARGE(IF(U33=OFFSET(Rio[[#Headers],[Country]],1,MATCH(Comparison.medal,Rio[#Headers],0)-1,COUNT(Rio[Gold])),ROW(OFFSET(Rio[[#Headers],[Country]],1,MATCH(Comparison.medal,Rio[#Headers],0)-1,COUNT(Rio[Gold])))-Rio.startrow,0),COUNTIF($U$11:U33,U33)))","v":"Ukraine"},{"$f":"LARGE(OFFSET(Rio[[#Headers],[Country]],1,MATCH(Comparison.medal,Rio[#Headers],0)-1,COUNT(Rio[Gold])),ROW(S33)-Rio.startrow)","v":11},null,13,{"$f":"INDEX(London[Country],LARGE(IF(Y33=OFFSET(London[[#Headers],[Country]],1,MATCH(Comparison.medal,London[#Headers],0)-1,COUNT(London[Gold])),ROW(OFFSET(London[[#Headers],[Country]],1,MATCH(Comparison.medal,London[#Headers],0)-1,COUNT(London[Gold])))-london.startrow,0),COUNTIF($Y$11:Y33,Y33)))","v":"Iran"},{"$f":"LARGE(OFFSET(London[[#Headers],[Country]],1,MATCH(Comparison.medal,London[#Headers],0)-1,COUNT(London[Gold])),ROW(U33)-Rio.startrow)","v":12},null,null,23,{"$f":"IFERROR(IF(AP33,CEILING(ROWS(AC$11:$AC33),3)/3,CEILING(ROWS(AC$11:$AC33),3)/3),NA())","v":8},null,10,-7,null,true,null,{"$f":"-IFERROR(IF(AP33,CEILING(ROWS(AJ$11:$AJ33),3)/3,IFERROR(INDEX($W$11:$W$60,ABS(AJ32)),1)),0)","v":-7},null,{"$error":"#N/A"},false,false,null,false]
["Switzerland",3,2,2,7,null,null,null,{"$f":"INDEX(Rio[Country],LARGE(IF(J34=OFFSET(Rio[[#Headers],[Country]],1,MATCH(Rio.medal,Rio[#Headers],0)-1,COUNT(Rio[Gold])),ROW(OFFSET(Rio[[#Headers],[Country]],1,MATCH(Rio.medal,Rio[#Headers],0)-1,COUNT(Rio[Gold])))-Rio.startrow,0),COUNTIF(J$11:$J34,J34)))","v":"Sweden"},{"$f":"LARGE(OFFSET(Rio[[#Headers],[Country]],1,MATCH(Rio.medal,Rio[#Headers],0)-1,COUNT(Rio[Gold])),ROW(I34)-Rio.startrow)","v":11},{"$f":"VLOOKUP($I34,Rio[],K$9,0)","v":2},{"$f":"VLOOKUP($I34,Rio[],L$9,0)","v":6},{"$f":"VLOOKUP($I34,Rio[],M$9,0)","v":3},null,null,null,null,null,null,{"$f":"INDEX(Rio[Country],LARGE(IF(U34=OFFSET(Rio[[#Headers],[Country]],1,MATCH(Comparison.medal,Rio[#Headers],0)-1,COUNT(Rio[Gold])),ROW(OFFSET(Rio[[#Headers],[Country]],1,MATCH(Comparison.medal,Rio[#Headers],0)-1,COUNT(Rio[Gold])))-Rio.startrow,0),COUNTIF($U$11:U34,U34)))","v":"Sweden"},{"$f":"LARGE(OFFSET(Rio[[#Headers],[Country]],1,MATCH(Comparison.medal,Rio[#Headers],0)-1,COUNT(Rio[Gold])),ROW(S34)-Rio.startrow)","v":11},null,30,{"$f":"INDEX(London[Country],LARGE(IF(Y34=OFFSET(London[[#Headers],[Country]],1,MATCH(Comparison.medal,London[#Headers],0)-1,COUNT(London[Gold])),ROW(OFFSET(London[[#Headers],[Country]],1,MATCH(Comparison.medal,London[#Headers],0)-1,COUNT(London[Gold])))-london.startrow,0),COUNTIF($Y$11:Y34,Y34)))","v":"Poland"},{"$f":"LARGE(OFFSET(London[[#Headers],[Country]],1,MATCH(Comparison.medal,London[#Headers],0)-1,COUNT(London[Gold])),ROW(U34)-Rio.startrow)","v":10},null,null,24,{"$f":"IFERROR(IF(AP34,CEILING(ROWS(AC$11:$AC34),3)/3,CEILING(ROWS(AC$11:$AC34),3)/3),NA())","v":{"$error":"#N/A"}},null,null,0,null,true,null,{"$f":"-IFERROR(IF(AP34,CEILING(ROWS(AJ$11:$AJ34),3)/3,IFERROR(INDEX($W$11:$W$60,ABS(AJ33)),1)),0)","v":0},null,{"$error":"#N/A"},false,false,null,""]
["Iran",3,1,4,8,null,null,null,{"$f":"INDEX(Rio[Country],LARGE(IF(J35=OFFSET(Rio[[#Headers],[Country]],1,MATCH(Rio.medal,Rio[#Headers],0)-1,COUNT(Rio[Gold])),ROW(OFFSET(Rio[[#Headers],[Country]],1,MATCH(Rio.medal,Rio[#Headers],0)-1,COUNT(Rio[Gold])))-Rio.startrow,0),COUNTIF(J$11:$J35,J35)))","v":"Cuba"},{"$f":"LARGE(OFFSET(Rio[[#Headers],[Country]],1,MATCH(Rio.medal,Rio[#Headers],0)-1,COUNT(Rio[Gold])),ROW(I35)-Rio.startrow)","v":11},{"$f":"VLOOKUP($I35,Rio[],K$9,0)","v":5},{"$f":"VLOOKUP($I35,Rio[],L$9,0)","v":2},{"$f":"VLOOKUP($I35,Rio[],M$9,0)","v":4},null,null,null,null,null,null,{"$f":"INDEX(Rio[Country],LARGE(IF(U35=OFFSET(Rio[[#Headers],[Country]],1,MATCH(Comparison.medal,Rio[#Headers],0)-1,COUNT(Rio[Gold])),ROW(OFFSET(Rio[[#Headers],[Country]],1,MATCH(Comparison.medal,Rio[#Headers],0)-1,COUNT(Rio[Gold])))-Rio.startrow,0),COUNTIF($U$11:U35,U35)))","v":"Cuba"},{"$f":"LARGE(OFFSET(Rio[[#Headers],[Country]],1,MATCH(Comparison.medal,Rio[#Headers],0)-1,COUNT(Rio[Gold])),ROW(S35)-Rio.startrow)","v":11},null,17,{"$f":"INDEX(London[Country],LARGE(IF(Y35=OFFSET(London[[#Headers],[Country]],1,MATCH(Comparison.medal,London[#Headers],0)-1,COUNT(London[Gold])),ROW(OFFSET(London[[#Headers],[Country]],1,MATCH(Comparison.medal,London[#Headers],0)-1,COUNT(London[Gold])))-london.startrow,0),COUNTIF($Y$11:Y35,Y35)))","v":"Azerbaijan"},{"$f":"LARGE(OFFSET(London[[#Headers],[Country]],1,MATCH(Comparison.medal,London[#Headers],0)-1,COUNT(London[Gold])),ROW(U35)-Rio.startrow)","v":10},null,null,25,{"$f":"IFERROR(IF(AP35,CEILING(ROWS(AC$11:$AC35),3)/3,CEILING(ROWS(AC$11:$AC35),3)/3),NA())","v":9},null,1,-9,null,true,null,{"$f":"-IFERROR(IF(AP35,CEILING(ROWS(AJ$11:$AJ35),3)/3,IFERROR(INDEX($W$11:$W$60,ABS(AJ34)),1)),0)","v":-9},null,{"$error":"#N/A"},false,false,null,true]
["Greece",3,1,2,6,null,null,null,{"$f":"INDEX(Rio[Country],LARGE(IF(J36=OFFSET(Rio[[#Headers],[Country]],1,MATCH(Rio.medal,Rio[#Headers],0)-1,COUNT(Rio[Gold])),ROW(OFFSET(Rio[[#Headers],[Country]],1,MATCH(Rio.medal,Rio[#Headers],0)-1,COUNT(Rio[Gold])))-Rio.startrow,0),COUNTIF(J$11:$J36,J36)))","v":"Jamaica"},{"$f":"LARGE(OFFSET(Rio[[#Headers],[Country]],1,MATCH(Rio.medal,Rio[#Headers],0)-1,COUNT(Rio[Gold])),ROW(I36)-Rio.startrow)","v":11},{"$f":"VLOOKUP($I36,Rio[],K$9,0)","v":6},{"$f":"VLOOKUP($I36,Rio[],L$9,0)","v":3},{"$f":"VLOOKUP($I36,Rio[],M$9,0)","v":2},null,null,null,null,null,null,{"$f":"INDEX(Rio[Country],LARGE(IF(U36=OFFSET(Rio[[#Headers],[Country]],1,MATCH(Comparison.medal,Rio[#Headers],0)-1,COUNT(Rio[Gold])),ROW(OFFSET(Rio[[#Headers],[Country]],1,MATCH(Comparison.medal,Rio[#Headers],0)-1,COUNT(Rio[Gold])))-Rio.startrow,0),COUNTIF($U$11:U36,U36)))","v":"Jamaica"},{"$f":"LARGE(OFFSET(Rio[[#Headers],[Country]],1,MATCH(Comparison.medal,Rio[#Headers],0)-1,COUNT(Rio[Gold])),ROW(S36)-Rio.startrow)","v":11},null,22,{"$f":"INDEX(London[Country],LARGE(IF(Y36=OFFSET(London[[#Headers],[Country]],1,MATCH(Comparison.medal,London[#Headers],0)-1,COUNT(London[Gold])),ROW(OFFSET(London[[#Headers],[Country]],1,MATCH(Comparison.medal,London[#Headers],0)-1,COUNT(London[Gold])))-london.startrow,0),COUNTIF($Y$11:Y36,Y36)))","v":"Czech Republic"},{"$f":"LARGE(OFFSET(London[[#Headers],[Country]],1,MATCH(Comparison.medal,London[#Headers],0)-1,COUNT(London[Gold])),ROW(U36)-Rio.startrow)","v":10},null,null,26,{"$f":"IFERROR(IF(AP36,CEILING(ROWS(AC$11:$AC36),3)/3,CEILING(ROWS(AC$11:$AC36),3)/3),NA())","v":9},null,10,-9,null,true,null,{"$f":"-IFERROR(IF(AP36,CEILING(ROWS(AJ$11:$AJ36),3)/3,IFERROR(INDEX($W$11:$W$60,ABS(AJ35)),1)),0)","v":-9},null,{"$error":"#N/A"},false,false,null,false]
["Argentina",3,1,0,4,null,null,null,{"$f":"INDEX(Rio[Country],LARGE(IF(J37=OFFSET(Rio[[#Headers],[Country]],1,MATCH(Rio.medal,Rio[#Headers],0)-1,COUNT(Rio[Gold])),ROW(OFFSET(Rio[[#Headers],[Country]],1,MATCH(Rio.medal,Rio[#Headers],0)-1,COUNT(Rio[Gold])))-Rio.startrow,0),COUNTIF(J$11:$J37,J37)))","v":"Czech Republic"},{"$f":"LARGE(OFFSET(Rio[[#Headers],[Country]],1,MATCH(Rio.medal,Rio[#Headers],0)-1,COUNT(Rio[Gold])),ROW(I37)-Rio.startrow)","v":10},{"$f":"VLOOKUP($I37,Rio[],K$9,0)","v":1},{"$f":"VLOOKUP($I37,Rio[],L$9,0)","v":2},{"$f":"VLOOKUP($I37,Rio[],M$9,0)","v":7},null,null,null,null,null,null,{"$f":"INDEX(Rio[Country],LARGE(IF(U37=OFFSET(Rio[[#Headers],[Country]],1,MATCH(Comparison.medal,Rio[#Headers],0)-1,COUNT(Rio[Gold])),ROW(OFFSET(Rio[[#Headers],[Country]],1,MATCH(Comparison.medal,Rio[#Headers],0)-1,COUNT(Rio[Gold])))-Rio.startrow,0),COUNTIF($U$11:U37,U37)))","v":"Czech Republic"},{"$f":"LARGE(OFFSET(Rio[[#Headers],[Country]],1,MATCH(Comparison.medal,Rio[#Headers],0)-1,COUNT(Rio[Gold])),ROW(S37)-Rio.startrow)","v":10},null,26,{"$f":"INDEX(London[Country],LARGE(IF(Y37=OFFSET(London[[#Headers],[Country]],1,MATCH(Comparison.medal,London[#Headers],0)-1,COUNT(London[Gold])),ROW(OFFSET(London[[#Headers],[Country]],1,MATCH(Comparison.medal,London[#Headers],0)-1,COUNT(London[Gold])))-london.startrow,0),COUNTIF($Y$11:Y37,Y37)))","v":"Denmark"},{"$f":"LARGE(OFFSET(London[[#Headers],[Country]],1,MATCH(Comparison.medal,London[#Headers],0)-1,COUNT(London[Gold])),ROW(U37)-Rio.startrow)","v":9},null,null,27,{"$f":"IFERROR(IF(AP37,CEILING(ROWS(AC$11:$AC37),3)/3,CEILING(ROWS(AC$11:$AC37),3)/3),NA())","v":{"$error":"#N/A"}},null,null,0,null,true,null,{"$f":"-IFERROR(IF(AP37,CEILING(ROWS(AJ$11:$AJ37),3)/3,IFERROR(INDEX($W$11:$W$60,ABS(AJ36)),1)),0)","v":0},null,{"$error":"#N/A"},false,false,null,""]
["Denmark",2,6,7,15,null,null,null,{"$f":"INDEX(Rio[Country],LARGE(IF(J38=OFFSET(Rio[[#Headers],[Country]],1,MATCH(Rio.medal,Rio[#Headers],0)-1,COUNT(Rio[Gold])),ROW(OFFSET(Rio[[#Headers],[Country]],1,MATCH(Rio.medal,Rio[#Headers],0)-1,COUNT(Rio[Gold])))-Rio.startrow,0),COUNTIF(J$11:$J38,J38)))","v":"South Africa"},{"$f":"LARGE(OFFSET(Rio[[#Headers],[Country]],1,MATCH(Rio.medal,Rio[#Headers],0)-1,COUNT(Rio[Gold])),ROW(I38)-Rio.startrow)","v":10},{"$f":"VLOOKUP($I38,Rio[],K$9,0)","v":2},{"$f":"VLOOKUP($I38,Rio[],L$9,0)","v":6},{"$f":"VLOOKUP($I38,Rio[],M$9,0)","v":2},null,null,null,null,null,null,{"$f":"INDEX(Rio[Country],LARGE(IF(U38=OFFSET(Rio[[#Headers],[Country]],1,MATCH(Comparison.medal,Rio[#Headers],0)-1,COUNT(Rio[Gold])),ROW(OFFSET(Rio[[#Headers],[Country]],1,MATCH(Comparison.medal,Rio[#Headers],0)-1,COUNT(Rio[Gold])))-Rio.startrow,0),COUNTIF($U$11:U38,U38)))","v":"South Africa"},{"$f":"LARGE(OFFSET(Rio[[#Headers],[Country]],1,MATCH(Comparison.medal,Rio[#Headers],0)-1,COUNT(Rio[Gold])),ROW(S38)-Rio.startrow)","v":10},null,37,{"$f":"INDEX(London[Country],LARGE(IF(Y38=OFFSET(London[[#Headers],[Country]],1,MATCH(Comparison.medal,London[#Headers],0)-1,COUNT(London[Gold])),ROW(OFFSET(London[[#Headers],[Country]],1,MATCH(Comparison.medal,London[#Headers],0)-1,COUNT(London[Gold])))-london.startrow,0),COUNTIF($Y$11:Y38,Y38)))","v":"Romania"},{"$f":"LARGE(OFFSET(London[[#Headers],[Country]],1,MATCH(Comparison.medal,London[#Headers],0)-1,COUNT(London[Gold])),ROW(U38)-Rio.startrow)","v":9},null,null,28,{"$f":"IFERROR(IF(AP38,CEILING(ROWS(AC$11:$AC38),3)/3,CEILING(ROWS(AC$11:$AC38),3)/3),NA())","v":10},null,1,-10,null,true,null,{"$f":"-IFERROR(IF(AP38,CEILING(ROWS(AJ$11:$AJ38),3)/3,IFERROR(INDEX($W$11:$W$60,ABS(AJ37)),1)),0)","v":-10},null,{"$error":"#N/A"},false,false,null,true]
["Sweden",2,6,3,11,null,null,null,{"$f":"INDEX(Rio[Country],LARGE(IF(J39=OFFSET(Rio[[#Headers],[Country]],1,MATCH(Rio.medal,Rio[#Headers],0)-1,COUNT(Rio[Gold])),ROW(OFFSET(Rio[[#Headers],[Country]],1,MATCH(Rio.medal,Rio[#Headers],0)-1,COUNT(Rio[Gold])))-Rio.startrow,0),COUNTIF(J$11:$J39,J39)))","v":"Croatia"},{"$f":"LARGE(OFFSET(Rio[[#Headers],[Country]],1,MATCH(Rio.medal,Rio[#Headers],0)-1,COUNT(Rio[Gold])),ROW(I39)-Rio.startrow)","v":10},{"$f":"VLOOKUP($I39,Rio[],K$9,0)","v":5},{"$f":"VLOOKUP($I39,Rio[],L$9,0)","v":3},{"$f":"VLOOKUP($I39,Rio[],M$9,0)","v":2},null,null,null,null,null,null,{"$f":"INDEX(Rio[Country],LARGE(IF(U39=OFFSET(Rio[[#Headers],[Country]],1,MATCH(Comparison.medal,Rio[#Headers],0)-1,COUNT(Rio[Gold])),ROW(OFFSET(Rio[[#Headers],[Country]],1,MATCH(Comparison.medal,Rio[#Headers],0)-1,COUNT(Rio[Gold])))-Rio.startrow,0),COUNTIF($U$11:U39,U39)))","v":"Croatia"},{"$f":"LARGE(OFFSET(Rio[[#Headers],[Country]],1,MATCH(Comparison.medal,Rio[#Headers],0)-1,COUNT(Rio[Gold])),ROW(S39)-Rio.startrow)","v":10},null,36,{"$f":"INDEX(London[Country],LARGE(IF(Y39=OFFSET(London[[#Headers],[Country]],1,MATCH(Comparison.medal,London[#Headers],0)-1,COUNT(London[Gold])),ROW(OFFSET(London[[#Headers],[Country]],1,MATCH(Comparison.medal,London[#Headers],0)-1,COUNT(London[Gold])))-london.startrow,0),COUNTIF($Y$11:Y39,Y39)))","v":"Colombia"},{"$f":"LARGE(OFFSET(London[[#Headers],[Country]],1,MATCH(Comparison.medal,London[#Headers],0)-1,COUNT(London[Gold])),ROW(U39)-Rio.startrow)","v":8},null,null,29,{"$f":"IFERROR(IF(AP39,CEILING(ROWS(AC$11:$AC39),3)/3,CEILING(ROWS(AC$11:$AC39),3)/3),NA())","v":10},null,10,-12,null,true,null,{"$f":"-IFERROR(IF(AP39,CEILING(ROWS(AJ$11:$AJ39),3)/3,IFERROR(INDEX($W$11:$W$60,ABS(AJ38)),1)),0)","v":-12},null,{"$error":"#N/A"},false,false,null,false]
["South Africa",2,6,2,10,null,null,null,{"$f":"INDEX(Rio[Country],LARGE(IF(J40=OFFSET(Rio[[#Headers],[Country]],1,MATCH(Rio.medal,Rio[#Headers],0)-1,COUNT(Rio[Gold])),ROW(OFFSET(Rio[[#Headers],[Country]],1,MATCH(Rio.medal,Rio[#Headers],0)-1,COUNT(Rio[Gold])))-Rio.startrow,0),COUNTIF(J$11:$J40,J40)))","v":"Belarus"},{"$f":"LARGE(OFFSET(Rio[[#Headers],[Country]],1,MATCH(Rio.medal,Rio[#Headers],0)-1,COUNT(Rio[Gold])),ROW(I40)-Rio.startrow)","v":9},{"$f":"VLOOKUP($I40,Rio[],K$9,0)","v":1},{"$f":"VLOOKUP($I40,Rio[],L$9,0)","v":4},{"$f":"VLOOKUP($I40,Rio[],M$9,0)","v":4},null,null,null,null,null,null,{"$f":"INDEX(Rio[Country],LARGE(IF(U40=OFFSET(Rio[[#Headers],[Country]],1,MATCH(Comparison.medal,Rio[#Headers],0)-1,COUNT(Rio[Gold])),ROW(OFFSET(Rio[[#Headers],[Country]],1,MATCH(Comparison.medal,Rio[#Headers],0)-1,COUNT(Rio[Gold])))-Rio.startrow,0),COUNTIF($U$11:U40,U40)))","v":"Belarus"},{"$f":"LARGE(OFFSET(Rio[[#Headers],[Country]],1,MATCH(Comparison.medal,Rio[#Headers],0)-1,COUNT(Rio[Gold])),ROW(S40)-Rio.startrow)","v":9},null,21,{"$f":"INDEX(London[Country],LARGE(IF(Y40=OFFSET(London[[#Headers],[Country]],1,MATCH(Comparison.medal,London[#Headers],0)-1,COUNT(London[Gold])),ROW(OFFSET(London[[#Headers],[Country]],1,MATCH(Comparison.medal,London[#Headers],0)-1,COUNT(London[Gold])))-london.startrow,0),COUNTIF($Y$11:Y40,Y40)))","v":"Sweden"},{"$f":"LARGE(OFFSET(London[[#Headers],[Country]],1,MATCH(Comparison.medal,London[#Headers],0)-1,COUNT(London[Gold])),ROW(U40)-Rio.startrow)","v":8},null,null,30,{"$f":"IFERROR(IF(AP40,CEILING(ROWS(AC$11:$AC40),3)/3,CEILING(ROWS(AC$11:$AC40),3)/3),NA())","v":{"$error":"#N/A"}},null,null,0,null,true,null,{"$f":"-IFERROR(IF(AP40,CEILING(ROWS(AJ$11:$AJ40),3)/3,IFERROR(INDEX($W$11:$W$60,ABS(AJ39)),1)),0)","v":0},null,{"$error":"#N/A"},false,false,null,""]
["Ukraine",2,5,4,11,null,null,null,{"$f":"INDEX(Rio[Country],LARGE(IF(J41=OFFSET(Rio[[#Headers],[Country]],1,MATCH(Rio.medal,Rio[#Headers],0)-1,COUNT(Rio[Gold])),ROW(OFFSET(Rio[[#Headers],[Country]],1,MATCH(Rio.medal,Rio[#Headers],0)-1,COUNT(Rio[Gold])))-Rio.startrow,0),COUNTIF(J$11:$J41,J41)))","v":"Ethiopia"},{"$f":"LARGE(OFFSET(Rio[[#Headers],[Country]],1,MATCH(Rio.medal,Rio[#Headers],0)-1,COUNT(Rio[Gold])),ROW(I41)-Rio.startrow)","v":8},{"$f":"VLOOKUP($I41,Rio[],K$9,0)","v":1},{"$f":"VLOOKUP($I41,Rio[],L$9,0)","v":2},{"$f":"VLOOKUP($I41,Rio[],M$9,0)","v":5},null,null,null,null,null,null,{"$f":"INDEX(Rio[Country],LARGE(IF(U41=OFFSET(Rio[[#Headers],[Country]],1,MATCH(Comparison.medal,Rio[#Headers],0)-1,COUNT(Rio[Gold])),ROW(OFFSET(Rio[[#Headers],[Country]],1,MATCH(Comparison.medal,Rio[#Headers],0)-1,COUNT(Rio[Gold])))-Rio.startrow,0),COUNTIF($U$11:U41,U41)))","v":"Ethiopia"},{"$f":"LARGE(OFFSET(Rio[[#Headers],[Country]],1,MATCH(Comparison.medal,Rio[#Headers],0)-1,COUNT(Rio[Gold])),ROW(S41)-Rio.startrow)","v":8},null,33,{"$f":"INDEX(London[Country],LARGE(IF(Y41=OFFSET(London[[#Headers],[Country]],1,MATCH(Comparison.medal,London[#Headers],0)-1,COUNT(London[Gold])),ROW(OFFSET(London[[#Headers],[Country]],1,MATCH(Comparison.medal,London[#Headers],0)-1,COUNT(London[Gold])))-london.startrow,0),COUNTIF($Y$11:Y41,Y41)))","v":"Mexico"},{"$f":"LARGE(OFFSET(London[[#Headers],[Country]],1,MATCH(Comparison.medal,London[#Headers],0)-1,COUNT(London[Gold])),ROW(U41)-Rio.startrow)","v":7},null,null,31,{"$f":"IFERROR(IF(AP41,CEILING(ROWS(AC$11:$AC41),3)/3,CEILING(ROWS(AC$11:$AC41),3)/3),NA())","v":11},null,1,-1,null,false,null,{"$f":"-IFERROR(IF(AP41,CEILING(ROWS(AJ$11:$AJ41),3)/3,IFERROR(INDEX($W$11:$W$60,ABS(AJ40)),1)),0)","v":-11},null,{"$error":"#N/A"},false,false,null,true]
["Serbia",2,4,2,8,null,null,null,{"$f":"INDEX(Rio[Country],LARGE(IF(J42=OFFSET(Rio[[#Headers],[Country]],1,MATCH(Rio.medal,Rio[#Headers],0)-1,COUNT(Rio[Gold])),ROW(OFFSET(Rio[[#Headers],[Country]],1,MATCH(Rio.medal,Rio[#Headers],0)-1,COUNT(Rio[Gold])))-Rio.startrow,0),COUNTIF(J$11:$J42,J42)))","v":"Turkey"},{"$f":"LARGE(OFFSET(Rio[[#Headers],[Country]],1,MATCH(Rio.medal,Rio[#Headers],0)-1,COUNT(Rio[Gold])),ROW(I42)-Rio.startrow)","v":8},{"$f":"VLOOKUP($I42,Rio[],K$9,0)","v":1},{"$f":"VLOOKUP($I42,Rio[],L$9,0)","v":3},{"$f":"VLOOKUP($I42,Rio[],M$9,0)","v":4},null,null,null,null,null,null,{"$f":"INDEX(Rio[Country],LARGE(IF(U42=OFFSET(Rio[[#Headers],[Country]],1,MATCH(Comparison.medal,Rio[#Headers],0)-1,COUNT(Rio[Gold])),ROW(OFFSET(Rio[[#Headers],[Country]],1,MATCH(Comparison.medal,Rio[#Headers],0)-1,COUNT(Rio[Gold])))-Rio.startrow,0),COUNTIF($U$11:U42,U42)))","v":"Turkey"},{"$f":"LARGE(OFFSET(Rio[[#Headers],[Country]],1,MATCH(Comparison.medal,Rio[#Headers],0)-1,COUNT(Rio[Gold])),ROW(S42)-Rio.startrow)","v":8},null,47,{"$f":"INDEX(London[Country],LARGE(IF(Y42=OFFSET(London[[#Headers],[Country]],1,MATCH(Comparison.medal,London[#Headers],0)-1,COUNT(London[Gold])),ROW(OFFSET(London[[#Headers],[Country]],1,MATCH(Comparison.medal,London[#Headers],0)-1,COUNT(London[Gold])))-london.startrow,0),COUNTIF($Y$11:Y42,Y42)))","v":"Georgia"},{"$f":"LARGE(OFFSET(London[[#Headers],[Country]],1,MATCH(Comparison.medal,London[#Headers],0)-1,COUNT(London[Gold])),ROW(U42)-Rio.startrow)","v":7},null,null,32,{"$f":"IFERROR(IF(AP42,CEILING(ROWS(AC$11:$AC42),3)/3,CEILING(ROWS(AC$11:$AC42),3)/3),NA())","v":11},null,10,-1,null,false,null,{"$f":"-IFERROR(IF(AP42,CEILING(ROWS(AJ$11:$AJ42),3)/3,IFERROR(INDEX($W$11:$W$60,ABS(AJ41)),1)),0)","v":-1},null,{"$error":"#N/A"},false,false,null,false]
["Poland",2,3,6,11,null,null,null,{"$f":"INDEX(Rio[Country],LARGE(IF(J43=OFFSET(Rio[[#Headers],[Country]],1,MATCH(Rio.medal,Rio[#Headers],0)-1,COUNT(Rio[Gold])),ROW(OFFSET(Rio[[#Headers],[Country]],1,MATCH(Rio.medal,Rio[#Headers],0)-1,COUNT(Rio[Gold])))-Rio.startrow,0),COUNTIF(J$11:$J43,J43)))","v":"Serbia"},{"$f":"LARGE(OFFSET(Rio[[#Headers],[Country]],1,MATCH(Rio.medal,Rio[#Headers],0)-1,COUNT(Rio[Gold])),ROW(I43)-Rio.startrow)","v":8},{"$f":"VLOOKUP($I43,Rio[],K$9,0)","v":2},{"$f":"VLOOKUP($I43,Rio[],L$9,0)","v":4},{"$f":"VLOOKUP($I43,Rio[],M$9,0)","v":2},null,null,null,null,null,null,{"$f":"INDEX(Rio[Country],LARGE(IF(U43=OFFSET(Rio[[#Headers],[Country]],1,MATCH(Comparison.medal,Rio[#Headers],0)-1,COUNT(Rio[Gold])),ROW(OFFSET(Rio[[#Headers],[Country]],1,MATCH(Comparison.medal,Rio[#Headers],0)-1,COUNT(Rio[Gold])))-Rio.startrow,0),COUNTIF($U$11:U43,U43)))","v":"Serbia"},{"$f":"LARGE(OFFSET(Rio[[#Headers],[Country]],1,MATCH(Comparison.medal,Rio[#Headers],0)-1,COUNT(Rio[Gold])),ROW(S43)-Rio.startrow)","v":8},null,45,{"$f":"INDEX(London[Country],LARGE(IF(Y43=OFFSET(London[[#Headers],[Country]],1,MATCH(Comparison.medal,London[#Headers],0)-1,COUNT(London[Gold])),ROW(OFFSET(London[[#Headers],[Country]],1,MATCH(Comparison.medal,London[#Headers],0)-1,COUNT(London[Gold])))-london.startrow,0),COUNTIF($Y$11:Y43,Y43)))","v":"Ethiopia"},{"$f":"LARGE(OFFSET(London[[#Headers],[Country]],1,MATCH(Comparison.medal,London[#Headers],0)-1,COUNT(London[Gold])),ROW(U43)-Rio.startrow)","v":7},null,null,33,{"$f":"IFERROR(IF(AP43,CEILING(ROWS(AC$11:$AC43),3)/3,CEILING(ROWS(AC$11:$AC43),3)/3),NA())","v":{"$error":"#N/A"}},null,null,{"$f":"IF(AH43,AJ43,-1)","v":0},null,{"$f":"NOT(AND(AP43<>\"\",ISERROR(INDEX($W$11:$W$60,AC43))))","v":true},null,{"$f":"-IFERROR(IF(AP43,CEILING(ROWS(AJ$11:$AJ43),3)/3,IFERROR(INDEX($W$11:$W$60,ABS(AJ42)),1)),0)","v":0},null,{"$f":"IF(AN43,IF(AH43=FALSE,1,AF43),NA())","v":{"$error":"#N/A"}},false,false,null,{"$f":"IF(MOD(AB43,3)=0,\"\",IF(AP42=\"\",TRUE,FALSE))","v":""}]
["North Korea",2,3,2,7,null,null,null,{"$f":"INDEX(Rio[Country],LARGE(IF(J44=OFFSET(Rio[[#Headers],[Country]],1,MATCH(Rio.medal,Rio[#Headers],0)-1,COUNT(Rio[Gold])),ROW(OFFSET(Rio[[#Headers],[Country]],1,MATCH(Rio.medal,Rio[#Headers],0)-1,COUNT(Rio[Gold])))-Rio.startrow,0),COUNTIF(J$11:$J44,J44)))","v":"Iran"},{"$f":"LARGE(OFFSET(Rio[[#Headers],[Country]],1,MATCH(Rio.medal,Rio[#Headers],0)-1,COUNT(Rio[Gold])),ROW(I44)-Rio.startrow)","v":8},{"$f":"VLOOKUP($I44,Rio[],K$9,0)","v":3},{"$f":"VLOOKUP($I44,Rio[],L$9,0)","v":1},{"$f":"VLOOKUP($I44,Rio[],M$9,0)","v":4},null,null,null,null,null,null,{"$f":"INDEX(Rio[Country],LARGE(IF(U44=OFFSET(Rio[[#Headers],[Country]],1,MATCH(Comparison.medal,Rio[#Headers],0)-1,COUNT(Rio[Gold])),ROW(OFFSET(Rio[[#Headers],[Country]],1,MATCH(Comparison.medal,Rio[#Headers],0)-1,COUNT(Rio[Gold])))-Rio.startrow,0),COUNTIF($U$11:U44,U44)))","v":"Iran"},{"$f":"LARGE(OFFSET(Rio[[#Headers],[Country]],1,MATCH(Comparison.medal,Rio[#Headers],0)-1,COUNT(Rio[Gold])),ROW(S44)-Rio.startrow)","v":8},null,23,{"$f":"INDEX(London[Country],LARGE(IF(Y44=OFFSET(London[[#Headers],[Country]],1,MATCH(Comparison.medal,London[#Headers],0)-1,COUNT(London[Gold])),ROW(OFFSET(London[[#Headers],[Country]],1,MATCH(Comparison.medal,London[#Headers],0)-1,COUNT(London[Gold])))-london.startrow,0),COUNTIF($Y$11:Y44,Y44)))","v":"India"},{"$f":"LARGE(OFFSET(London[[#Headers],[Country]],1,MATCH(Comparison.medal,London[#Headers],0)-1,COUNT(London[Gold])),ROW(U44)-Rio.startrow)","v":6},null,null,{"$f":"AB43+1","v":34},{"$f":"IFERROR(IF(AP44,CEILING(ROWS(AC$11:$AC44),3)/3,CEILING(ROWS(AC$11:$AC44),3)/3),NA())","v":12},null,1,-12,null,true,null,{"$f":"-IFERROR(IF(AP44,CEILING(ROWS(AJ$11:$AJ44),3)/3,IFERROR(INDEX($W$11:$W$60,ABS(AJ43)),1)),0)","v":-12},null,{"$error":"#N/A"},{"$f":"AND(-MATCH(Overall.country,$T$11:$T$60,0)=AJ44,AP44)","v":false},false,null,true]
["Belgium",2,2,2,6,null,null,null,{"$f":"INDEX(Rio[Country],LARGE(IF(J45=OFFSET(Rio[[#Headers],[Country]],1,MATCH(Rio.medal,Rio[#Headers],0)-1,COUNT(Rio[Gold])),ROW(OFFSET(Rio[[#Headers],[Country]],1,MATCH(Rio.medal,Rio[#Headers],0)-1,COUNT(Rio[Gold])))-Rio.startrow,0),COUNTIF(J$11:$J45,J45)))","v":"Colombia"},{"$f":"LARGE(OFFSET(Rio[[#Headers],[Country]],1,MATCH(Rio.medal,Rio[#Headers],0)-1,COUNT(Rio[Gold])),ROW(I45)-Rio.startrow)","v":8},{"$f":"VLOOKUP($I45,Rio[],K$9,0)","v":3},{"$f":"VLOOKUP($I45,Rio[],L$9,0)","v":2},{"$f":"VLOOKUP($I45,Rio[],M$9,0)","v":3},null,null,null,null,null,null,{"$f":"INDEX(Rio[Country],LARGE(IF(U45=OFFSET(Rio[[#Headers],[Country]],1,MATCH(Comparison.medal,Rio[#Headers],0)-1,COUNT(Rio[Gold])),ROW(OFFSET(Rio[[#Headers],[Country]],1,MATCH(Comparison.medal,Rio[#Headers],0)-1,COUNT(Rio[Gold])))-Rio.startrow,0),COUNTIF($U$11:U45,U45)))","v":"Colombia"},{"$f":"LARGE(OFFSET(Rio[[#Headers],[Country]],1,MATCH(Comparison.medal,Rio[#Headers],0)-1,COUNT(Rio[Gold])),ROW(S45)-Rio.startrow)","v":8},null,29,{"$f":"INDEX(London[Country],LARGE(IF(Y45=OFFSET(London[[#Headers],[Country]],1,MATCH(Comparison.medal,London[#Headers],0)-1,COUNT(London[Gold])),ROW(OFFSET(London[[#Headers],[Country]],1,MATCH(Comparison.medal,London[#Headers],0)-1,COUNT(London[Gold])))-london.startrow,0),COUNTIF($Y$11:Y45,Y45)))","v":"Ireland"},{"$f":"LARGE(OFFSET(London[[#Headers],[Country]],1,MATCH(Comparison.medal,London[#Headers],0)-1,COUNT(London[Gold])),ROW(U45)-Rio.startrow)","v":6},null,null,35,{"$f":"IFERROR(IF(AP45,CEILING(ROWS(AC$11:$AC45),3)/3,CEILING(ROWS(AC$11:$AC45),3)/3),NA())","v":12},null,10,-15,null,true,null,{"$f":"-IFERROR(IF(AP45,CEILING(ROWS(AJ$11:$AJ45),3)/3,IFERROR(INDEX($W$11:$W$60,ABS(AJ44)),1)),0)","v":-15},null,{"$error":"#N/A"},false,false,null,false]
["Thailand",2,2,2,6,null,null,null,{"$f":"INDEX(Rio[Country],LARGE(IF(J46=OFFSET(Rio[[#Headers],[Country]],1,MATCH(Rio.medal,Rio[#Headers],0)-1,COUNT(Rio[Gold])),ROW(OFFSET(Rio[[#Headers],[Country]],1,MATCH(Rio.medal,Rio[#Headers],0)-1,COUNT(Rio[Gold])))-Rio.startrow,0),COUNTIF(J$11:$J46,J46)))","v":"Georgia"},{"$f":"LARGE(OFFSET(Rio[[#Headers],[Country]],1,MATCH(Rio.medal,Rio[#Headers],0)-1,COUNT(Rio[Gold])),ROW(I46)-Rio.startrow)","v":7},{"$f":"VLOOKUP($I46,Rio[],K$9,0)","v":2},{"$f":"VLOOKUP($I46,Rio[],L$9,0)","v":1},{"$f":"VLOOKUP($I46,Rio[],M$9,0)","v":4},null,null,null,null,null,null,{"$f":"INDEX(Rio[Country],LARGE(IF(U46=OFFSET(Rio[[#Headers],[Country]],1,MATCH(Comparison.medal,Rio[#Headers],0)-1,COUNT(Rio[Gold])),ROW(OFFSET(Rio[[#Headers],[Country]],1,MATCH(Comparison.medal,Rio[#Headers],0)-1,COUNT(Rio[Gold])))-Rio.startrow,0),COUNTIF($U$11:U46,U46)))","v":"Georgia"},{"$f":"LARGE(OFFSET(Rio[[#Headers],[Country]],1,MATCH(Comparison.medal,Rio[#Headers],0)-1,COUNT(Rio[Gold])),ROW(S46)-Rio.startrow)","v":7},null,32,{"$f":"INDEX(London[Country],LARGE(IF(Y46=OFFSET(London[[#Headers],[Country]],1,MATCH(Comparison.medal,London[#Headers],0)-1,COUNT(London[Gold])),ROW(OFFSET(London[[#Headers],[Country]],1,MATCH(Comparison.medal,London[#Headers],0)-1,COUNT(London[Gold])))-london.startrow,0),COUNTIF($Y$11:Y46,Y46)))","v":"Croatia"},{"$f":"LARGE(OFFSET(London[[#Headers],[Country]],1,MATCH(Comparison.medal,London[#Headers],0)-1,COUNT(London[Gold])),ROW(U46)-Rio.startrow)","v":6},null,null,36,{"$f":"IFERROR(IF(AP46,CEILING(ROWS(AC$11:$AC46),3)/3,CEILING(ROWS(AC$11:$AC46),3)/3),NA())","v":{"$error":"#N/A"}},null,null,0,null,true,null,{"$f":"-IFERROR(IF(AP46,CEILING(ROWS(AJ$11:$AJ46),3)/3,IFERROR(INDEX($W$11:$W$60,ABS(AJ45)),1)),0)","v":0},null,{"$error":"#N/A"},false,false,null,""]
["Slovakia",2,2,0,4,null,null,null,{"$f":"INDEX(Rio[Country],LARGE(IF(J47=OFFSET(Rio[[#Headers],[Country]],1,MATCH(Rio.medal,Rio[#Headers],0)-1,COUNT(Rio[Gold])),ROW(OFFSET(Rio[[#Headers],[Country]],1,MATCH(Rio.medal,Rio[#Headers],0)-1,COUNT(Rio[Gold])))-Rio.startrow,0),COUNTIF(J$11:$J47,J47)))","v":"North Korea"},{"$f":"LARGE(OFFSET(Rio[[#Headers],[Country]],1,MATCH(Rio.medal,Rio[#Headers],0)-1,COUNT(Rio[Gold])),ROW(I47)-Rio.startrow)","v":7},{"$f":"VLOOKUP($I47,Rio[],K$9,0)","v":2},{"$f":"VLOOKUP($I47,Rio[],L$9,0)","v":3},{"$f":"VLOOKUP($I47,Rio[],M$9,0)","v":2},null,null,null,null,null,null,{"$f":"INDEX(Rio[Country],LARGE(IF(U47=OFFSET(Rio[[#Headers],[Country]],1,MATCH(Comparison.medal,Rio[#Headers],0)-1,COUNT(Rio[Gold])),ROW(OFFSET(Rio[[#Headers],[Country]],1,MATCH(Comparison.medal,Rio[#Headers],0)-1,COUNT(Rio[Gold])))-Rio.startrow,0),COUNTIF($U$11:U47,U47)))","v":"North Korea"},{"$f":"LARGE(OFFSET(Rio[[#Headers],[Country]],1,MATCH(Comparison.medal,Rio[#Headers],0)-1,COUNT(Rio[Gold])),ROW(S47)-Rio.startrow)","v":7},null,38,{"$f":"INDEX(London[Country],LARGE(IF(Y47=OFFSET(London[[#Headers],[Country]],1,MATCH(Comparison.medal,London[#Headers],0)-1,COUNT(London[Gold])),ROW(OFFSET(London[[#Headers],[Country]],1,MATCH(Comparison.medal,London[#Headers],0)-1,COUNT(London[Gold])))-london.startrow,0),COUNTIF($Y$11:Y47,Y47)))","v":"South Africa"},{"$f":"LARGE(OFFSET(London[[#Headers],[Country]],1,MATCH(Comparison.medal,London[#Headers],0)-1,COUNT(London[Gold])),ROW(U47)-Rio.startrow)","v":6},null,null,37,{"$f":"IFERROR(IF(AP47,CEILING(ROWS(AC$11:$AC47),3)/3,CEILING(ROWS(AC$11:$AC47),3)/3),NA())","v":13},null,1,-13,null,true,null,{"$f":"-IFERROR(IF(AP47,CEILING(ROWS(AJ$11:$AJ47),3)/3,IFERROR(INDEX($W$11:$W$60,ABS(AJ46)),1)),0)","v":-13},null,{"$error":"#N/A"},false,false,null,true]
["Georgia",2,1,4,7,null,null,null,{"$f":"INDEX(Rio[Country],LARGE(IF(J48=OFFSET(Rio[[#Headers],[Country]],1,MATCH(Rio.medal,Rio[#Headers],0)-1,COUNT(Rio[Gold])),ROW(OFFSET(Rio[[#Headers],[Country]],1,MATCH(Rio.medal,Rio[#Headers],0)-1,COUNT(Rio[Gold])))-Rio.startrow,0),COUNTIF(J$11:$J48,J48)))","v":"Switzerland"},{"$f":"LARGE(OFFSET(Rio[[#Headers],[Country]],1,MATCH(Rio.medal,Rio[#Headers],0)-1,COUNT(Rio[Gold])),ROW(I48)-Rio.startrow)","v":7},{"$f":"VLOOKUP($I48,Rio[],K$9,0)","v":3},{"$f":"VLOOKUP($I48,Rio[],L$9,0)","v":2},{"$f":"VLOOKUP($I48,Rio[],M$9,0)","v":2},null,null,null,null,null,null,{"$f":"INDEX(Rio[Country],LARGE(IF(U48=OFFSET(Rio[[#Headers],[Country]],1,MATCH(Comparison.medal,Rio[#Headers],0)-1,COUNT(Rio[Gold])),ROW(OFFSET(Rio[[#Headers],[Country]],1,MATCH(Comparison.medal,Rio[#Headers],0)-1,COUNT(Rio[Gold])))-Rio.startrow,0),COUNTIF($U$11:U48,U48)))","v":"Switzerland"},{"$f":"LARGE(OFFSET(Rio[[#Headers],[Country]],1,MATCH(Comparison.medal,Rio[#Headers],0)-1,COUNT(Rio[Gold])),ROW(S48)-Rio.startrow)","v":7},null,49,{"$f":"INDEX(London[Country],LARGE(IF(Y48=OFFSET(London[[#Headers],[Country]],1,MATCH(Comparison.medal,London[#Headers],0)-1,COUNT(London[Gold])),ROW(OFFSET(London[[#Headers],[Country]],1,MATCH(Comparison.medal,London[#Headers],0)-1,COUNT(London[Gold])))-london.startrow,0),COUNTIF($Y$11:Y48,Y48)))","v":"North Korea"},{"$f":"LARGE(OFFSET(London[[#Headers],[Country]],1,MATCH(Comparison.medal,London[#Headers],0)-1,COUNT(London[Gold])),ROW(U48)-Rio.startrow)","v":6},null,null,38,{"$f":"IFERROR(IF(AP48,CEILING(ROWS(AC$11:$AC48),3)/3,CEILING(ROWS(AC$11:$AC48),3)/3),NA())","v":13},null,10,-11,null,true,null,{"$f":"-IFERROR(IF(AP48,CEILING(ROWS(AJ$11:$AJ48),3)/3,IFERROR(INDEX($W$11:$W$60,ABS(AJ47)),1)),0)","v":-11},null,{"$error":"#N/A"},false,false,null,false]
["Azerbaijan",1,7,10,18,null,null,null,{"$f":"INDEX(Rio[Country],LARGE(IF(J49=OFFSET(Rio[[#Headers],[Country]],1,MATCH(Rio.medal,Rio[#Headers],0)-1,COUNT(Rio[Gold])),ROW(OFFSET(Rio[[#Headers],[Country]],1,MATCH(Rio.medal,Rio[#Headers],0)-1,COUNT(Rio[Gold])))-Rio.startrow,0),COUNTIF(J$11:$J49,J49)))","v":"Thailand"},{"$f":"LARGE(OFFSET(Rio[[#Headers],[Country]],1,MATCH(Rio.medal,Rio[#Headers],0)-1,COUNT(Rio[Gold])),ROW(I49)-Rio.startrow)","v":6},{"$f":"VLOOKUP($I49,Rio[],K$9,0)","v":2},{"$f":"VLOOKUP($I49,Rio[],L$9,0)","v":2},{"$f":"VLOOKUP($I49,Rio[],M$9,0)","v":2},null,null,null,null,null,null,{"$f":"INDEX(Rio[Country],LARGE(IF(U49=OFFSET(Rio[[#Headers],[Country]],1,MATCH(Comparison.medal,Rio[#Headers],0)-1,COUNT(Rio[Gold])),ROW(OFFSET(Rio[[#Headers],[Country]],1,MATCH(Comparison.medal,Rio[#Headers],0)-1,COUNT(Rio[Gold])))-Rio.startrow,0),COUNTIF($U$11:U49,U49)))","v":"Thailand"},{"$f":"LARGE(OFFSET(Rio[[#Headers],[Country]],1,MATCH(Comparison.medal,Rio[#Headers],0)-1,COUNT(Rio[Gold])),ROW(S49)-Rio.startrow)","v":6},null,42,{"$f":"INDEX(London[Country],LARGE(IF(Y49=OFFSET(London[[#Headers],[Country]],1,MATCH(Comparison.medal,London[#Headers],0)-1,COUNT(London[Gold])),ROW(OFFSET(London[[#Headers],[Country]],1,MATCH(Comparison.medal,London[#Headers],0)-1,COUNT(London[Gold])))-london.startrow,0),COUNTIF($Y$11:Y49,Y49)))","v":"Mongolia"},{"$f":"LARGE(OFFSET(London[[#Headers],[Country]],1,MATCH(Comparison.medal,London[#Headers],0)-1,COUNT(London[Gold])),ROW(U49)-Rio.startrow)","v":5},null,null,39,{"$f":"IFERROR(IF(AP49,CEILING(ROWS(AC$11:$AC49),3)/3,CEILING(ROWS(AC$11:$AC49),3)/3),NA())","v":{"$error":"#N/A"}},null,null,0,null,true,null,{"$f":"-IFERROR(IF(AP49,CEILING(ROWS(AJ$11:$AJ49),3)/3,IFERROR(INDEX($W$11:$W$60,ABS(AJ48)),1)),0)","v":0},null,{"$error":"#N/A"},false,false,null,""]
["Belarus",1,4,4,9,null,null,null,{"$f":"INDEX(Rio[Country],LARGE(IF(J50=OFFSET(Rio[[#Headers],[Country]],1,MATCH(Rio.medal,Rio[#Headers],0)-1,COUNT(Rio[Gold])),ROW(OFFSET(Rio[[#Headers],[Country]],1,MATCH(Rio.medal,Rio[#Headers],0)-1,COUNT(Rio[Gold])))-Rio.startrow,0),COUNTIF(J$11:$J50,J50)))","v":"Belgium"},{"$f":"LARGE(OFFSET(Rio[[#Headers],[Country]],1,MATCH(Rio.medal,Rio[#Headers],0)-1,COUNT(Rio[Gold])),ROW(I50)-Rio.startrow)","v":6},{"$f":"VLOOKUP($I50,Rio[],K$9,0)","v":2},{"$f":"VLOOKUP($I50,Rio[],L$9,0)","v":2},{"$f":"VLOOKUP($I50,Rio[],M$9,0)","v":2},null,null,null,null,null,null,{"$f":"INDEX(Rio[Country],LARGE(IF(U50=OFFSET(Rio[[#Headers],[Country]],1,MATCH(Comparison.medal,Rio[#Headers],0)-1,COUNT(Rio[Gold])),ROW(OFFSET(Rio[[#Headers],[Country]],1,MATCH(Comparison.medal,Rio[#Headers],0)-1,COUNT(Rio[Gold])))-Rio.startrow,0),COUNTIF($U$11:U50,U50)))","v":"Belgium"},{"$f":"LARGE(OFFSET(Rio[[#Headers],[Country]],1,MATCH(Comparison.medal,Rio[#Headers],0)-1,COUNT(Rio[Gold])),ROW(S50)-Rio.startrow)","v":6},null,{"$error":"#N/A"},{"$f":"INDEX(London[Country],LARGE(IF(Y50=OFFSET(London[[#Headers],[Country]],1,MATCH(Comparison.medal,London[#Headers],0)-1,COUNT(London[Gold])),ROW(OFFSET(London[[#Headers],[Country]],1,MATCH(Comparison.medal,London[#Headers],0)-1,COUNT(London[Gold])))-london.startrow,0),COUNTIF($Y$11:Y50,Y50)))","v":"Lithuania"},{"$f":"LARGE(OFFSET(London[[#Headers],[Country]],1,MATCH(Comparison.medal,London[#Headers],0)-1,COUNT(London[Gold])),ROW(U50)-Rio.startrow)","v":5},null,null,40,{"$f":"IFERROR(IF(AP50,CEILING(ROWS(AC$11:$AC50),3)/3,CEILING(ROWS(AC$11:$AC50),3)/3),NA())","v":14},null,1,-14,null,true,null,{"$f":"-IFERROR(IF(AP50,CEILING(ROWS(AJ$11:$AJ50),3)/3,IFERROR(INDEX($W$11:$W$60,ABS(AJ49)),1)),0)","v":-14},null,{"$error":"#N/A"},false,false,null,true]
["Turkey",1,3,4,8,null,null,null,{"$f":"INDEX(Rio[Country],LARGE(IF(J51=OFFSET(Rio[[#Headers],[Country]],1,MATCH(Rio.medal,Rio[#Headers],0)-1,COUNT(Rio[Gold])),ROW(OFFSET(Rio[[#Headers],[Country]],1,MATCH(Rio.medal,Rio[#Headers],0)-1,COUNT(Rio[Gold])))-Rio.startrow,0),COUNTIF(J$11:$J51,J51)))","v":"Greece"},{"$f":"LARGE(OFFSET(Rio[[#Headers],[Country]],1,MATCH(Rio.medal,Rio[#Headers],0)-1,COUNT(Rio[Gold])),ROW(I51)-Rio.startrow)","v":6},{"$f":"VLOOKUP($I51,Rio[],K$9,0)","v":3},{"$f":"VLOOKUP($I51,Rio[],L$9,0)","v":1},{"$f":"VLOOKUP($I51,Rio[],M$9,0)","v":2},null,null,null,null,null,null,{"$f":"INDEX(Rio[Country],LARGE(IF(U51=OFFSET(Rio[[#Headers],[Country]],1,MATCH(Comparison.medal,Rio[#Headers],0)-1,COUNT(Rio[Gold])),ROW(OFFSET(Rio[[#Headers],[Country]],1,MATCH(Comparison.medal,Rio[#Headers],0)-1,COUNT(Rio[Gold])))-Rio.startrow,0),COUNTIF($U$11:U51,U51)))","v":"Greece"},{"$f":"LARGE(OFFSET(Rio[[#Headers],[Country]],1,MATCH(Comparison.medal,Rio[#Headers],0)-1,COUNT(Rio[Gold])),ROW(S51)-Rio.startrow)","v":6},null,{"$error":"#N/A"},{"$f":"INDEX(London[Country],LARGE(IF(Y51=OFFSET(London[[#Headers],[Country]],1,MATCH(Comparison.medal,London[#Headers],0)-1,COUNT(London[Gold])),ROW(OFFSET(London[[#Headers],[Country]],1,MATCH(Comparison.medal,London[#Headers],0)-1,COUNT(London[Gold])))-london.startrow,0),COUNTIF($Y$11:Y51,Y51)))","v":"Slovakia"},{"$f":"LARGE(OFFSET(London[[#Headers],[Country]],1,MATCH(Comparison.medal,London[#Headers],0)-1,COUNT(London[Gold])),ROW(U51)-Rio.startrow)","v":4},null,null,41,{"$f":"IFERROR(IF(AP51,CEILING(ROWS(AC$11:$AC51),3)/3,CEILING(ROWS(AC$11:$AC51),3)/3),NA())","v":14},null,10,-25,null,true,null,{"$f":"-IFERROR(IF(AP51,CEILING(ROWS(AJ$11:$AJ51),3)/3,IFERROR(INDEX($W$11:$W$60,ABS(AJ50)),1)),0)","v":-25},null,{"$error":"#N/A"},false,false,null,false]
["Armenia",1,3,0,4,null,null,null,{"$f":"INDEX(Rio[Country],LARGE(IF(J52=OFFSET(Rio[[#Headers],[Country]],1,MATCH(Rio.medal,Rio[#Headers],0)-1,COUNT(Rio[Gold])),ROW(OFFSET(Rio[[#Headers],[Country]],1,MATCH(Rio.medal,Rio[#Headers],0)-1,COUNT(Rio[Gold])))-Rio.startrow,0),COUNTIF(J$11:$J52,J52)))","v":"Mexico"},{"$f":"LARGE(OFFSET(Rio[[#Headers],[Country]],1,MATCH(Rio.medal,Rio[#Headers],0)-1,COUNT(Rio[Gold])),ROW(I52)-Rio.startrow)","v":5},{"$f":"VLOOKUP($I52,Rio[],K$9,0)","v":0},{"$f":"VLOOKUP($I52,Rio[],L$9,0)","v":3},{"$f":"VLOOKUP($I52,Rio[],M$9,0)","v":2},null,null,null,null,null,null,{"$f":"INDEX(Rio[Country],LARGE(IF(U52=OFFSET(Rio[[#Headers],[Country]],1,MATCH(Comparison.medal,Rio[#Headers],0)-1,COUNT(Rio[Gold])),ROW(OFFSET(Rio[[#Headers],[Country]],1,MATCH(Comparison.medal,Rio[#Headers],0)-1,COUNT(Rio[Gold])))-Rio.startrow,0),COUNTIF($U$11:U52,U52)))","v":"Mexico"},{"$f":"LARGE(OFFSET(Rio[[#Headers],[Country]],1,MATCH(Comparison.medal,Rio[#Headers],0)-1,COUNT(Rio[Gold])),ROW(S52)-Rio.startrow)","v":5},null,31,{"$f":"INDEX(London[Country],LARGE(IF(Y52=OFFSET(London[[#Headers],[Country]],1,MATCH(Comparison.medal,London[#Headers],0)-1,COUNT(London[Gold])),ROW(OFFSET(London[[#Headers],[Country]],1,MATCH(Comparison.medal,London[#Headers],0)-1,COUNT(London[Gold])))-london.startrow,0),COUNTIF($Y$11:Y52,Y52)))","v":"Thailand"},{"$f":"LARGE(OFFSET(London[[#Headers],[Country]],1,MATCH(Comparison.medal,London[#Headers],0)-1,COUNT(London[Gold])),ROW(U52)-Rio.startrow)","v":4},null,null,42,{"$f":"IFERROR(IF(AP52,CEILING(ROWS(AC$11:$AC52),3)/3,CEILING(ROWS(AC$11:$AC52),3)/3),NA())","v":{"$error":"#N/A"}},null,null,0,null,true,null,{"$f":"-IFERROR(IF(AP52,CEILING(ROWS(AJ$11:$AJ52),3)/3,IFERROR(INDEX($W$11:$W$60,ABS(AJ51)),1)),0)","v":0},null,{"$error":"#N/A"},false,false,null,""]
["Czech Republic",1,2,7,10,null,null,null,{"$f":"INDEX(Rio[Country],LARGE(IF(J53=OFFSET(Rio[[#Headers],[Country]],1,MATCH(Rio.medal,Rio[#Headers],0)-1,COUNT(Rio[Gold])),ROW(OFFSET(Rio[[#Headers],[Country]],1,MATCH(Rio.medal,Rio[#Headers],0)-1,COUNT(Rio[Gold])))-Rio.startrow,0),COUNTIF(J$11:$J53,J53)))","v":"Malaysia"},{"$f":"LARGE(OFFSET(Rio[[#Headers],[Country]],1,MATCH(Rio.medal,Rio[#Headers],0)-1,COUNT(Rio[Gold])),ROW(I53)-Rio.startrow)","v":5},{"$f":"VLOOKUP($I53,Rio[],K$9,0)","v":0},{"$f":"VLOOKUP($I53,Rio[],L$9,0)","v":4},{"$f":"VLOOKUP($I53,Rio[],M$9,0)","v":1},null,null,null,null,null,null,{"$f":"INDEX(Rio[Country],LARGE(IF(U53=OFFSET(Rio[[#Headers],[Country]],1,MATCH(Comparison.medal,Rio[#Headers],0)-1,COUNT(Rio[Gold])),ROW(OFFSET(Rio[[#Headers],[Country]],1,MATCH(Comparison.medal,Rio[#Headers],0)-1,COUNT(Rio[Gold])))-Rio.startrow,0),COUNTIF($U$11:U53,U53)))","v":"Malaysia"},{"$f":"LARGE(OFFSET(Rio[[#Headers],[Country]],1,MATCH(Comparison.medal,Rio[#Headers],0)-1,COUNT(Rio[Gold])),ROW(S53)-Rio.startrow)","v":5},null,{"$error":"#N/A"},{"$f":"INDEX(London[Country],LARGE(IF(Y53=OFFSET(London[[#Headers],[Country]],1,MATCH(Comparison.medal,London[#Headers],0)-1,COUNT(London[Gold])),ROW(OFFSET(London[[#Headers],[Country]],1,MATCH(Comparison.medal,London[#Headers],0)-1,COUNT(London[Gold])))-london.startrow,0),COUNTIF($Y$11:Y53,Y53)))","v":"Trinidad and Tobago"},{"$f":"LARGE(OFFSET(London[[#Headers],[Country]],1,MATCH(Comparison.medal,London[#Headers],0)-1,COUNT(London[Gold])),ROW(U53)-Rio.startrow)","v":4},null,null,43,{"$f":"IFERROR(IF(AP53,CEILING(ROWS(AC$11:$AC53),3)/3,CEILING(ROWS(AC$11:$AC53),3)/3),NA())","v":15},null,1,-15,null,true,null,{"$f":"-IFERROR(IF(AP53,CEILING(ROWS(AJ$11:$AJ53),3)/3,IFERROR(INDEX($W$11:$W$60,ABS(AJ52)),1)),0)","v":-15},null,{"$error":"#N/A"},false,false,null,true]
["Ethiopia",1,2,5,8,null,null,null,{"$f":"INDEX(Rio[Country],LARGE(IF(J54=OFFSET(Rio[[#Headers],[Country]],1,MATCH(Rio.medal,Rio[#Headers],0)-1,COUNT(Rio[Gold])),ROW(OFFSET(Rio[[#Headers],[Country]],1,MATCH(Rio.medal,Rio[#Headers],0)-1,COUNT(Rio[Gold])))-Rio.startrow,0),COUNTIF(J$11:$J54,J54)))","v":"Romania"},{"$f":"LARGE(OFFSET(Rio[[#Headers],[Country]],1,MATCH(Rio.medal,Rio[#Headers],0)-1,COUNT(Rio[Gold])),ROW(I54)-Rio.startrow)","v":5},{"$f":"VLOOKUP($I54,Rio[],K$9,0)","v":1},{"$f":"VLOOKUP($I54,Rio[],L$9,0)","v":1},{"$f":"VLOOKUP($I54,Rio[],M$9,0)","v":3},null,null,null,null,null,null,{"$f":"INDEX(Rio[Country],LARGE(IF(U54=OFFSET(Rio[[#Headers],[Country]],1,MATCH(Comparison.medal,Rio[#Headers],0)-1,COUNT(Rio[Gold])),ROW(OFFSET(Rio[[#Headers],[Country]],1,MATCH(Comparison.medal,Rio[#Headers],0)-1,COUNT(Rio[Gold])))-Rio.startrow,0),COUNTIF($U$11:U54,U54)))","v":"Romania"},{"$f":"LARGE(OFFSET(Rio[[#Headers],[Country]],1,MATCH(Comparison.medal,Rio[#Headers],0)-1,COUNT(Rio[Gold])),ROW(S54)-Rio.startrow)","v":5},null,28,{"$f":"INDEX(London[Country],LARGE(IF(Y54=OFFSET(London[[#Headers],[Country]],1,MATCH(Comparison.medal,London[#Headers],0)-1,COUNT(London[Gold])),ROW(OFFSET(London[[#Headers],[Country]],1,MATCH(Comparison.medal,London[#Headers],0)-1,COUNT(London[Gold])))-london.startrow,0),COUNTIF($Y$11:Y54,Y54)))","v":"Slovenia"},{"$f":"LARGE(OFFSET(London[[#Headers],[Country]],1,MATCH(Comparison.medal,London[#Headers],0)-1,COUNT(London[Gold])),ROW(U54)-Rio.startrow)","v":4},null,null,44,{"$f":"IFERROR(IF(AP54,CEILING(ROWS(AC$11:$AC54),3)/3,CEILING(ROWS(AC$11:$AC54),3)/3),NA())","v":15},null,10,-18,null,true,null,{"$f":"-IFERROR(IF(AP54,CEILING(ROWS(AJ$11:$AJ54),3)/3,IFERROR(INDEX($W$11:$W$60,ABS(AJ53)),1)),0)","v":-18},null,{"$error":"#N/A"},false,false,null,false]
["Slovenia",1,2,1,4,null,null,null,{"$f":"INDEX(Rio[Country],LARGE(IF(J55=OFFSET(Rio[[#Headers],[Country]],1,MATCH(Rio.medal,Rio[#Headers],0)-1,COUNT(Rio[Gold])),ROW(OFFSET(Rio[[#Headers],[Country]],1,MATCH(Rio.medal,Rio[#Headers],0)-1,COUNT(Rio[Gold])))-Rio.startrow,0),COUNTIF(J$11:$J55,J55)))","v":"Norway"},{"$f":"LARGE(OFFSET(Rio[[#Headers],[Country]],1,MATCH(Rio.medal,Rio[#Headers],0)-1,COUNT(Rio[Gold])),ROW(I55)-Rio.startrow)","v":4},{"$f":"VLOOKUP($I55,Rio[],K$9,0)","v":0},{"$f":"VLOOKUP($I55,Rio[],L$9,0)","v":0},{"$f":"VLOOKUP($I55,Rio[],M$9,0)","v":4},null,null,null,null,null,null,{"$f":"INDEX(Rio[Country],LARGE(IF(U55=OFFSET(Rio[[#Headers],[Country]],1,MATCH(Comparison.medal,Rio[#Headers],0)-1,COUNT(Rio[Gold])),ROW(OFFSET(Rio[[#Headers],[Country]],1,MATCH(Comparison.medal,Rio[#Headers],0)-1,COUNT(Rio[Gold])))-Rio.startrow,0),COUNTIF($U$11:U55,U55)))","v":"Norway"},{"$f":"LARGE(OFFSET(Rio[[#Headers],[Country]],1,MATCH(Comparison.medal,Rio[#Headers],0)-1,COUNT(Rio[Gold])),ROW(S55)-Rio.startrow)","v":4},null,48,{"$f":"INDEX(London[Country],LARGE(IF(Y55=OFFSET(London[[#Headers],[Country]],1,MATCH(Comparison.medal,London[#Headers],0)-1,COUNT(London[Gold])),ROW(OFFSET(London[[#Headers],[Country]],1,MATCH(Comparison.medal,London[#Headers],0)-1,COUNT(London[Gold])))-london.startrow,0),COUNTIF($Y$11:Y55,Y55)))","v":"Serbia"},{"$f":"LARGE(OFFSET(London[[#Headers],[Country]],1,MATCH(Comparison.medal,London[#Headers],0)-1,COUNT(London[Gold])),ROW(U55)-Rio.startrow)","v":4},null,null,45,{"$f":"IFERROR(IF(AP55,CEILING(ROWS(AC$11:$AC55),3)/3,CEILING(ROWS(AC$11:$AC55),3)/3),NA())","v":{"$error":"#N/A"}},null,null,0,null,true,null,{"$f":"-IFERROR(IF(AP55,CEILING(ROWS(AJ$11:$AJ55),3)/3,IFERROR(INDEX($W$11:$W$60,ABS(AJ54)),1)),0)","v":0},null,{"$error":"#N/A"},false,false,null,""]
["Indonesia",1,2,0,3,null,null,null,{"$f":"INDEX(Rio[Country],LARGE(IF(J56=OFFSET(Rio[[#Headers],[Country]],1,MATCH(Rio.medal,Rio[#Headers],0)-1,COUNT(Rio[Gold])),ROW(OFFSET(Rio[[#Headers],[Country]],1,MATCH(Rio.medal,Rio[#Headers],0)-1,COUNT(Rio[Gold])))-Rio.startrow,0),COUNTIF(J$11:$J56,J56)))","v":"Lithuania"},{"$f":"LARGE(OFFSET(Rio[[#Headers],[Country]],1,MATCH(Rio.medal,Rio[#Headers],0)-1,COUNT(Rio[Gold])),ROW(I56)-Rio.startrow)","v":4},{"$f":"VLOOKUP($I56,Rio[],K$9,0)","v":0},{"$f":"VLOOKUP($I56,Rio[],L$9,0)","v":1},{"$f":"VLOOKUP($I56,Rio[],M$9,0)","v":3},null,null,null,null,null,null,{"$f":"INDEX(Rio[Country],LARGE(IF(U56=OFFSET(Rio[[#Headers],[Country]],1,MATCH(Comparison.medal,Rio[#Headers],0)-1,COUNT(Rio[Gold])),ROW(OFFSET(Rio[[#Headers],[Country]],1,MATCH(Comparison.medal,Rio[#Headers],0)-1,COUNT(Rio[Gold])))-Rio.startrow,0),COUNTIF($U$11:U56,U56)))","v":"Lithuania"},{"$f":"LARGE(OFFSET(Rio[[#Headers],[Country]],1,MATCH(Comparison.medal,Rio[#Headers],0)-1,COUNT(Rio[Gold])),ROW(S56)-Rio.startrow)","v":4},null,40,{"$f":"INDEX(London[Country],LARGE(IF(Y56=OFFSET(London[[#Headers],[Country]],1,MATCH(Comparison.medal,London[#Headers],0)-1,COUNT(London[Gold])),ROW(OFFSET(London[[#Headers],[Country]],1,MATCH(Comparison.medal,London[#Headers],0)-1,COUNT(London[Gold])))-london.startrow,0),COUNTIF($Y$11:Y56,Y56)))","v":"Argentina"},{"$f":"LARGE(OFFSET(London[[#Headers],[Country]],1,MATCH(Comparison.medal,London[#Headers],0)-1,COUNT(London[Gold])),ROW(U56)-Rio.startrow)","v":4},null,null,46,{"$f":"IFERROR(IF(AP56,CEILING(ROWS(AC$11:$AC56),3)/3,CEILING(ROWS(AC$11:$AC56),3)/3),NA())","v":16},null,1,-16,null,true,null,{"$f":"-IFERROR(IF(AP56,CEILING(ROWS(AJ$11:$AJ56),3)/3,IFERROR(INDEX($W$11:$W$60,ABS(AJ55)),1)),0)","v":-16},null,{"$error":"#N/A"},false,false,null,true]
["Romania",1,1,3,5,null,null,null,{"$f":"INDEX(Rio[Country],LARGE(IF(J57=OFFSET(Rio[[#Headers],[Country]],1,MATCH(Rio.medal,Rio[#Headers],0)-1,COUNT(Rio[Gold])),ROW(OFFSET(Rio[[#Headers],[Country]],1,MATCH(Rio.medal,Rio[#Headers],0)-1,COUNT(Rio[Gold])))-Rio.startrow,0),COUNTIF(J$11:$J57,J57)))","v":"Slovenia"},{"$f":"LARGE(OFFSET(Rio[[#Headers],[Country]],1,MATCH(Rio.medal,Rio[#Headers],0)-1,COUNT(Rio[Gold])),ROW(I57)-Rio.startrow)","v":4},{"$f":"VLOOKUP($I57,Rio[],K$9,0)","v":1},{"$f":"VLOOKUP($I57,Rio[],L$9,0)","v":2},{"$f":"VLOOKUP($I57,Rio[],M$9,0)","v":1},null,null,null,null,null,null,{"$f":"INDEX(Rio[Country],LARGE(IF(U57=OFFSET(Rio[[#Headers],[Country]],1,MATCH(Comparison.medal,Rio[#Headers],0)-1,COUNT(Rio[Gold])),ROW(OFFSET(Rio[[#Headers],[Country]],1,MATCH(Comparison.medal,Rio[#Headers],0)-1,COUNT(Rio[Gold])))-Rio.startrow,0),COUNTIF($U$11:U57,U57)))","v":"Slovenia"},{"$f":"LARGE(OFFSET(Rio[[#Headers],[Country]],1,MATCH(Comparison.medal,Rio[#Headers],0)-1,COUNT(Rio[Gold])),ROW(S57)-Rio.startrow)","v":4},null,44,{"$f":"INDEX(London[Country],LARGE(IF(Y57=OFFSET(London[[#Headers],[Country]],1,MATCH(Comparison.medal,London[#Headers],0)-1,COUNT(London[Gold])),ROW(OFFSET(London[[#Headers],[Country]],1,MATCH(Comparison.medal,London[#Headers],0)-1,COUNT(London[Gold])))-london.startrow,0),COUNTIF($Y$11:Y57,Y57)))","v":"Turkey"},{"$f":"LARGE(OFFSET(London[[#Headers],[Country]],1,MATCH(Comparison.medal,London[#Headers],0)-1,COUNT(London[Gold])),ROW(U57)-Rio.startrow)","v":4},null,null,47,{"$f":"IFERROR(IF(AP57,CEILING(ROWS(AC$11:$AC57),3)/3,CEILING(ROWS(AC$11:$AC57),3)/3),NA())","v":16},null,10,-19,null,true,null,{"$f":"-IFERROR(IF(AP57,CEILING(ROWS(AJ$11:$AJ57),3)/3,IFERROR(INDEX($W$11:$W$60,ABS(AJ56)),1)),0)","v":-19},null,{"$error":"#N/A"},false,false,null,false]
["Bahrain",1,1,0,2,null,null,null,{"$f":"INDEX(Rio[Country],LARGE(IF(J58=OFFSET(Rio[[#Headers],[Country]],1,MATCH(Rio.medal,Rio[#Headers],0)-1,COUNT(Rio[Gold])),ROW(OFFSET(Rio[[#Headers],[Country]],1,MATCH(Rio.medal,Rio[#Headers],0)-1,COUNT(Rio[Gold])))-Rio.startrow,0),COUNTIF(J$11:$J58,J58)))","v":"Armenia"},{"$f":"LARGE(OFFSET(Rio[[#Headers],[Country]],1,MATCH(Rio.medal,Rio[#Headers],0)-1,COUNT(Rio[Gold])),ROW(I58)-Rio.startrow)","v":4},{"$f":"VLOOKUP($I58,Rio[],K$9,0)","v":1},{"$f":"VLOOKUP($I58,Rio[],L$9,0)","v":3},{"$f":"VLOOKUP($I58,Rio[],M$9,0)","v":0},null,null,null,null,null,null,{"$f":"INDEX(Rio[Country],LARGE(IF(U58=OFFSET(Rio[[#Headers],[Country]],1,MATCH(Comparison.medal,Rio[#Headers],0)-1,COUNT(Rio[Gold])),ROW(OFFSET(Rio[[#Headers],[Country]],1,MATCH(Comparison.medal,Rio[#Headers],0)-1,COUNT(Rio[Gold])))-Rio.startrow,0),COUNTIF($U$11:U58,U58)))","v":"Armenia"},{"$f":"LARGE(OFFSET(Rio[[#Headers],[Country]],1,MATCH(Comparison.medal,Rio[#Headers],0)-1,COUNT(Rio[Gold])),ROW(S58)-Rio.startrow)","v":4},null,{"$error":"#N/A"},{"$f":"INDEX(London[Country],LARGE(IF(Y58=OFFSET(London[[#Headers],[Country]],1,MATCH(Comparison.medal,London[#Headers],0)-1,COUNT(London[Gold])),ROW(OFFSET(London[[#Headers],[Country]],1,MATCH(Comparison.medal,London[#Headers],0)-1,COUNT(London[Gold])))-london.startrow,0),COUNTIF($Y$11:Y58,Y58)))","v":"Norway"},{"$f":"LARGE(OFFSET(London[[#Headers],[Country]],1,MATCH(Comparison.medal,London[#Headers],0)-1,COUNT(London[Gold])),ROW(U58)-Rio.startrow)","v":4},null,null,48,{"$f":"IFERROR(IF(AP58,CEILING(ROWS(AC$11:$AC58),3)/3,CEILING(ROWS(AC$11:$AC58),3)/3),NA())","v":{"$error":"#N/A"}},null,null,0,null,true,null,{"$f":"-IFERROR(IF(AP58,CEILING(ROWS(AJ$11:$AJ58),3)/3,IFERROR(INDEX($W$11:$W$60,ABS(AJ57)),1)),0)","v":0},null,{"$error":"#N/A"},false,false,null,""]
["Vietnam",1,1,0,2,null,null,null,{"$f":"INDEX(Rio[Country],LARGE(IF(J59=OFFSET(Rio[[#Headers],[Country]],1,MATCH(Rio.medal,Rio[#Headers],0)-1,COUNT(Rio[Gold])),ROW(OFFSET(Rio[[#Headers],[Country]],1,MATCH(Rio.medal,Rio[#Headers],0)-1,COUNT(Rio[Gold])))-Rio.startrow,0),COUNTIF(J$11:$J59,J59)))","v":"Slovakia"},{"$f":"LARGE(OFFSET(Rio[[#Headers],[Country]],1,MATCH(Rio.medal,Rio[#Headers],0)-1,COUNT(Rio[Gold])),ROW(I59)-Rio.startrow)","v":4},{"$f":"VLOOKUP($I59,Rio[],K$9,0)","v":2},{"$f":"VLOOKUP($I59,Rio[],L$9,0)","v":2},{"$f":"VLOOKUP($I59,Rio[],M$9,0)","v":0},null,null,null,null,null,null,{"$f":"INDEX(Rio[Country],LARGE(IF(U59=OFFSET(Rio[[#Headers],[Country]],1,MATCH(Comparison.medal,Rio[#Headers],0)-1,COUNT(Rio[Gold])),ROW(OFFSET(Rio[[#Headers],[Country]],1,MATCH(Comparison.medal,Rio[#Headers],0)-1,COUNT(Rio[Gold])))-Rio.startrow,0),COUNTIF($U$11:U59,U59)))","v":"Slovakia"},{"$f":"LARGE(OFFSET(Rio[[#Headers],[Country]],1,MATCH(Comparison.medal,Rio[#Headers],0)-1,COUNT(Rio[Gold])),ROW(S59)-Rio.startrow)","v":4},null,41,{"$f":"INDEX(London[Country],LARGE(IF(Y59=OFFSET(London[[#Headers],[Country]],1,MATCH(Comparison.medal,London[#Headers],0)-1,COUNT(London[Gold])),ROW(OFFSET(London[[#Headers],[Country]],1,MATCH(Comparison.medal,London[#Headers],0)-1,COUNT(London[Gold])))-london.startrow,0),COUNTIF($Y$11:Y59,Y59)))","v":"Switzerland"},{"$f":"LARGE(OFFSET(London[[#Headers],[Country]],1,MATCH(Comparison.medal,London[#Headers],0)-1,COUNT(London[Gold])),ROW(U59)-Rio.startrow)","v":4},null,null,49,{"$f":"IFERROR(IF(AP59,CEILING(ROWS(AC$11:$AC59),3)/3,CEILING(ROWS(AC$11:$AC59),3)/3),NA())","v":17},null,1,-17,null,true,null,{"$f":"-IFERROR(IF(AP59,CEILING(ROWS(AJ$11:$AJ59),3)/3,IFERROR(INDEX($W$11:$W$60,ABS(AJ58)),1)),0)","v":-17},null,{"$error":"#N/A"},false,false,null,true]
["Chinese Taipei",1,0,2,3,null,null,null,{"$f":"INDEX(Rio[Country],LARGE(IF(J60=OFFSET(Rio[[#Headers],[Country]],1,MATCH(Rio.medal,Rio[#Headers],0)-1,COUNT(Rio[Gold])),ROW(OFFSET(Rio[[#Headers],[Country]],1,MATCH(Rio.medal,Rio[#Headers],0)-1,COUNT(Rio[Gold])))-Rio.startrow,0),COUNTIF(J$11:$J60,J60)))","v":"Argentina"},{"$f":"LARGE(OFFSET(Rio[[#Headers],[Country]],1,MATCH(Rio.medal,Rio[#Headers],0)-1,COUNT(Rio[Gold])),ROW(I60)-Rio.startrow)","v":4},{"$f":"VLOOKUP($I60,Rio[],K$9,0)","v":3},{"$f":"VLOOKUP($I60,Rio[],L$9,0)","v":1},{"$f":"VLOOKUP($I60,Rio[],M$9,0)","v":0},null,null,null,null,null,null,{"$f":"INDEX(Rio[Country],LARGE(IF(U60=OFFSET(Rio[[#Headers],[Country]],1,MATCH(Comparison.medal,Rio[#Headers],0)-1,COUNT(Rio[Gold])),ROW(OFFSET(Rio[[#Headers],[Country]],1,MATCH(Comparison.medal,Rio[#Headers],0)-1,COUNT(Rio[Gold])))-Rio.startrow,0),COUNTIF($U$11:U60,U60)))","v":"Argentina"},{"$f":"LARGE(OFFSET(Rio[[#Headers],[Country]],1,MATCH(Comparison.medal,Rio[#Headers],0)-1,COUNT(Rio[Gold])),ROW(S60)-Rio.startrow)","v":4},null,46,{"$f":"INDEX(London[Country],LARGE(IF(Y60=OFFSET(London[[#Headers],[Country]],1,MATCH(Comparison.medal,London[#Headers],0)-1,COUNT(London[Gold])),ROW(OFFSET(London[[#Headers],[Country]],1,MATCH(Comparison.medal,London[#Headers],0)-1,COUNT(London[Gold])))-london.startrow,0),COUNTIF($Y$11:Y60,Y60)))","v":"Finland"},{"$f":"LARGE(OFFSET(London[[#Headers],[Country]],1,MATCH(Comparison.medal,London[#Headers],0)-1,COUNT(London[Gold])),ROW(U60)-Rio.startrow)","v":3},null,null,50,{"$f":"IFERROR(IF(AP60,CEILING(ROWS(AC$11:$AC60),3)/3,CEILING(ROWS(AC$11:$AC60),3)/3),NA())","v":17},null,10,-16,null,true,null,{"$f":"-IFERROR(IF(AP60,CEILING(ROWS(AJ$11:$AJ60),3)/3,IFERROR(INDEX($W$11:$W$60,ABS(AJ59)),1)),0)","v":-16},null,{"$error":"#N/A"},false,false,null,false]
["Bahamas",1,0,1,2,null,null,null,{"$f":"INDEX(Rio[Country],LARGE(IF(J61=OFFSET(Rio[[#Headers],[Country]],1,MATCH(Rio.medal,Rio[#Headers],0)-1,COUNT(Rio[Gold])),ROW(OFFSET(Rio[[#Headers],[Country]],1,MATCH(Rio.medal,Rio[#Headers],0)-1,COUNT(Rio[Gold])))-Rio.startrow,0),COUNTIF(J$11:$J61,J61)))","v":"Tunisia"},{"$f":"LARGE(OFFSET(Rio[[#Headers],[Country]],1,MATCH(Rio.medal,Rio[#Headers],0)-1,COUNT(Rio[Gold])),ROW(I61)-Rio.startrow)","v":3},{"$f":"VLOOKUP($I61,Rio[],K$9,0)","v":0},{"$f":"VLOOKUP($I61,Rio[],L$9,0)","v":0},{"$f":"VLOOKUP($I61,Rio[],M$9,0)","v":3},null,null,null,null,null,null,null,null,null,null,null,null,null,null,51,{"$f":"IFERROR(IF(AP61,CEILING(ROWS(AC$11:$AC61),3)/3,CEILING(ROWS(AC$11:$AC61),3)/3),NA())","v":{"$error":"#N/A"}},null,null,0,null,true,null,{"$f":"-IFERROR(IF(AP61,CEILING(ROWS(AJ$11:$AJ61),3)/3,IFERROR(INDEX($W$11:$W$60,ABS(AJ60)),1)),0)","v":0},null,{"$error":"#N/A"},false,false,null,""]
["Cote d'Ivoire",1,0,1,2,null,null,null,{"$f":"INDEX(Rio[Country],LARGE(IF(J62=OFFSET(Rio[[#Headers],[Country]],1,MATCH(Rio.medal,Rio[#Headers],0)-1,COUNT(Rio[Gold])),ROW(OFFSET(Rio[[#Headers],[Country]],1,MATCH(Rio.medal,Rio[#Headers],0)-1,COUNT(Rio[Gold])))-Rio.startrow,0),COUNTIF(J$11:$J62,J62)))","v":"Egypt"},{"$f":"LARGE(OFFSET(Rio[[#Headers],[Country]],1,MATCH(Rio.medal,Rio[#Headers],0)-1,COUNT(Rio[Gold])),ROW(I62)-Rio.startrow)","v":3},{"$f":"VLOOKUP($I62,Rio[],K$9,0)","v":0},{"$f":"VLOOKUP($I62,Rio[],L$9,0)","v":0},{"$f":"VLOOKUP($I62,Rio[],M$9,0)","v":3},null,null,null,null,null,null,null,null,null,null,null,null,null,null,52,{"$f":"IFERROR(IF(AP62,CEILING(ROWS(AC$11:$AC62),3)/3,CEILING(ROWS(AC$11:$AC62),3)/3),NA())","v":18},null,1,-18,null,true,null,{"$f":"-IFERROR(IF(AP62,CEILING(ROWS(AJ$11:$AJ62),3)/3,IFERROR(INDEX($W$11:$W$60,ABS(AJ61)),1)),0)","v":-18},null,-18,true,true,null,true]
["IOA",1,0,1,2,null,null,null,{"$f":"INDEX(Rio[Country],LARGE(IF(J63=OFFSET(Rio[[#Headers],[Country]],1,MATCH(Rio.medal,Rio[#Headers],0)-1,COUNT(Rio[Gold])),ROW(OFFSET(Rio[[#Headers],[Country]],1,MATCH(Rio.medal,Rio[#Headers],0)-1,COUNT(Rio[Gold])))-Rio.startrow,0),COUNTIF(J$11:$J63,J63)))","v":"Venezuela"},{"$f":"LARGE(OFFSET(Rio[[#Headers],[Country]],1,MATCH(Rio.medal,Rio[#Headers],0)-1,COUNT(Rio[Gold])),ROW(I63)-Rio.startrow)","v":3},{"$f":"VLOOKUP($I63,Rio[],K$9,0)","v":0},{"$f":"VLOOKUP($I63,Rio[],L$9,0)","v":1},{"$f":"VLOOKUP($I63,Rio[],M$9,0)","v":2},null,null,null,null,null,null,null,null,null,null,null,null,null,null,53,{"$f":"IFERROR(IF(AP63,CEILING(ROWS(AC$11:$AC63),3)/3,CEILING(ROWS(AC$11:$AC63),3)/3),NA())","v":18},null,10,-27,null,true,null,{"$f":"-IFERROR(IF(AP63,CEILING(ROWS(AJ$11:$AJ63),3)/3,IFERROR(INDEX($W$11:$W$60,ABS(AJ62)),1)),0)","v":-27},null,-27,false,true,null,false]
["Fiji",1,0,0,1,null,null,null,{"$f":"INDEX(Rio[Country],LARGE(IF(J64=OFFSET(Rio[[#Headers],[Country]],1,MATCH(Rio.medal,Rio[#Headers],0)-1,COUNT(Rio[Gold])),ROW(OFFSET(Rio[[#Headers],[Country]],1,MATCH(Rio.medal,Rio[#Headers],0)-1,COUNT(Rio[Gold])))-Rio.startrow,0),COUNTIF(J$11:$J64,J64)))","v":"Bulgaria"},{"$f":"LARGE(OFFSET(Rio[[#Headers],[Country]],1,MATCH(Rio.medal,Rio[#Headers],0)-1,COUNT(Rio[Gold])),ROW(I64)-Rio.startrow)","v":3},{"$f":"VLOOKUP($I64,Rio[],K$9,0)","v":0},{"$f":"VLOOKUP($I64,Rio[],L$9,0)","v":1},{"$f":"VLOOKUP($I64,Rio[],M$9,0)","v":2},null,null,null,null,null,null,null,null,null,null,null,null,null,null,54,{"$f":"IFERROR(IF(AP64,CEILING(ROWS(AC$11:$AC64),3)/3,CEILING(ROWS(AC$11:$AC64),3)/3),NA())","v":{"$error":"#N/A"}},null,null,0,null,true,null,{"$f":"-IFERROR(IF(AP64,CEILING(ROWS(AJ$11:$AJ64),3)/3,IFERROR(INDEX($W$11:$W$60,ABS(AJ63)),1)),0)","v":0},null,{"$error":"#N/A"},false,false,null,""]
["Jordan",1,0,0,1,null,null,null,{"$f":"INDEX(Rio[Country],LARGE(IF(J65=OFFSET(Rio[[#Headers],[Country]],1,MATCH(Rio.medal,Rio[#Headers],0)-1,COUNT(Rio[Gold])),ROW(OFFSET(Rio[[#Headers],[Country]],1,MATCH(Rio.medal,Rio[#Headers],0)-1,COUNT(Rio[Gold])))-Rio.startrow,0),COUNTIF(J$11:$J65,J65)))","v":"Chinese Taipei"},{"$f":"LARGE(OFFSET(Rio[[#Headers],[Country]],1,MATCH(Rio.medal,Rio[#Headers],0)-1,COUNT(Rio[Gold])),ROW(I65)-Rio.startrow)","v":3},{"$f":"VLOOKUP($I65,Rio[],K$9,0)","v":1},{"$f":"VLOOKUP($I65,Rio[],L$9,0)","v":0},{"$f":"VLOOKUP($I65,Rio[],M$9,0)","v":2},null,null,null,null,null,null,null,null,null,null,null,null,null,null,55,{"$f":"IFERROR(IF(AP65,CEILING(ROWS(AC$11:$AC65),3)/3,CEILING(ROWS(AC$11:$AC65),3)/3),NA())","v":19},null,1,-19,null,true,null,{"$f":"-IFERROR(IF(AP65,CEILING(ROWS(AJ$11:$AJ65),3)/3,IFERROR(INDEX($W$11:$W$60,ABS(AJ64)),1)),0)","v":-19},null,{"$error":"#N/A"},false,false,null,true]
["Kosovo",1,0,0,1,null,null,null,{"$f":"INDEX(Rio[Country],LARGE(IF(J66=OFFSET(Rio[[#Headers],[Country]],1,MATCH(Rio.medal,Rio[#Headers],0)-1,COUNT(Rio[Gold])),ROW(OFFSET(Rio[[#Headers],[Country]],1,MATCH(Rio.medal,Rio[#Headers],0)-1,COUNT(Rio[Gold])))-Rio.startrow,0),COUNTIF(J$11:$J66,J66)))","v":"Indonesia"},{"$f":"LARGE(OFFSET(Rio[[#Headers],[Country]],1,MATCH(Rio.medal,Rio[#Headers],0)-1,COUNT(Rio[Gold])),ROW(I66)-Rio.startrow)","v":3},{"$f":"VLOOKUP($I66,Rio[],K$9,0)","v":1},{"$f":"VLOOKUP($I66,Rio[],L$9,0)","v":2},{"$f":"VLOOKUP($I66,Rio[],M$9,0)","v":0},null,null,null,null,null,null,null,null,null,null,null,null,null,null,56,{"$f":"IFERROR(IF(AP66,CEILING(ROWS(AC$11:$AC66),3)/3,CEILING(ROWS(AC$11:$AC66),3)/3),NA())","v":19},null,10,-14,null,true,null,{"$f":"-IFERROR(IF(AP66,CEILING(ROWS(AJ$11:$AJ66),3)/3,IFERROR(INDEX($W$11:$W$60,ABS(AJ65)),1)),0)","v":-14},null,{"$error":"#N/A"},false,false,null,false]
["Puerto Rico",1,0,0,1,null,null,null,{"$f":"INDEX(Rio[Country],LARGE(IF(J67=OFFSET(Rio[[#Headers],[Country]],1,MATCH(Rio.medal,Rio[#Headers],0)-1,COUNT(Rio[Gold])),ROW(OFFSET(Rio[[#Headers],[Country]],1,MATCH(Rio.medal,Rio[#Headers],0)-1,COUNT(Rio[Gold])))-Rio.startrow,0),COUNTIF(J$11:$J67,J67)))","v":"Israel"},{"$f":"LARGE(OFFSET(Rio[[#Headers],[Country]],1,MATCH(Rio.medal,Rio[#Headers],0)-1,COUNT(Rio[Gold])),ROW(I67)-Rio.startrow)","v":2},{"$f":"VLOOKUP($I67,Rio[],K$9,0)","v":0},{"$f":"VLOOKUP($I67,Rio[],L$9,0)","v":0},{"$f":"VLOOKUP($I67,Rio[],M$9,0)","v":2},null,null,null,null,null,null,null,null,null,null,null,null,null,null,57,{"$f":"IFERROR(IF(AP67,CEILING(ROWS(AC$11:$AC67),3)/3,CEILING(ROWS(AC$11:$AC67),3)/3),NA())","v":{"$error":"#N/A"}},null,null,0,null,true,null,{"$f":"-IFERROR(IF(AP67,CEILING(ROWS(AJ$11:$AJ67),3)/3,IFERROR(INDEX($W$11:$W$60,ABS(AJ66)),1)),0)","v":0},null,{"$error":"#N/A"},false,false,null,""]
["Singapore",1,0,0,1,null,null,null,{"$f":"INDEX(Rio[Country],LARGE(IF(J68=OFFSET(Rio[[#Headers],[Country]],1,MATCH(Rio.medal,Rio[#Headers],0)-1,COUNT(Rio[Gold])),ROW(OFFSET(Rio[[#Headers],[Country]],1,MATCH(Rio.medal,Rio[#Headers],0)-1,COUNT(Rio[Gold])))-Rio.startrow,0),COUNTIF(J$11:$J68,J68)))","v":"Mongolia"},{"$f":"LARGE(OFFSET(Rio[[#Headers],[Country]],1,MATCH(Rio.medal,Rio[#Headers],0)-1,COUNT(Rio[Gold])),ROW(I68)-Rio.startrow)","v":2},{"$f":"VLOOKUP($I68,Rio[],K$9,0)","v":0},{"$f":"VLOOKUP($I68,Rio[],L$9,0)","v":1},{"$f":"VLOOKUP($I68,Rio[],M$9,0)","v":1},null,null,null,null,null,null,null,null,null,null,null,null,null,null,58,{"$f":"IFERROR(IF(AP68,CEILING(ROWS(AC$11:$AC68),3)/3,CEILING(ROWS(AC$11:$AC68),3)/3),NA())","v":20},null,1,-1,null,false,null,{"$f":"-IFERROR(IF(AP68,CEILING(ROWS(AJ$11:$AJ68),3)/3,IFERROR(INDEX($W$11:$W$60,ABS(AJ67)),1)),0)","v":-20},null,{"$error":"#N/A"},false,false,null,true]
["Tajikistan",1,0,0,1,null,null,null,{"$f":"INDEX(Rio[Country],LARGE(IF(J69=OFFSET(Rio[[#Headers],[Country]],1,MATCH(Rio.medal,Rio[#Headers],0)-1,COUNT(Rio[Gold])),ROW(OFFSET(Rio[[#Headers],[Country]],1,MATCH(Rio.medal,Rio[#Headers],0)-1,COUNT(Rio[Gold])))-Rio.startrow,0),COUNTIF(J$11:$J69,J69)))","v":"India"},{"$f":"LARGE(OFFSET(Rio[[#Headers],[Country]],1,MATCH(Rio.medal,Rio[#Headers],0)-1,COUNT(Rio[Gold])),ROW(I69)-Rio.startrow)","v":2},{"$f":"VLOOKUP($I69,Rio[],K$9,0)","v":0},{"$f":"VLOOKUP($I69,Rio[],L$9,0)","v":1},{"$f":"VLOOKUP($I69,Rio[],M$9,0)","v":1},null,null,null,null,null,null,null,null,null,null,null,null,null,null,59,{"$f":"IFERROR(IF(AP69,CEILING(ROWS(AC$11:$AC69),3)/3,CEILING(ROWS(AC$11:$AC69),3)/3),NA())","v":20},null,10,-1,null,false,null,{"$f":"-IFERROR(IF(AP69,CEILING(ROWS(AJ$11:$AJ69),3)/3,IFERROR(INDEX($W$11:$W$60,ABS(AJ68)),1)),0)","v":-1},null,{"$error":"#N/A"},false,false,null,false]
["Malaysia",0,4,1,5,null,null,null,{"$f":"INDEX(Rio[Country],LARGE(IF(J70=OFFSET(Rio[[#Headers],[Country]],1,MATCH(Rio.medal,Rio[#Headers],0)-1,COUNT(Rio[Gold])),ROW(OFFSET(Rio[[#Headers],[Country]],1,MATCH(Rio.medal,Rio[#Headers],0)-1,COUNT(Rio[Gold])))-Rio.startrow,0),COUNTIF(J$11:$J70,J70)))","v":"Ireland"},{"$f":"LARGE(OFFSET(Rio[[#Headers],[Country]],1,MATCH(Rio.medal,Rio[#Headers],0)-1,COUNT(Rio[Gold])),ROW(I70)-Rio.startrow)","v":2},{"$f":"VLOOKUP($I70,Rio[],K$9,0)","v":0},{"$f":"VLOOKUP($I70,Rio[],L$9,0)","v":2},{"$f":"VLOOKUP($I70,Rio[],M$9,0)","v":0},null,null,null,null,null,null,null,null,null,null,null,null,null,null,60,{"$f":"IFERROR(IF(AP70,CEILING(ROWS(AC$11:$AC70),3)/3,CEILING(ROWS(AC$11:$AC70),3)/3),NA())","v":{"$error":"#N/A"}},null,null,0,null,true,null,{"$f":"-IFERROR(IF(AP70,CEILING(ROWS(AJ$11:$AJ70),3)/3,IFERROR(INDEX($W$11:$W$60,ABS(AJ69)),1)),0)","v":0},null,{"$error":"#N/A"},false,false,null,""]
["Mexico",0,3,2,5,null,null,null,{"$f":"INDEX(Rio[Country],LARGE(IF(J71=OFFSET(Rio[[#Headers],[Country]],1,MATCH(Rio.medal,Rio[#Headers],0)-1,COUNT(Rio[Gold])),ROW(OFFSET(Rio[[#Headers],[Country]],1,MATCH(Rio.medal,Rio[#Headers],0)-1,COUNT(Rio[Gold])))-Rio.startrow,0),COUNTIF(J$11:$J71,J71)))","v":"Algeria"},{"$f":"LARGE(OFFSET(Rio[[#Headers],[Country]],1,MATCH(Rio.medal,Rio[#Headers],0)-1,COUNT(Rio[Gold])),ROW(I71)-Rio.startrow)","v":2},{"$f":"VLOOKUP($I71,Rio[],K$9,0)","v":0},{"$f":"VLOOKUP($I71,Rio[],L$9,0)","v":2},{"$f":"VLOOKUP($I71,Rio[],M$9,0)","v":0},null,null,null,null,null,null,null,null,null,null,null,null,null,null,61,{"$f":"IFERROR(IF(AP71,CEILING(ROWS(AC$11:$AC71),3)/3,CEILING(ROWS(AC$11:$AC71),3)/3),NA())","v":21},null,1,-21,null,true,null,{"$f":"-IFERROR(IF(AP71,CEILING(ROWS(AJ$11:$AJ71),3)/3,IFERROR(INDEX($W$11:$W$60,ABS(AJ70)),1)),0)","v":-21},null,{"$error":"#N/A"},false,false,null,true]
["Algeria",0,2,0,2,null,null,null,{"$f":"INDEX(Rio[Country],LARGE(IF(J72=OFFSET(Rio[[#Headers],[Country]],1,MATCH(Rio.medal,Rio[#Headers],0)-1,COUNT(Rio[Gold])),ROW(OFFSET(Rio[[#Headers],[Country]],1,MATCH(Rio.medal,Rio[#Headers],0)-1,COUNT(Rio[Gold])))-Rio.startrow,0),COUNTIF(J$11:$J72,J72)))","v":"IOA"},{"$f":"LARGE(OFFSET(Rio[[#Headers],[Country]],1,MATCH(Rio.medal,Rio[#Headers],0)-1,COUNT(Rio[Gold])),ROW(I72)-Rio.startrow)","v":2},{"$f":"VLOOKUP($I72,Rio[],K$9,0)","v":1},{"$f":"VLOOKUP($I72,Rio[],L$9,0)","v":0},{"$f":"VLOOKUP($I72,Rio[],M$9,0)","v":1},null,null,null,null,null,null,null,null,null,null,null,null,null,null,62,{"$f":"IFERROR(IF(AP72,CEILING(ROWS(AC$11:$AC72),3)/3,CEILING(ROWS(AC$11:$AC72),3)/3),NA())","v":21},null,10,-20,null,true,null,{"$f":"-IFERROR(IF(AP72,CEILING(ROWS(AJ$11:$AJ72),3)/3,IFERROR(INDEX($W$11:$W$60,ABS(AJ71)),1)),0)","v":-20},null,{"$error":"#N/A"},false,false,null,false]
["Ireland",0,2,0,2,null,null,null,{"$f":"INDEX(Rio[Country],LARGE(IF(J73=OFFSET(Rio[[#Headers],[Country]],1,MATCH(Rio.medal,Rio[#Headers],0)-1,COUNT(Rio[Gold])),ROW(OFFSET(Rio[[#Headers],[Country]],1,MATCH(Rio.medal,Rio[#Headers],0)-1,COUNT(Rio[Gold])))-Rio.startrow,0),COUNTIF(J$11:$J73,J73)))","v":"Cote d'Ivoire"},{"$f":"LARGE(OFFSET(Rio[[#Headers],[Country]],1,MATCH(Rio.medal,Rio[#Headers],0)-1,COUNT(Rio[Gold])),ROW(I73)-Rio.startrow)","v":2},{"$f":"VLOOKUP($I73,Rio[],K$9,0)","v":1},{"$f":"VLOOKUP($I73,Rio[],L$9,0)","v":0},{"$f":"VLOOKUP($I73,Rio[],M$9,0)","v":1},null,null,null,null,null,null,null,null,null,null,null,null,null,null,63,{"$f":"IFERROR(IF(AP73,CEILING(ROWS(AC$11:$AC73),3)/3,CEILING(ROWS(AC$11:$AC73),3)/3),NA())","v":{"$error":"#N/A"}},null,null,0,null,true,null,{"$f":"-IFERROR(IF(AP73,CEILING(ROWS(AJ$11:$AJ73),3)/3,IFERROR(INDEX($W$11:$W$60,ABS(AJ72)),1)),0)","v":0},null,{"$error":"#N/A"},false,false,null,""]
["Lithuania",0,1,3,4,null,null,null,{"$f":"INDEX(Rio[Country],LARGE(IF(J74=OFFSET(Rio[[#Headers],[Country]],1,MATCH(Rio.medal,Rio[#Headers],0)-1,COUNT(Rio[Gold])),ROW(OFFSET(Rio[[#Headers],[Country]],1,MATCH(Rio.medal,Rio[#Headers],0)-1,COUNT(Rio[Gold])))-Rio.startrow,0),COUNTIF(J$11:$J74,J74)))","v":"Bahamas"},{"$f":"LARGE(OFFSET(Rio[[#Headers],[Country]],1,MATCH(Rio.medal,Rio[#Headers],0)-1,COUNT(Rio[Gold])),ROW(I74)-Rio.startrow)","v":2},{"$f":"VLOOKUP($I74,Rio[],K$9,0)","v":1},{"$f":"VLOOKUP($I74,Rio[],L$9,0)","v":0},{"$f":"VLOOKUP($I74,Rio[],M$9,0)","v":1},null,null,null,null,null,null,null,null,null,null,null,null,null,null,64,{"$f":"IFERROR(IF(AP74,CEILING(ROWS(AC$11:$AC74),3)/3,CEILING(ROWS(AC$11:$AC74),3)/3),NA())","v":22},null,1,-22,null,true,null,{"$f":"-IFERROR(IF(AP74,CEILING(ROWS(AJ$11:$AJ74),3)/3,IFERROR(INDEX($W$11:$W$60,ABS(AJ73)),1)),0)","v":-22},null,{"$error":"#N/A"},false,false,null,true]
["Bulgaria",0,1,2,{"$f":"SUM(B75:D75)","v":3},null,null,null,{"$f":"INDEX(Rio[Country],LARGE(IF(J75=OFFSET(Rio[[#Headers],[Country]],1,MATCH(Rio.medal,Rio[#Headers],0)-1,COUNT(Rio[Gold])),ROW(OFFSET(Rio[[#Headers],[Country]],1,MATCH(Rio.medal,Rio[#Headers],0)-1,COUNT(Rio[Gold])))-Rio.startrow,0),COUNTIF(J$11:$J75,J75)))","v":"Vietnam"},{"$f":"LARGE(OFFSET(Rio[[#Headers],[Country]],1,MATCH(Rio.medal,Rio[#Headers],0)-1,COUNT(Rio[Gold])),ROW(I75)-Rio.startrow)","v":2},{"$f":"VLOOKUP($I75,Rio[],K$9,0)","v":1},{"$f":"VLOOKUP($I75,Rio[],L$9,0)","v":1},{"$f":"VLOOKUP($I75,Rio[],M$9,0)","v":0},null,null,null,null,null,null,null,null,null,null,null,null,null,null,65,{"$f":"IFERROR(IF(AP75,CEILING(ROWS(AC$11:$AC75),3)/3,CEILING(ROWS(AC$11:$AC75),3)/3),NA())","v":22},null,10,{"$f":"IF(AH75,AJ75,-1)","v":-24},null,{"$f":"NOT(AND(AP75<>\"\",ISERROR(INDEX($W$11:$W$60,AC75))))","v":true},null,{"$f":"-IFERROR(IF(AP75,CEILING(ROWS(AJ$11:$AJ75),3)/3,IFERROR(INDEX($W$11:$W$60,ABS(AJ74)),1)),0)","v":-24},null,{"$f":"IF(AN75,IF(AH75=FALSE,1,AF75),NA())","v":{"$error":"#N/A"}},false,false,null,{"$f":"IF(MOD(AB75,3)=0,\"\",IF(AP74=\"\",TRUE,FALSE))","v":false}]
["Venezuela",0,1,2,3,null,null,null,{"$f":"INDEX(Rio[Country],LARGE(IF(J76=OFFSET(Rio[[#Headers],[Country]],1,MATCH(Rio.medal,Rio[#Headers],0)-1,COUNT(Rio[Gold])),ROW(OFFSET(Rio[[#Headers],[Country]],1,MATCH(Rio.medal,Rio[#Headers],0)-1,COUNT(Rio[Gold])))-Rio.startrow,0),COUNTIF(J$11:$J76,J76)))","v":"Bahrain"},{"$f":"LARGE(OFFSET(Rio[[#Headers],[Country]],1,MATCH(Rio.medal,Rio[#Headers],0)-1,COUNT(Rio[Gold])),ROW(I76)-Rio.startrow)","v":2},{"$f":"VLOOKUP($I76,Rio[],K$9,0)","v":1},{"$f":"VLOOKUP($I76,Rio[],L$9,0)","v":1},{"$f":"VLOOKUP($I76,Rio[],M$9,0)","v":0},null,null,null,null,null,null,null,null,null,null,null,null,null,null,{"$f":"AB75+1","v":66},{"$f":"IFERROR(IF(AP76,CEILING(ROWS(AC$11:$AC76),3)/3,CEILING(ROWS(AC$11:$AC76),3)/3),NA())","v":{"$error":"#N/A"}},null,null,0,null,true,null,{"$f":"-IFERROR(IF(AP76,CEILING(ROWS(AJ$11:$AJ76),3)/3,IFERROR(INDEX($W$11:$W$60,ABS(AJ75)),1)),0)","v":0},null,{"$error":"#N/A"},{"$f":"AND(-MATCH(Overall.country,$T$11:$T$60,0)=AJ76,AP76)","v":false},false,null,""]
["India",0,1,1,2,null,null,null,{"$f":"INDEX(Rio[Country],LARGE(IF(J77=OFFSET(Rio[[#Headers],[Country]],1,MATCH(Rio.medal,Rio[#Headers],0)-1,COUNT(Rio[Gold])),ROW(OFFSET(Rio[[#Headers],[Country]],1,MATCH(Rio.medal,Rio[#Headers],0)-1,COUNT(Rio[Gold])))-Rio.startrow,0),COUNTIF(J$11:$J77,J77)))","v":"United Arab Emirates"},{"$f":"LARGE(OFFSET(Rio[[#Headers],[Country]],1,MATCH(Rio.medal,Rio[#Headers],0)-1,COUNT(Rio[Gold])),ROW(I77)-Rio.startrow)","v":1},{"$f":"VLOOKUP($I77,Rio[],K$9,0)","v":0},{"$f":"VLOOKUP($I77,Rio[],L$9,0)","v":0},{"$f":"VLOOKUP($I77,Rio[],M$9,0)","v":1},null,null,null,null,null,null,null,null,null,null,null,null,null,null,67,{"$f":"IFERROR(IF(AP77,CEILING(ROWS(AC$11:$AC77),3)/3,CEILING(ROWS(AC$11:$AC77),3)/3),NA())","v":23},null,1,-23,null,true,null,{"$f":"-IFERROR(IF(AP77,CEILING(ROWS(AJ$11:$AJ77),3)/3,IFERROR(INDEX($W$11:$W$60,ABS(AJ76)),1)),0)","v":-23},null,{"$error":"#N/A"},false,false,null,true]
["Mongolia",0,1,1,2,null,null,null,{"$f":"INDEX(Rio[Country],LARGE(IF(J78=OFFSET(Rio[[#Headers],[Country]],1,MATCH(Rio.medal,Rio[#Headers],0)-1,COUNT(Rio[Gold])),ROW(OFFSET(Rio[[#Headers],[Country]],1,MATCH(Rio.medal,Rio[#Headers],0)-1,COUNT(Rio[Gold])))-Rio.startrow,0),COUNTIF(J$11:$J78,J78)))","v":"Trinidad and Tobago"},{"$f":"LARGE(OFFSET(Rio[[#Headers],[Country]],1,MATCH(Rio.medal,Rio[#Headers],0)-1,COUNT(Rio[Gold])),ROW(I78)-Rio.startrow)","v":1},{"$f":"VLOOKUP($I78,Rio[],K$9,0)","v":0},{"$f":"VLOOKUP($I78,Rio[],L$9,0)","v":0},{"$f":"VLOOKUP($I78,Rio[],M$9,0)","v":1},null,null,null,null,null,null,null,null,null,null,null,null,null,null,68,{"$f":"IFERROR(IF(AP78,CEILING(ROWS(AC$11:$AC78),3)/3,CEILING(ROWS(AC$11:$AC78),3)/3),NA())","v":23},null,10,-13,null,true,null,{"$f":"-IFERROR(IF(AP78,CEILING(ROWS(AJ$11:$AJ78),3)/3,IFERROR(INDEX($W$11:$W$60,ABS(AJ77)),1)),0)","v":-13},null,{"$error":"#N/A"},false,false,null,false]
["Burundi",0,1,0,1,null,null,null,{"$f":"INDEX(Rio[Country],LARGE(IF(J79=OFFSET(Rio[[#Headers],[Country]],1,MATCH(Rio.medal,Rio[#Headers],0)-1,COUNT(Rio[Gold])),ROW(OFFSET(Rio[[#Headers],[Country]],1,MATCH(Rio.medal,Rio[#Headers],0)-1,COUNT(Rio[Gold])))-Rio.startrow,0),COUNTIF(J$11:$J79,J79)))","v":"Moldova"},{"$f":"LARGE(OFFSET(Rio[[#Headers],[Country]],1,MATCH(Rio.medal,Rio[#Headers],0)-1,COUNT(Rio[Gold])),ROW(I79)-Rio.startrow)","v":1},{"$f":"VLOOKUP($I79,Rio[],K$9,0)","v":0},{"$f":"VLOOKUP($I79,Rio[],L$9,0)","v":0},{"$f":"VLOOKUP($I79,Rio[],M$9,0)","v":1},null,null,null,null,null,null,null,null,null,null,null,null,null,null,69,{"$f":"IFERROR(IF(AP79,CEILING(ROWS(AC$11:$AC79),3)/3,CEILING(ROWS(AC$11:$AC79),3)/3),NA())","v":{"$error":"#N/A"}},null,null,0,null,true,null,{"$f":"-IFERROR(IF(AP79,CEILING(ROWS(AJ$11:$AJ79),3)/3,IFERROR(INDEX($W$11:$W$60,ABS(AJ78)),1)),0)","v":0},null,{"$error":"#N/A"},false,false,null,""]
["Grenada",0,1,0,1,null,null,null,{"$f":"INDEX(Rio[Country],LARGE(IF(J80=OFFSET(Rio[[#Headers],[Country]],1,MATCH(Rio.medal,Rio[#Headers],0)-1,COUNT(Rio[Gold])),ROW(OFFSET(Rio[[#Headers],[Country]],1,MATCH(Rio.medal,Rio[#Headers],0)-1,COUNT(Rio[Gold])))-Rio.startrow,0),COUNTIF(J$11:$J80,J80)))","v":"Portugal"},{"$f":"LARGE(OFFSET(Rio[[#Headers],[Country]],1,MATCH(Rio.medal,Rio[#Headers],0)-1,COUNT(Rio[Gold])),ROW(I80)-Rio.startrow)","v":1},{"$f":"VLOOKUP($I80,Rio[],K$9,0)","v":0},{"$f":"VLOOKUP($I80,Rio[],L$9,0)","v":0},{"$f":"VLOOKUP($I80,Rio[],M$9,0)","v":1},null,null,null,null,null,null,null,null,null,null,null,null,null,null,70,{"$f":"IFERROR(IF(AP80,CEILING(ROWS(AC$11:$AC80),3)/3,CEILING(ROWS(AC$11:$AC80),3)/3),NA())","v":24},null,1,-24,null,true,null,{"$f":"-IFERROR(IF(AP80,CEILING(ROWS(AJ$11:$AJ80),3)/3,IFERROR(INDEX($W$11:$W$60,ABS(AJ79)),1)),0)","v":-24},null,{"$error":"#N/A"},false,false,null,true]
["Niger",0,1,0,1,null,null,null,{"$f":"INDEX(Rio[Country],LARGE(IF(J81=OFFSET(Rio[[#Headers],[Country]],1,MATCH(Rio.medal,Rio[#Headers],0)-1,COUNT(Rio[Gold])),ROW(OFFSET(Rio[[#Headers],[Country]],1,MATCH(Rio.medal,Rio[#Headers],0)-1,COUNT(Rio[Gold])))-Rio.startrow,0),COUNTIF(J$11:$J81,J81)))","v":"Nigeria"},{"$f":"LARGE(OFFSET(Rio[[#Headers],[Country]],1,MATCH(Rio.medal,Rio[#Headers],0)-1,COUNT(Rio[Gold])),ROW(I81)-Rio.startrow)","v":1},{"$f":"VLOOKUP($I81,Rio[],K$9,0)","v":0},{"$f":"VLOOKUP($I81,Rio[],L$9,0)","v":0},{"$f":"VLOOKUP($I81,Rio[],M$9,0)","v":1},null,null,null,null,null,null,null,null,null,null,null,null,null,null,71,{"$f":"IFERROR(IF(AP81,CEILING(ROWS(AC$11:$AC81),3)/3,CEILING(ROWS(AC$11:$AC81),3)/3),NA())","v":24},null,10,-30,null,true,null,{"$f":"-IFERROR(IF(AP81,CEILING(ROWS(AJ$11:$AJ81),3)/3,IFERROR(INDEX($W$11:$W$60,ABS(AJ80)),1)),0)","v":-30},null,{"$error":"#N/A"},false,false,null,false]
["Philippines",0,1,0,1,null,null,null,{"$f":"INDEX(Rio[Country],LARGE(IF(J82=OFFSET(Rio[[#Headers],[Country]],1,MATCH(Rio.medal,Rio[#Headers],0)-1,COUNT(Rio[Gold])),ROW(OFFSET(Rio[[#Headers],[Country]],1,MATCH(Rio.medal,Rio[#Headers],0)-1,COUNT(Rio[Gold])))-Rio.startrow,0),COUNTIF(J$11:$J82,J82)))","v":"Morocco"},{"$f":"LARGE(OFFSET(Rio[[#Headers],[Country]],1,MATCH(Rio.medal,Rio[#Headers],0)-1,COUNT(Rio[Gold])),ROW(I82)-Rio.startrow)","v":1},{"$f":"VLOOKUP($I82,Rio[],K$9,0)","v":0},{"$f":"VLOOKUP($I82,Rio[],L$9,0)","v":0},{"$f":"VLOOKUP($I82,Rio[],M$9,0)","v":1},null,null,null,null,null,null,null,null,null,null,null,null,null,null,72,{"$f":"IFERROR(IF(AP82,CEILING(ROWS(AC$11:$AC82),3)/3,CEILING(ROWS(AC$11:$AC82),3)/3),NA())","v":{"$error":"#N/A"}},null,null,0,null,true,null,{"$f":"-IFERROR(IF(AP82,CEILING(ROWS(AJ$11:$AJ82),3)/3,IFERROR(INDEX($W$11:$W$60,ABS(AJ81)),1)),0)","v":0},null,{"$error":"#N/A"},false,false,null,""]
["Qatar",0,1,0,1,null,null,null,{"$f":"INDEX(Rio[Country],LARGE(IF(J83=OFFSET(Rio[[#Headers],[Country]],1,MATCH(Rio.medal,Rio[#Headers],0)-1,COUNT(Rio[Gold])),ROW(OFFSET(Rio[[#Headers],[Country]],1,MATCH(Rio.medal,Rio[#Headers],0)-1,COUNT(Rio[Gold])))-Rio.startrow,0),COUNTIF(J$11:$J83,J83)))","v":"Kyrgyzstan"},{"$f":"LARGE(OFFSET(Rio[[#Headers],[Country]],1,MATCH(Rio.medal,Rio[#Headers],0)-1,COUNT(Rio[Gold])),ROW(I83)-Rio.startrow)","v":1},{"$f":"VLOOKUP($I83,Rio[],K$9,0)","v":0},{"$f":"VLOOKUP($I83,Rio[],L$9,0)","v":0},{"$f":"VLOOKUP($I83,Rio[],M$9,0)","v":1},null,null,null,null,null,null,null,null,null,null,null,null,null,null,73,{"$f":"IFERROR(IF(AP83,CEILING(ROWS(AC$11:$AC83),3)/3,CEILING(ROWS(AC$11:$AC83),3)/3),NA())","v":25},null,1,-25,null,true,null,{"$f":"-IFERROR(IF(AP83,CEILING(ROWS(AJ$11:$AJ83),3)/3,IFERROR(INDEX($W$11:$W$60,ABS(AJ82)),1)),0)","v":-25},null,{"$error":"#N/A"},false,false,null,true]
["Norway",0,0,4,4,null,null,null,{"$f":"INDEX(Rio[Country],LARGE(IF(J84=OFFSET(Rio[[#Headers],[Country]],1,MATCH(Rio.medal,Rio[#Headers],0)-1,COUNT(Rio[Gold])),ROW(OFFSET(Rio[[#Headers],[Country]],1,MATCH(Rio.medal,Rio[#Headers],0)-1,COUNT(Rio[Gold])))-Rio.startrow,0),COUNTIF(J$11:$J84,J84)))","v":"Finland"},{"$f":"LARGE(OFFSET(Rio[[#Headers],[Country]],1,MATCH(Rio.medal,Rio[#Headers],0)-1,COUNT(Rio[Gold])),ROW(I84)-Rio.startrow)","v":1},{"$f":"VLOOKUP($I84,Rio[],K$9,0)","v":0},{"$f":"VLOOKUP($I84,Rio[],L$9,0)","v":0},{"$f":"VLOOKUP($I84,Rio[],M$9,0)","v":1},null,null,null,null,null,null,null,null,null,null,null,null,null,null,74,{"$f":"IFERROR(IF(AP84,CEILING(ROWS(AC$11:$AC84),3)/3,CEILING(ROWS(AC$11:$AC84),3)/3),NA())","v":25},null,10,-17,null,true,null,{"$f":"-IFERROR(IF(AP84,CEILING(ROWS(AJ$11:$AJ84),3)/3,IFERROR(INDEX($W$11:$W$60,ABS(AJ83)),1)),0)","v":-17},null,{"$error":"#N/A"},false,false,null,false]
["Egypt",0,0,3,3,null,null,null,{"$f":"INDEX(Rio[Country],LARGE(IF(J85=OFFSET(Rio[[#Headers],[Country]],1,MATCH(Rio.medal,Rio[#Headers],0)-1,COUNT(Rio[Gold])),ROW(OFFSET(Rio[[#Headers],[Country]],1,MATCH(Rio.medal,Rio[#Headers],0)-1,COUNT(Rio[Gold])))-Rio.startrow,0),COUNTIF(J$11:$J85,J85)))","v":"Estonia"},{"$f":"LARGE(OFFSET(Rio[[#Headers],[Country]],1,MATCH(Rio.medal,Rio[#Headers],0)-1,COUNT(Rio[Gold])),ROW(I85)-Rio.startrow)","v":1},{"$f":"VLOOKUP($I85,Rio[],K$9,0)","v":0},{"$f":"VLOOKUP($I85,Rio[],L$9,0)","v":0},{"$f":"VLOOKUP($I85,Rio[],M$9,0)","v":1},null,null,null,null,null,null,null,null,null,null,null,null,null,null,75,{"$f":"IFERROR(IF(AP85,CEILING(ROWS(AC$11:$AC85),3)/3,CEILING(ROWS(AC$11:$AC85),3)/3),NA())","v":{"$error":"#N/A"}},null,null,0,null,true,null,{"$f":"-IFERROR(IF(AP85,CEILING(ROWS(AJ$11:$AJ85),3)/3,IFERROR(INDEX($W$11:$W$60,ABS(AJ84)),1)),0)","v":0},null,{"$error":"#N/A"},false,false,null,""]
["Tunisia",0,0,3,3,null,null,null,{"$f":"INDEX(Rio[Country],LARGE(IF(J86=OFFSET(Rio[[#Headers],[Country]],1,MATCH(Rio.medal,Rio[#Headers],0)-1,COUNT(Rio[Gold])),ROW(OFFSET(Rio[[#Headers],[Country]],1,MATCH(Rio.medal,Rio[#Headers],0)-1,COUNT(Rio[Gold])))-Rio.startrow,0),COUNTIF(J$11:$J86,J86)))","v":"Dominican Republic"},{"$f":"LARGE(OFFSET(Rio[[#Headers],[Country]],1,MATCH(Rio.medal,Rio[#Headers],0)-1,COUNT(Rio[Gold])),ROW(I86)-Rio.startrow)","v":1},{"$f":"VLOOKUP($I86,Rio[],K$9,0)","v":0},{"$f":"VLOOKUP($I86,Rio[],L$9,0)","v":0},{"$f":"VLOOKUP($I86,Rio[],M$9,0)","v":1},null,null,null,null,null,null,null,null,null,null,null,null,null,null,76,{"$f":"IFERROR(IF(AP86,CEILING(ROWS(AC$11:$AC86),3)/3,CEILING(ROWS(AC$11:$AC86),3)/3),NA())","v":26},null,1,-26,null,true,null,{"$f":"-IFERROR(IF(AP86,CEILING(ROWS(AJ$11:$AJ86),3)/3,IFERROR(INDEX($W$11:$W$60,ABS(AJ85)),1)),0)","v":-26},null,{"$error":"#N/A"},false,false,null,true]
["Israel",0,0,2,2,null,null,null,{"$f":"INDEX(Rio[Country],LARGE(IF(J87=OFFSET(Rio[[#Headers],[Country]],1,MATCH(Rio.medal,Rio[#Headers],0)-1,COUNT(Rio[Gold])),ROW(OFFSET(Rio[[#Headers],[Country]],1,MATCH(Rio.medal,Rio[#Headers],0)-1,COUNT(Rio[Gold])))-Rio.startrow,0),COUNTIF(J$11:$J87,J87)))","v":"Austria"},{"$f":"LARGE(OFFSET(Rio[[#Headers],[Country]],1,MATCH(Rio.medal,Rio[#Headers],0)-1,COUNT(Rio[Gold])),ROW(I87)-Rio.startrow)","v":1},{"$f":"VLOOKUP($I87,Rio[],K$9,0)","v":0},{"$f":"VLOOKUP($I87,Rio[],L$9,0)","v":0},{"$f":"VLOOKUP($I87,Rio[],M$9,0)","v":1},null,null,null,null,null,null,null,null,null,null,null,null,null,null,77,{"$f":"IFERROR(IF(AP87,CEILING(ROWS(AC$11:$AC87),3)/3,CEILING(ROWS(AC$11:$AC87),3)/3),NA())","v":26},null,10,-22,null,true,null,{"$f":"-IFERROR(IF(AP87,CEILING(ROWS(AJ$11:$AJ87),3)/3,IFERROR(INDEX($W$11:$W$60,ABS(AJ86)),1)),0)","v":-22},null,{"$error":"#N/A"},false,false,null,false]
["Austria",0,0,1,1,null,null,null,{"$f":"INDEX(Rio[Country],LARGE(IF(J88=OFFSET(Rio[[#Headers],[Country]],1,MATCH(Rio.medal,Rio[#Headers],0)-1,COUNT(Rio[Gold])),ROW(OFFSET(Rio[[#Headers],[Country]],1,MATCH(Rio.medal,Rio[#Headers],0)-1,COUNT(Rio[Gold])))-Rio.startrow,0),COUNTIF(J$11:$J88,J88)))","v":"Qatar"},{"$f":"LARGE(OFFSET(Rio[[#Headers],[Country]],1,MATCH(Rio.medal,Rio[#Headers],0)-1,COUNT(Rio[Gold])),ROW(I88)-Rio.startrow)","v":1},{"$f":"VLOOKUP($I88,Rio[],K$9,0)","v":0},{"$f":"VLOOKUP($I88,Rio[],L$9,0)","v":1},{"$f":"VLOOKUP($I88,Rio[],M$9,0)","v":0},null,null,null,null,null,null,null,null,null,null,null,null,null,null,78,{"$f":"IFERROR(IF(AP88,CEILING(ROWS(AC$11:$AC88),3)/3,CEILING(ROWS(AC$11:$AC88),3)/3),NA())","v":{"$error":"#N/A"}},null,null,0,null,true,null,{"$f":"-IFERROR(IF(AP88,CEILING(ROWS(AJ$11:$AJ88),3)/3,IFERROR(INDEX($W$11:$W$60,ABS(AJ87)),1)),0)","v":0},null,{"$error":"#N/A"},false,false,null,""]
["Dominican Republic",0,0,1,1,null,null,null,{"$f":"INDEX(Rio[Country],LARGE(IF(J89=OFFSET(Rio[[#Headers],[Country]],1,MATCH(Rio.medal,Rio[#Headers],0)-1,COUNT(Rio[Gold])),ROW(OFFSET(Rio[[#Headers],[Country]],1,MATCH(Rio.medal,Rio[#Headers],0)-1,COUNT(Rio[Gold])))-Rio.startrow,0),COUNTIF(J$11:$J89,J89)))","v":"Philippines"},{"$f":"LARGE(OFFSET(Rio[[#Headers],[Country]],1,MATCH(Rio.medal,Rio[#Headers],0)-1,COUNT(Rio[Gold])),ROW(I89)-Rio.startrow)","v":1},{"$f":"VLOOKUP($I89,Rio[],K$9,0)","v":0},{"$f":"VLOOKUP($I89,Rio[],L$9,0)","v":1},{"$f":"VLOOKUP($I89,Rio[],M$9,0)","v":0},null,null,null,null,null,null,null,null,null,null,null,null,null,null,79,{"$f":"IFERROR(IF(AP89,CEILING(ROWS(AC$11:$AC89),3)/3,CEILING(ROWS(AC$11:$AC89),3)/3),NA())","v":27},null,1,-27,null,true,null,{"$f":"-IFERROR(IF(AP89,CEILING(ROWS(AJ$11:$AJ89),3)/3,IFERROR(INDEX($W$11:$W$60,ABS(AJ88)),1)),0)","v":-27},null,{"$error":"#N/A"},false,{"$f":"OR(AM89,AM88)","v":false},null,true]
["Estonia",0,0,1,1,null,null,null,{"$f":"INDEX(Rio[Country],LARGE(IF(J90=OFFSET(Rio[[#Headers],[Country]],1,MATCH(Rio.medal,Rio[#Headers],0)-1,COUNT(Rio[Gold])),ROW(OFFSET(Rio[[#Headers],[Country]],1,MATCH(Rio.medal,Rio[#Headers],0)-1,COUNT(Rio[Gold])))-Rio.startrow,0),COUNTIF(J$11:$J90,J90)))","v":"Niger"},{"$f":"LARGE(OFFSET(Rio[[#Headers],[Country]],1,MATCH(Rio.medal,Rio[#Headers],0)-1,COUNT(Rio[Gold])),ROW(I90)-Rio.startrow)","v":1},{"$f":"VLOOKUP($I90,Rio[],K$9,0)","v":0},{"$f":"VLOOKUP($I90,Rio[],L$9,0)","v":1},{"$f":"VLOOKUP($I90,Rio[],M$9,0)","v":0},null,null,null,null,null,null,null,null,null,null,null,null,null,null,80,{"$f":"IFERROR(IF(AP90,CEILING(ROWS(AC$11:$AC90),3)/3,CEILING(ROWS(AC$11:$AC90),3)/3),NA())","v":27},null,10,-26,null,true,null,{"$f":"-IFERROR(IF(AP90,CEILING(ROWS(AJ$11:$AJ90),3)/3,IFERROR(INDEX($W$11:$W$60,ABS(AJ89)),1)),0)","v":-26},null,{"$error":"#N/A"},false,false,null,false]
["Finland",0,0,1,1,null,null,null,{"$f":"INDEX(Rio[Country],LARGE(IF(J91=OFFSET(Rio[[#Headers],[Country]],1,MATCH(Rio.medal,Rio[#Headers],0)-1,COUNT(Rio[Gold])),ROW(OFFSET(Rio[[#Headers],[Country]],1,MATCH(Rio.medal,Rio[#Headers],0)-1,COUNT(Rio[Gold])))-Rio.startrow,0),COUNTIF(J$11:$J91,J91)))","v":"Grenada"},{"$f":"LARGE(OFFSET(Rio[[#Headers],[Country]],1,MATCH(Rio.medal,Rio[#Headers],0)-1,COUNT(Rio[Gold])),ROW(I91)-Rio.startrow)","v":1},{"$f":"VLOOKUP($I91,Rio[],K$9,0)","v":0},{"$f":"VLOOKUP($I91,Rio[],L$9,0)","v":1},{"$f":"VLOOKUP($I91,Rio[],M$9,0)","v":0},null,null,null,null,null,null,null,null,null,null,null,null,null,null,81,{"$f":"IFERROR(IF(AP91,CEILING(ROWS(AC$11:$AC91),3)/3,CEILING(ROWS(AC$11:$AC91),3)/3),NA())","v":{"$error":"#N/A"}},null,null,0,null,true,null,{"$f":"-IFERROR(IF(AP91,CEILING(ROWS(AJ$11:$AJ91),3)/3,IFERROR(INDEX($W$11:$W$60,ABS(AJ90)),1)),0)","v":0},null,{"$error":"#N/A"},false,false,null,""]
["Kyrgyzstan",0,0,1,1,null,null,null,{"$f":"INDEX(Rio[Country],LARGE(IF(J92=OFFSET(Rio[[#Headers],[Country]],1,MATCH(Rio.medal,Rio[#Headers],0)-1,COUNT(Rio[Gold])),ROW(OFFSET(Rio[[#Headers],[Country]],1,MATCH(Rio.medal,Rio[#Headers],0)-1,COUNT(Rio[Gold])))-Rio.startrow,0),COUNTIF(J$11:$J92,J92)))","v":"Burundi"},{"$f":"LARGE(OFFSET(Rio[[#Headers],[Country]],1,MATCH(Rio.medal,Rio[#Headers],0)-1,COUNT(Rio[Gold])),ROW(I92)-Rio.startrow)","v":1},{"$f":"VLOOKUP($I92,Rio[],K$9,0)","v":0},{"$f":"VLOOKUP($I92,Rio[],L$9,0)","v":1},{"$f":"VLOOKUP($I92,Rio[],M$9,0)","v":0},null,null,null,null,null,null,null,null,null,null,null,null,null,null,82,{"$f":"IFERROR(IF(AP92,CEILING(ROWS(AC$11:$AC92),3)/3,CEILING(ROWS(AC$11:$AC92),3)/3),NA())","v":28},null,1,-28,null,true,null,{"$f":"-IFERROR(IF(AP92,CEILING(ROWS(AJ$11:$AJ92),3)/3,IFERROR(INDEX($W$11:$W$60,ABS(AJ91)),1)),0)","v":-28},null,{"$error":"#N/A"},false,false,null,true]
["Morocco",0,0,1,1,null,null,null,{"$f":"INDEX(Rio[Country],LARGE(IF(J93=OFFSET(Rio[[#Headers],[Country]],1,MATCH(Rio.medal,Rio[#Headers],0)-1,COUNT(Rio[Gold])),ROW(OFFSET(Rio[[#Headers],[Country]],1,MATCH(Rio.medal,Rio[#Headers],0)-1,COUNT(Rio[Gold])))-Rio.startrow,0),COUNTIF(J$11:$J93,J93)))","v":"Tajikistan"},{"$f":"LARGE(OFFSET(Rio[[#Headers],[Country]],1,MATCH(Rio.medal,Rio[#Headers],0)-1,COUNT(Rio[Gold])),ROW(I93)-Rio.startrow)","v":1},{"$f":"VLOOKUP($I93,Rio[],K$9,0)","v":1},{"$f":"VLOOKUP($I93,Rio[],L$9,0)","v":0},{"$f":"VLOOKUP($I93,Rio[],M$9,0)","v":0},null,null,null,null,null,null,null,null,null,null,null,null,null,null,83,{"$f":"IFERROR(IF(AP93,CEILING(ROWS(AC$11:$AC93),3)/3,CEILING(ROWS(AC$11:$AC93),3)/3),NA())","v":28},null,10,-37,null,true,null,{"$f":"-IFERROR(IF(AP93,CEILING(ROWS(AJ$11:$AJ93),3)/3,IFERROR(INDEX($W$11:$W$60,ABS(AJ92)),1)),0)","v":-37},null,{"$error":"#N/A"},false,false,null,false]
["Nigeria",0,0,1,1,null,null,null,{"$f":"INDEX(Rio[Country],LARGE(IF(J94=OFFSET(Rio[[#Headers],[Country]],1,MATCH(Rio.medal,Rio[#Headers],0)-1,COUNT(Rio[Gold])),ROW(OFFSET(Rio[[#Headers],[Country]],1,MATCH(Rio.medal,Rio[#Headers],0)-1,COUNT(Rio[Gold])))-Rio.startrow,0),COUNTIF(J$11:$J94,J94)))","v":"Singapore"},{"$f":"LARGE(OFFSET(Rio[[#Headers],[Country]],1,MATCH(Rio.medal,Rio[#Headers],0)-1,COUNT(Rio[Gold])),ROW(I94)-Rio.startrow)","v":1},{"$f":"VLOOKUP($I94,Rio[],K$9,0)","v":1},{"$f":"VLOOKUP($I94,Rio[],L$9,0)","v":0},{"$f":"VLOOKUP($I94,Rio[],M$9,0)","v":0},null,null,null,null,null,null,null,null,null,null,null,null,null,null,84,{"$f":"IFERROR(IF(AP94,CEILING(ROWS(AC$11:$AC94),3)/3,CEILING(ROWS(AC$11:$AC94),3)/3),NA())","v":{"$error":"#N/A"}},null,null,0,null,true,null,{"$f":"-IFERROR(IF(AP94,CEILING(ROWS(AJ$11:$AJ94),3)/3,IFERROR(INDEX($W$11:$W$60,ABS(AJ93)),1)),0)","v":0},null,{"$error":"#N/A"},false,false,null,""]
["Portugal",0,0,1,1,null,null,null,{"$f":"INDEX(Rio[Country],LARGE(IF(J95=OFFSET(Rio[[#Headers],[Country]],1,MATCH(Rio.medal,Rio[#Headers],0)-1,COUNT(Rio[Gold])),ROW(OFFSET(Rio[[#Headers],[Country]],1,MATCH(Rio.medal,Rio[#Headers],0)-1,COUNT(Rio[Gold])))-Rio.startrow,0),COUNTIF(J$11:$J95,J95)))","v":"Puerto Rico"},{"$f":"LARGE(OFFSET(Rio[[#Headers],[Country]],1,MATCH(Rio.medal,Rio[#Headers],0)-1,COUNT(Rio[Gold])),ROW(I95)-Rio.startrow)","v":1},{"$f":"VLOOKUP($I95,Rio[],K$9,0)","v":1},{"$f":"VLOOKUP($I95,Rio[],L$9,0)","v":0},{"$f":"VLOOKUP($I95,Rio[],M$9,0)","v":0},null,null,null,null,null,null,null,null,null,null,null,null,null,null,85,{"$f":"IFERROR(IF(AP95,CEILING(ROWS(AC$11:$AC95),3)/3,CEILING(ROWS(AC$11:$AC95),3)/3),NA())","v":29},null,1,-29,null,true,null,{"$f":"-IFERROR(IF(AP95,CEILING(ROWS(AJ$11:$AJ95),3)/3,IFERROR(INDEX($W$11:$W$60,ABS(AJ94)),1)),0)","v":-29},null,{"$error":"#N/A"},false,false,null,true]
["Moldova",0,0,1,1,null,null,null,{"$f":"INDEX(Rio[Country],LARGE(IF(J96=OFFSET(Rio[[#Headers],[Country]],1,MATCH(Rio.medal,Rio[#Headers],0)-1,COUNT(Rio[Gold])),ROW(OFFSET(Rio[[#Headers],[Country]],1,MATCH(Rio.medal,Rio[#Headers],0)-1,COUNT(Rio[Gold])))-Rio.startrow,0),COUNTIF(J$11:$J96,J96)))","v":"Kosovo"},{"$f":"LARGE(OFFSET(Rio[[#Headers],[Country]],1,MATCH(Rio.medal,Rio[#Headers],0)-1,COUNT(Rio[Gold])),ROW(I96)-Rio.startrow)","v":1},{"$f":"VLOOKUP($I96,Rio[],K$9,0)","v":1},{"$f":"VLOOKUP($I96,Rio[],L$9,0)","v":0},{"$f":"VLOOKUP($I96,Rio[],M$9,0)","v":0},null,null,null,null,null,null,null,null,null,null,null,null,null,null,86,{"$f":"IFERROR(IF(AP96,CEILING(ROWS(AC$11:$AC96),3)/3,CEILING(ROWS(AC$11:$AC96),3)/3),NA())","v":29},null,10,-36,null,true,null,{"$f":"-IFERROR(IF(AP96,CEILING(ROWS(AJ$11:$AJ96),3)/3,IFERROR(INDEX($W$11:$W$60,ABS(AJ95)),1)),0)","v":-36},null,{"$error":"#N/A"},false,false,null,false]
["Trinidad and Tobago",0,0,1,1,null,null,null,{"$f":"INDEX(Rio[Country],LARGE(IF(J97=OFFSET(Rio[[#Headers],[Country]],1,MATCH(Rio.medal,Rio[#Headers],0)-1,COUNT(Rio[Gold])),ROW(OFFSET(Rio[[#Headers],[Country]],1,MATCH(Rio.medal,Rio[#Headers],0)-1,COUNT(Rio[Gold])))-Rio.startrow,0),COUNTIF(J$11:$J97,J97)))","v":"Jordan"},{"$f":"LARGE(OFFSET(Rio[[#Headers],[Country]],1,MATCH(Rio.medal,Rio[#Headers],0)-1,COUNT(Rio[Gold])),ROW(I97)-Rio.startrow)","v":1},{"$f":"VLOOKUP($I97,Rio[],K$9,0)","v":1},{"$f":"VLOOKUP($I97,Rio[],L$9,0)","v":0},{"$f":"VLOOKUP($I97,Rio[],M$9,0)","v":0},null,null,null,null,null,null,null,null,null,null,null,null,null,null,87,{"$f":"IFERROR(IF(AP97,CEILING(ROWS(AC$11:$AC97),3)/3,CEILING(ROWS(AC$11:$AC97),3)/3),NA())","v":{"$error":"#N/A"}},null,null,0,null,true,null,{"$f":"-IFERROR(IF(AP97,CEILING(ROWS(AJ$11:$AJ97),3)/3,IFERROR(INDEX($W$11:$W$60,ABS(AJ96)),1)),0)","v":0},null,{"$error":"#N/A"},false,false,null,""]
["United Arab Emirates",0,0,1,1,null,null,null,{"$f":"INDEX(Rio[Country],LARGE(IF(J98=OFFSET(Rio[[#Headers],[Country]],1,MATCH(Rio.medal,Rio[#Headers],0)-1,COUNT(Rio[Gold])),ROW(OFFSET(Rio[[#Headers],[Country]],1,MATCH(Rio.medal,Rio[#Headers],0)-1,COUNT(Rio[Gold])))-Rio.startrow,0),COUNTIF(J$11:$J98,J98)))","v":"Fiji"},{"$f":"LARGE(OFFSET(Rio[[#Headers],[Country]],1,MATCH(Rio.medal,Rio[#Headers],0)-1,COUNT(Rio[Gold])),ROW(I98)-Rio.startrow)","v":1},{"$f":"VLOOKUP($I98,Rio[],K$9,0)","v":1},{"$f":"VLOOKUP($I98,Rio[],L$9,0)","v":0},{"$f":"VLOOKUP($I98,Rio[],M$9,0)","v":0},null,null,null,null,null,null,null,null,null,null,null,null,null,null,88,{"$f":"IFERROR(IF(AP98,CEILING(ROWS(AC$11:$AC98),3)/3,CEILING(ROWS(AC$11:$AC98),3)/3),NA())","v":30},null,1,-30,null,true,null,{"$f":"-IFERROR(IF(AP98,CEILING(ROWS(AJ$11:$AJ98),3)/3,IFERROR(INDEX($W$11:$W$60,ABS(AJ97)),1)),0)","v":-30},null,{"$error":"#N/A"},false,false,null,true]
[null,null,null,null,null,null,null,null,null,null,null,null,null,null,null,null,null,null,null,null,null,null,null,null,null,null,null,89,{"$f":"IFERROR(IF(AP99,CEILING(ROWS(AC$11:$AC99),3)/3,CEILING(ROWS(AC$11:$AC99),3)/3),NA())","v":30},null,10,-21,null,true,null,{"$f":"-IFERROR(IF(AP99,CEILING(ROWS(AJ$11:$AJ99),3)/3,IFERROR(INDEX($W$11:$W$60,ABS(AJ98)),1)),0)","v":-21},null,{"$error":"#N/A"},false,false,null,false]
[null,null,null,null,null,null,null,null,null,null,null,null,null,null,null,null,null,null,null,null,null,null,null,null,null,null,null,90,{"$f":"IFERROR(IF(AP100,CEILING(ROWS(AC$11:$AC100),3)/3,CEILING(ROWS(AC$11:$AC100),3)/3),NA())","v":{"$error":"#N/A"}},null,null,0,null,true,null,{"$f":"-IFERROR(IF(AP100,CEILING(ROWS(AJ$11:$AJ100),3)/3,IFERROR(INDEX($W$11:$W$60,ABS(AJ99)),1)),0)","v":0},null,{"$error":"#N/A"},false,false,null,""]
[null,null,null,null,null,null,null,null,null,null,null,null,null,null,null,null,null,null,null,null,null,null,null,null,null,null,null,91,{"$f":"IFERROR(IF(AP101,CEILING(ROWS(AC$11:$AC101),3)/3,CEILING(ROWS(AC$11:$AC101),3)/3),NA())","v":31},null,1,-31,null,true,null,{"$f":"-IFERROR(IF(AP101,CEILING(ROWS(AJ$11:$AJ101),3)/3,IFERROR(INDEX($W$11:$W$60,ABS(AJ100)),1)),0)","v":-31},null,{"$error":"#N/A"},false,false,null,true]
[null,null,null,null,null,null,null,null,null,null,null,null,null,null,null,null,null,null,null,null,null,null,null,null,null,null,null,92,{"$f":"IFERROR(IF(AP102,CEILING(ROWS(AC$11:$AC102),3)/3,CEILING(ROWS(AC$11:$AC102),3)/3),NA())","v":31},null,10,-33,null,true,null,{"$f":"-IFERROR(IF(AP102,CEILING(ROWS(AJ$11:$AJ102),3)/3,IFERROR(INDEX($W$11:$W$60,ABS(AJ101)),1)),0)","v":-33},null,{"$error":"#N/A"},false,false,null,false]
[null,null,null,null,null,null,null,null,null,null,null,null,null,null,null,null,null,null,null,null,null,null,null,null,null,null,null,93,{"$f":"IFERROR(IF(AP103,CEILING(ROWS(AC$11:$AC103),3)/3,CEILING(ROWS(AC$11:$AC103),3)/3),NA())","v":{"$error":"#N/A"}},null,null,0,null,true,null,{"$f":"-IFERROR(IF(AP103,CEILING(ROWS(AJ$11:$AJ103),3)/3,IFERROR(INDEX($W$11:$W$60,ABS(AJ102)),1)),0)","v":0},null,{"$error":"#N/A"},false,false,null,""]
[null,null,null,null,null,null,null,null,null,null,null,null,null,null,null,null,null,null,null,null,null,null,null,null,null,null,null,94,{"$f":"IFERROR(IF(AP104,CEILING(ROWS(AC$11:$AC104),3)/3,CEILING(ROWS(AC$11:$AC104),3)/3),NA())","v":32},null,1,-32,null,true,null,{"$f":"-IFERROR(IF(AP104,CEILING(ROWS(AJ$11:$AJ104),3)/3,IFERROR(INDEX($W$11:$W$60,ABS(AJ103)),1)),0)","v":-32},null,{"$error":"#N/A"},false,false,null,true]
[null,null,null,null,null,null,null,null,null,null,null,null,null,null,null,null,null,null,null,null,null,null,null,null,null,null,null,95,{"$f":"IFERROR(IF(AP105,CEILING(ROWS(AC$11:$AC105),3)/3,CEILING(ROWS(AC$11:$AC105),3)/3),NA())","v":32},null,10,-47,null,true,null,{"$f":"-IFERROR(IF(AP105,CEILING(ROWS(AJ$11:$AJ105),3)/3,IFERROR(INDEX($W$11:$W$60,ABS(AJ104)),1)),0)","v":-47},null,{"$error":"#N/A"},false,false,null,false]
[null,null,null,null,null,null,null,null,null,null,null,null,null,null,null,null,null,null,null,null,null,null,null,null,null,null,null,96,{"$f":"IFERROR(IF(AP106,CEILING(ROWS(AC$11:$AC106),3)/3,CEILING(ROWS(AC$11:$AC106),3)/3),NA())","v":{"$error":"#N/A"}},null,null,0,null,true,null,{"$f":"-IFERROR(IF(AP106,CEILING(ROWS(AJ$11:$AJ106),3)/3,IFERROR(INDEX($W$11:$W$60,ABS(AJ105)),1)),0)","v":0},null,{"$error":"#N/A"},false,false,null,""]
[null,null,null,null,null,null,null,null,null,null,null,null,null,null,null,null,null,null,null,null,null,null,null,null,null,null,null,97,{"$f":"IFERROR(IF(AP107,CEILING(ROWS(AC$11:$AC107),3)/3,CEILING(ROWS(AC$11:$AC107),3)/3),NA())","v":33},null,1,{"$f":"IF(AH107,AJ107,-1)","v":-33},null,{"$f":"NOT(AND(AP107<>\"\",ISERROR(INDEX($W$11:$W$60,AC107))))","v":true},null,{"$f":"-IFERROR(IF(AP107,CEILING(ROWS(AJ$11:$AJ107),3)/3,IFERROR(INDEX($W$11:$W$60,ABS(AJ106)),1)),0)","v":-33},null,{"$f":"IF(AN107,IF(AH107=FALSE,1,AF107),NA())","v":{"$error":"#N/A"}},false,false,null,{"$f":"IF(MOD(AB107,3)=0,\"\",IF(AP106=\"\",TRUE,FALSE))","v":true}]
[null,null,null,null,null,null,null,null,null,null,null,null,null,null,null,null,null,null,null,null,null,null,null,null,null,null,null,{"$f":"AB107+1","v":98},{"$f":"IFERROR(IF(AP108,CEILING(ROWS(AC$11:$AC108),3)/3,CEILING(ROWS(AC$11:$AC108),3)/3),NA())","v":33},null,10,-45,null,true,null,{"$f":"-IFERROR(IF(AP108,CEILING(ROWS(AJ$11:$AJ108),3)/3,IFERROR(INDEX($W$11:$W$60,ABS(AJ107)),1)),0)","v":-45},null,{"$error":"#N/A"},{"$f":"AND(-MATCH(Overall.country,$T$11:$T$60,0)=AJ108,AP108)","v":false},false,null,false]
[null,null,null,null,null,null,null,null,null,null,null,null,null,null,null,null,null,null,null,null,null,null,null,null,null,null,null,99,{"$f":"IFERROR(IF(AP109,CEILING(ROWS(AC$11:$AC109),3)/3,CEILING(ROWS(AC$11:$AC109),3)/3),NA())","v":{"$error":"#N/A"}},null,null,0,null,true,null,{"$f":"-IFERROR(IF(AP109,CEILING(ROWS(AJ$11:$AJ109),3)/3,IFERROR(INDEX($W$11:$W$60,ABS(AJ108)),1)),0)","v":0},null,{"$error":"#N/A"},false,false,null,""]
[null,null,null,null,null,null,null,null,null,null,null,null,null,null,null,null,null,null,null,null,null,null,null,null,null,null,null,100,{"$f":"IFERROR(IF(AP110,CEILING(ROWS(AC$11:$AC110),3)/3,CEILING(ROWS(AC$11:$AC110),3)/3),NA())","v":34},null,1,-34,null,true,null,{"$f":"-IFERROR(IF(AP110,CEILING(ROWS(AJ$11:$AJ110),3)/3,IFERROR(INDEX($W$11:$W$60,ABS(AJ109)),1)),0)","v":-34},null,{"$error":"#N/A"},false,false,null,true]
[null,null,null,null,null,null,null,null,null,null,null,null,null,null,null,null,null,null,null,null,null,null,null,null,null,null,null,101,{"$f":"IFERROR(IF(AP111,CEILING(ROWS(AC$11:$AC111),3)/3,CEILING(ROWS(AC$11:$AC111),3)/3),NA())","v":34},null,10,-23,null,true,null,{"$f":"-IFERROR(IF(AP111,CEILING(ROWS(AJ$11:$AJ111),3)/3,IFERROR(INDEX($W$11:$W$60,ABS(AJ110)),1)),0)","v":-23},null,{"$error":"#N/A"},false,false,null,false]
[null,null,null,null,null,null,null,null,null,null,null,null,null,null,null,null,null,null,null,null,null,null,null,null,null,null,null,102,{"$f":"IFERROR(IF(AP112,CEILING(ROWS(AC$11:$AC112),3)/3,CEILING(ROWS(AC$11:$AC112),3)/3),NA())","v":{"$error":"#N/A"}},null,null,0,null,true,null,{"$f":"-IFERROR(IF(AP112,CEILING(ROWS(AJ$11:$AJ112),3)/3,IFERROR(INDEX($W$11:$W$60,ABS(AJ111)),1)),0)","v":0},null,{"$error":"#N/A"},false,false,null,""]
[null,null,null,null,null,null,null,null,null,null,null,null,null,null,null,null,null,null,null,null,null,null,null,null,null,null,null,103,{"$f":"IFERROR(IF(AP113,CEILING(ROWS(AC$11:$AC113),3)/3,CEILING(ROWS(AC$11:$AC113),3)/3),NA())","v":35},null,1,-35,null,true,null,{"$f":"-IFERROR(IF(AP113,CEILING(ROWS(AJ$11:$AJ113),3)/3,IFERROR(INDEX($W$11:$W$60,ABS(AJ112)),1)),0)","v":-35},null,{"$error":"#N/A"},false,false,null,true]
[null,null,null,null,null,null,null,null,null,null,null,null,null,null,null,null,null,null,null,null,null,null,null,null,null,null,null,104,{"$f":"IFERROR(IF(AP114,CEILING(ROWS(AC$11:$AC114),3)/3,CEILING(ROWS(AC$11:$AC114),3)/3),NA())","v":35},null,10,-29,null,true,null,{"$f":"-IFERROR(IF(AP114,CEILING(ROWS(AJ$11:$AJ114),3)/3,IFERROR(INDEX($W$11:$W$60,ABS(AJ113)),1)),0)","v":-29},null,{"$error":"#N/A"},false,false,null,false]
[null,null,null,null,null,null,null,null,null,null,null,null,null,null,null,null,null,null,null,null,null,null,null,null,null,null,null,105,{"$f":"IFERROR(IF(AP115,CEILING(ROWS(AC$11:$AC115),3)/3,CEILING(ROWS(AC$11:$AC115),3)/3),NA())","v":{"$error":"#N/A"}},null,null,0,null,true,null,{"$f":"-IFERROR(IF(AP115,CEILING(ROWS(AJ$11:$AJ115),3)/3,IFERROR(INDEX($W$11:$W$60,ABS(AJ114)),1)),0)","v":0},null,{"$error":"#N/A"},false,false,null,""]
[null,null,null,null,null,null,null,null,null,null,null,null,null,null,null,null,null,null,null,null,null,null,null,null,null,null,null,106,{"$f":"IFERROR(IF(AP116,CEILING(ROWS(AC$11:$AC116),3)/3,CEILING(ROWS(AC$11:$AC116),3)/3),NA())","v":36},null,1,-36,null,true,null,{"$f":"-IFERROR(IF(AP116,CEILING(ROWS(AJ$11:$AJ116),3)/3,IFERROR(INDEX($W$11:$W$60,ABS(AJ115)),1)),0)","v":-36},null,{"$error":"#N/A"},false,false,null,true]
[null,null,null,null,null,null,null,null,null,null,null,null,null,null,null,null,null,null,null,null,null,null,null,null,null,null,null,107,{"$f":"IFERROR(IF(AP117,CEILING(ROWS(AC$11:$AC117),3)/3,CEILING(ROWS(AC$11:$AC117),3)/3),NA())","v":36},null,10,-32,null,true,null,{"$f":"-IFERROR(IF(AP117,CEILING(ROWS(AJ$11:$AJ117),3)/3,IFERROR(INDEX($W$11:$W$60,ABS(AJ116)),1)),0)","v":-32},null,{"$error":"#N/A"},false,false,null,false]
[null,null,null,null,null,null,null,null,null,null,null,null,null,null,null,null,null,null,null,null,null,null,null,null,null,null,null,108,{"$f":"IFERROR(IF(AP118,CEILING(ROWS(AC$11:$AC118),3)/3,CEILING(ROWS(AC$11:$AC118),3)/3),NA())","v":{"$error":"#N/A"}},null,null,0,null,true,null,{"$f":"-IFERROR(IF(AP118,CEILING(ROWS(AJ$11:$AJ118),3)/3,IFERROR(INDEX($W$11:$W$60,ABS(AJ117)),1)),0)","v":0},null,{"$error":"#N/A"},false,false,null,""]
[null,null,null,null,null,null,null,null,null,null,null,null,null,null,null,null,null,null,null,null,null,null,null,null,null,null,null,109,{"$f":"IFERROR(IF(AP119,CEILING(ROWS(AC$11:$AC119),3)/3,CEILING(ROWS(AC$11:$AC119),3)/3),NA())","v":37},null,1,-37,null,true,null,{"$f":"-IFERROR(IF(AP119,CEILING(ROWS(AJ$11:$AJ119),3)/3,IFERROR(INDEX($W$11:$W$60,ABS(AJ118)),1)),0)","v":-37},null,{"$error":"#N/A"},false,false,null,true]
[null,null,null,null,null,null,null,null,null,null,null,null,null,null,null,null,null,null,null,null,null,null,null,null,null,null,null,110,{"$f":"IFERROR(IF(AP120,CEILING(ROWS(AC$11:$AC120),3)/3,CEILING(ROWS(AC$11:$AC120),3)/3),NA())","v":37},null,10,-38,null,true,null,{"$f":"-IFERROR(IF(AP120,CEILING(ROWS(AJ$11:$AJ120),3)/3,IFERROR(INDEX($W$11:$W$60,ABS(AJ119)),1)),0)","v":-38},null,{"$error":"#N/A"},false,false,null,false]
[null,null,null,null,null,null,null,null,null,null,null,null,null,null,null,null,null,null,null,null,null,null,null,null,null,null,null,111,{"$f":"IFERROR(IF(AP121,CEILING(ROWS(AC$11:$AC121),3)/3,CEILING(ROWS(AC$11:$AC121),3)/3),NA())","v":{"$error":"#N/A"}},null,null,0,null,true,null,{"$f":"-IFERROR(IF(AP121,CEILING(ROWS(AJ$11:$AJ121),3)/3,IFERROR(INDEX($W$11:$W$60,ABS(AJ120)),1)),0)","v":0},null,{"$error":"#N/A"},false,false,null,""]
[null,null,null,null,null,null,null,null,null,null,null,null,null,null,null,null,null,null,null,null,null,null,null,null,null,null,null,112,{"$f":"IFERROR(IF(AP122,CEILING(ROWS(AC$11:$AC122),3)/3,CEILING(ROWS(AC$11:$AC122),3)/3),NA())","v":38},null,1,-38,null,true,null,{"$f":"-IFERROR(IF(AP122,CEILING(ROWS(AJ$11:$AJ122),3)/3,IFERROR(INDEX($W$11:$W$60,ABS(AJ121)),1)),0)","v":-38},null,{"$error":"#N/A"},false,false,null,true]
[null,null,null,null,null,null,null,null,null,null,null,null,null,null,null,null,null,null,null,null,null,null,null,null,null,null,null,113,{"$f":"IFERROR(IF(AP123,CEILING(ROWS(AC$11:$AC123),3)/3,CEILING(ROWS(AC$11:$AC123),3)/3),NA())","v":38},null,10,-49,null,true,null,{"$f":"-IFERROR(IF(AP123,CEILING(ROWS(AJ$11:$AJ123),3)/3,IFERROR(INDEX($W$11:$W$60,ABS(AJ122)),1)),0)","v":-49},null,{"$error":"#N/A"},false,false,null,false]
[null,null,null,null,null,null,null,null,null,null,null,null,null,null,null,null,null,null,null,null,null,null,null,null,null,null,null,114,{"$f":"IFERROR(IF(AP124,CEILING(ROWS(AC$11:$AC124),3)/3,CEILING(ROWS(AC$11:$AC124),3)/3),NA())","v":{"$error":"#N/A"}},null,null,0,null,true,null,{"$f":"-IFERROR(IF(AP124,CEILING(ROWS(AJ$11:$AJ124),3)/3,IFERROR(INDEX($W$11:$W$60,ABS(AJ123)),1)),0)","v":0},null,{"$error":"#N/A"},false,false,null,""]
[null,null,null,null,null,null,null,null,null,null,null,null,null,null,null,null,null,null,null,null,null,null,null,null,null,null,null,115,{"$f":"IFERROR(IF(AP125,CEILING(ROWS(AC$11:$AC125),3)/3,CEILING(ROWS(AC$11:$AC125),3)/3),NA())","v":39},null,1,-39,null,true,null,{"$f":"-IFERROR(IF(AP125,CEILING(ROWS(AJ$11:$AJ125),3)/3,IFERROR(INDEX($W$11:$W$60,ABS(AJ124)),1)),0)","v":-39},null,{"$error":"#N/A"},false,false,null,true]
[null,null,null,null,null,null,null,null,null,null,null,null,null,null,null,null,null,null,null,null,null,null,null,null,null,null,null,116,{"$f":"IFERROR(IF(AP126,CEILING(ROWS(AC$11:$AC126),3)/3,CEILING(ROWS(AC$11:$AC126),3)/3),NA())","v":39},null,10,-42,null,true,null,{"$f":"-IFERROR(IF(AP126,CEILING(ROWS(AJ$11:$AJ126),3)/3,IFERROR(INDEX($W$11:$W$60,ABS(AJ125)),1)),0)","v":-42},null,{"$error":"#N/A"},false,false,null,false]
[null,null,null,null,null,null,null,null,null,null,null,null,null,null,null,null,null,null,null,null,null,null,null,null,null,null,null,117,{"$f":"IFERROR(IF(AP127,CEILING(ROWS(AC$11:$AC127),3)/3,CEILING(ROWS(AC$11:$AC127),3)/3),NA())","v":{"$error":"#N/A"}},null,null,0,null,true,null,{"$f":"-IFERROR(IF(AP127,CEILING(ROWS(AJ$11:$AJ127),3)/3,IFERROR(INDEX($W$11:$W$60,ABS(AJ126)),1)),0)","v":0},null,{"$error":"#N/A"},false,false,null,""]
[null,null,null,null,null,null,null,null,null,null,null,null,null,null,null,null,null,null,null,null,null,null,null,null,null,null,null,118,{"$f":"IFERROR(IF(AP128,CEILING(ROWS(AC$11:$AC128),3)/3,CEILING(ROWS(AC$11:$AC128),3)/3),NA())","v":40},null,1,-1,null,false,null,{"$f":"-IFERROR(IF(AP128,CEILING(ROWS(AJ$11:$AJ128),3)/3,IFERROR(INDEX($W$11:$W$60,ABS(AJ127)),1)),0)","v":-40},null,{"$error":"#N/A"},false,false,null,true]
[null,null,null,null,null,null,null,null,null,null,null,null,null,null,null,null,null,null,null,null,null,null,null,null,null,null,null,119,{"$f":"IFERROR(IF(AP129,CEILING(ROWS(AC$11:$AC129),3)/3,CEILING(ROWS(AC$11:$AC129),3)/3),NA())","v":40},null,10,-1,null,false,null,{"$f":"-IFERROR(IF(AP129,CEILING(ROWS(AJ$11:$AJ129),3)/3,IFERROR(INDEX($W$11:$W$60,ABS(AJ128)),1)),0)","v":-1},null,{"$error":"#N/A"},false,false,null,false]
[null,null,null,null,null,null,null,null,null,null,null,null,null,null,null,null,null,null,null,null,null,null,null,null,null,null,null,120,{"$f":"IFERROR(IF(AP130,CEILING(ROWS(AC$11:$AC130),3)/3,CEILING(ROWS(AC$11:$AC130),3)/3),NA())","v":{"$error":"#N/A"}},null,null,0,null,true,null,{"$f":"-IFERROR(IF(AP130,CEILING(ROWS(AJ$11:$AJ130),3)/3,IFERROR(INDEX($W$11:$W$60,ABS(AJ129)),1)),0)","v":0},null,{"$error":"#N/A"},false,false,null,""]
[null,null,null,null,null,null,null,null,null,null,null,null,null,null,null,null,null,null,null,null,null,null,null,null,null,null,null,121,{"$f":"IFERROR(IF(AP131,CEILING(ROWS(AC$11:$AC131),3)/3,CEILING(ROWS(AC$11:$AC131),3)/3),NA())","v":41},null,1,-1,null,false,null,{"$f":"-IFERROR(IF(AP131,CEILING(ROWS(AJ$11:$AJ131),3)/3,IFERROR(INDEX($W$11:$W$60,ABS(AJ130)),1)),0)","v":-41},null,{"$error":"#N/A"},false,false,null,true]
[null,null,null,null,null,null,null,null,null,null,null,null,null,null,null,null,null,null,null,null,null,null,null,null,null,null,null,122,{"$f":"IFERROR(IF(AP132,CEILING(ROWS(AC$11:$AC132),3)/3,CEILING(ROWS(AC$11:$AC132),3)/3),NA())","v":41},null,10,-1,null,false,null,{"$f":"-IFERROR(IF(AP132,CEILING(ROWS(AJ$11:$AJ132),3)/3,IFERROR(INDEX($W$11:$W$60,ABS(AJ131)),1)),0)","v":-1},null,{"$error":"#N/A"},false,false,null,false]
[null,null,null,null,null,null,null,null,null,null,null,null,null,null,null,null,null,null,null,null,null,null,null,null,null,null,null,123,{"$f":"IFERROR(IF(AP133,CEILING(ROWS(AC$11:$AC133),3)/3,CEILING(ROWS(AC$11:$AC133),3)/3),NA())","v":{"$error":"#N/A"}},null,null,0,null,true,null,{"$f":"-IFERROR(IF(AP133,CEILING(ROWS(AJ$11:$AJ133),3)/3,IFERROR(INDEX($W$11:$W$60,ABS(AJ132)),1)),0)","v":0},null,{"$error":"#N/A"},false,false,null,""]
[null,null,null,null,null,null,null,null,null,null,null,null,null,null,null,null,null,null,null,null,null,null,null,null,null,null,null,124,{"$f":"IFERROR(IF(AP134,CEILING(ROWS(AC$11:$AC134),3)/3,CEILING(ROWS(AC$11:$AC134),3)/3),NA())","v":42},null,1,-42,null,true,null,{"$f":"-IFERROR(IF(AP134,CEILING(ROWS(AJ$11:$AJ134),3)/3,IFERROR(INDEX($W$11:$W$60,ABS(AJ133)),1)),0)","v":-42},null,{"$error":"#N/A"},false,false,null,true]
[null,null,null,null,null,null,null,null,null,null,null,null,null,null,null,null,null,null,null,null,null,null,null,null,null,null,null,125,{"$f":"IFERROR(IF(AP135,CEILING(ROWS(AC$11:$AC135),3)/3,CEILING(ROWS(AC$11:$AC135),3)/3),NA())","v":42},null,10,-31,null,true,null,{"$f":"-IFERROR(IF(AP135,CEILING(ROWS(AJ$11:$AJ135),3)/3,IFERROR(INDEX($W$11:$W$60,ABS(AJ134)),1)),0)","v":-31},null,{"$error":"#N/A"},false,false,null,false]
[null,null,null,null,null,null,null,null,null,null,null,null,null,null,null,null,null,null,null,null,null,null,null,null,null,null,null,126,{"$f":"IFERROR(IF(AP136,CEILING(ROWS(AC$11:$AC136),3)/3,CEILING(ROWS(AC$11:$AC136),3)/3),NA())","v":{"$error":"#N/A"}},null,null,0,null,true,null,{"$f":"-IFERROR(IF(AP136,CEILING(ROWS(AJ$11:$AJ136),3)/3,IFERROR(INDEX($W$11:$W$60,ABS(AJ135)),1)),0)","v":0},null,{"$error":"#N/A"},false,false,null,""]
[null,null,null,null,null,null,null,null,null,null,null,null,null,null,null,null,null,null,null,null,null,null,null,null,null,null,null,127,{"$f":"IFERROR(IF(AP137,CEILING(ROWS(AC$11:$AC137),3)/3,CEILING(ROWS(AC$11:$AC137),3)/3),NA())","v":43},null,1,-1,null,false,null,{"$f":"-IFERROR(IF(AP137,CEILING(ROWS(AJ$11:$AJ137),3)/3,IFERROR(INDEX($W$11:$W$60,ABS(AJ136)),1)),0)","v":-43},null,{"$error":"#N/A"},false,false,null,true]
[null,null,null,null,null,null,null,null,null,null,null,null,null,null,null,null,null,null,null,null,null,null,null,null,null,null,null,128,{"$f":"IFERROR(IF(AP138,CEILING(ROWS(AC$11:$AC138),3)/3,CEILING(ROWS(AC$11:$AC138),3)/3),NA())","v":43},null,10,-1,null,false,null,{"$f":"-IFERROR(IF(AP138,CEILING(ROWS(AJ$11:$AJ138),3)/3,IFERROR(INDEX($W$11:$W$60,ABS(AJ137)),1)),0)","v":-1},null,{"$error":"#N/A"},false,false,null,false]
[null,null,null,null,null,null,null,null,null,null,null,null,null,null,null,null,null,null,null,null,null,null,null,null,null,null,null,129,{"$f":"IFERROR(IF(AP139,CEILING(ROWS(AC$11:$AC139),3)/3,CEILING(ROWS(AC$11:$AC139),3)/3),NA())","v":{"$error":"#N/A"}},null,null,{"$f":"IF(AH139,AJ139,-1)","v":0},null,{"$f":"NOT(AND(AP139<>\"\",ISERROR(INDEX($W$11:$W$60,AC139))))","v":true},null,{"$f":"-IFERROR(IF(AP139,CEILING(ROWS(AJ$11:$AJ139),3)/3,IFERROR(INDEX($W$11:$W$60,ABS(AJ138)),1)),0)","v":0},null,{"$f":"IF(AN139,IF(AH139=FALSE,1,AF139),NA())","v":{"$error":"#N/A"}},false,false,null,{"$f":"IF(MOD(AB139,3)=0,\"\",IF(AP138=\"\",TRUE,FALSE))","v":""}]
[null,null,null,null,null,null,null,null,null,null,null,null,null,null,null,null,null,null,null,null,null,null,null,null,null,null,null,{"$f":"AB139+1","v":130},{"$f":"IFERROR(IF(AP140,CEILING(ROWS(AC$11:$AC140),3)/3,CEILING(ROWS(AC$11:$AC140),3)/3),NA())","v":44},null,1,-44,null,true,null,{"$f":"-IFERROR(IF(AP140,CEILING(ROWS(AJ$11:$AJ140),3)/3,IFERROR(INDEX($W$11:$W$60,ABS(AJ139)),1)),0)","v":-44},null,{"$error":"#N/A"},{"$f":"AND(-MATCH(Overall.country,$T$11:$T$60,0)=AJ140,AP140)","v":false},false,null,true]
[null,null,null,null,null,null,null,null,null,null,null,null,null,null,null,null,null,null,null,null,null,null,null,null,null,null,null,131,{"$f":"IFERROR(IF(AP141,CEILING(ROWS(AC$11:$AC141),3)/3,CEILING(ROWS(AC$11:$AC141),3)/3),NA())","v":44},null,10,-28,null,true,null,{"$f":"-IFERROR(IF(AP141,CEILING(ROWS(AJ$11:$AJ141),3)/3,IFERROR(INDEX($W$11:$W$60,ABS(AJ140)),1)),0)","v":-28},null,{"$error":"#N/A"},false,false,null,false]
[null,null,null,null,null,null,null,null,null,null,null,null,null,null,null,null,null,null,null,null,null,null,null,null,null,null,null,132,{"$f":"IFERROR(IF(AP142,CEILING(ROWS(AC$11:$AC142),3)/3,CEILING(ROWS(AC$11:$AC142),3)/3),NA())","v":{"$error":"#N/A"}},null,null,0,null,true,null,{"$f":"-IFERROR(IF(AP142,CEILING(ROWS(AJ$11:$AJ142),3)/3,IFERROR(INDEX($W$11:$W$60,ABS(AJ141)),1)),0)","v":0},null,{"$error":"#N/A"},false,false,null,""]
[null,null,null,null,null,null,null,null,null,null,null,null,null,null,null,null,null,null,null,null,null,null,null,null,null,null,null,133,{"$f":"IFERROR(IF(AP143,CEILING(ROWS(AC$11:$AC143),3)/3,CEILING(ROWS(AC$11:$AC143),3)/3),NA())","v":45},null,1,-45,null,true,null,{"$f":"-IFERROR(IF(AP143,CEILING(ROWS(AJ$11:$AJ143),3)/3,IFERROR(INDEX($W$11:$W$60,ABS(AJ142)),1)),0)","v":-45},null,{"$error":"#N/A"},false,false,null,true]
[null,null,null,null,null,null,null,null,null,null,null,null,null,null,null,null,null,null,null,null,null,null,null,null,null,null,null,134,{"$f":"IFERROR(IF(AP144,CEILING(ROWS(AC$11:$AC144),3)/3,CEILING(ROWS(AC$11:$AC144),3)/3),NA())","v":45},null,10,-48,null,true,null,{"$f":"-IFERROR(IF(AP144,CEILING(ROWS(AJ$11:$AJ144),3)/3,IFERROR(INDEX($W$11:$W$60,ABS(AJ143)),1)),0)","v":-48},null,{"$error":"#N/A"},false,false,null,false]
[null,null,null,null,null,null,null,null,null,null,null,null,null,null,null,null,null,null,null,null,null,null,null,null,null,null,null,135,{"$f":"IFERROR(IF(AP145,CEILING(ROWS(AC$11:$AC145),3)/3,CEILING(ROWS(AC$11:$AC145),3)/3),NA())","v":{"$error":"#N/A"}},null,null,0,null,true,null,{"$f":"-IFERROR(IF(AP145,CEILING(ROWS(AJ$11:$AJ145),3)/3,IFERROR(INDEX($W$11:$W$60,ABS(AJ144)),1)),0)","v":0},null,{"$error":"#N/A"},false,false,null,""]
[null,null,null,null,null,null,null,null,null,null,null,null,null,null,null,null,null,null,null,null,null,null,null,null,null,null,null,136,{"$f":"IFERROR(IF(AP146,CEILING(ROWS(AC$11:$AC146),3)/3,CEILING(ROWS(AC$11:$AC146),3)/3),NA())","v":46},null,1,-46,null,true,null,{"$f":"-IFERROR(IF(AP146,CEILING(ROWS(AJ$11:$AJ146),3)/3,IFERROR(INDEX($W$11:$W$60,ABS(AJ145)),1)),0)","v":-46},null,{"$error":"#N/A"},false,false,null,true]
[null,null,null,null,null,null,null,null,null,null,null,null,null,null,null,null,null,null,null,null,null,null,null,null,null,null,null,137,{"$f":"IFERROR(IF(AP147,CEILING(ROWS(AC$11:$AC147),3)/3,CEILING(ROWS(AC$11:$AC147),3)/3),NA())","v":46},null,10,-40,null,true,null,{"$f":"-IFERROR(IF(AP147,CEILING(ROWS(AJ$11:$AJ147),3)/3,IFERROR(INDEX($W$11:$W$60,ABS(AJ146)),1)),0)","v":-40},null,{"$error":"#N/A"},false,false,null,false]
[null,null,null,null,null,null,null,null,null,null,null,null,null,null,null,null,null,null,null,null,null,null,null,null,null,null,null,138,{"$f":"IFERROR(IF(AP148,CEILING(ROWS(AC$11:$AC148),3)/3,CEILING(ROWS(AC$11:$AC148),3)/3),NA())","v":{"$error":"#N/A"}},null,null,0,null,true,null,{"$f":"-IFERROR(IF(AP148,CEILING(ROWS(AJ$11:$AJ148),3)/3,IFERROR(INDEX($W$11:$W$60,ABS(AJ147)),1)),0)","v":0},null,{"$error":"#N/A"},false,false,null,""]
[null,null,null,null,null,null,null,null,null,null,null,null,null,null,null,null,null,null,null,null,null,null,null,null,null,null,null,139,{"$f":"IFERROR(IF(AP149,CEILING(ROWS(AC$11:$AC149),3)/3,CEILING(ROWS(AC$11:$AC149),3)/3),NA())","v":47},null,1,-47,null,true,null,{"$f":"-IFERROR(IF(AP149,CEILING(ROWS(AJ$11:$AJ149),3)/3,IFERROR(INDEX($W$11:$W$60,ABS(AJ148)),1)),0)","v":-47},null,{"$error":"#N/A"},false,false,null,true]
[null,null,null,null,null,null,null,null,null,null,null,null,null,null,null,null,null,null,null,null,null,null,null,null,null,null,null,140,{"$f":"IFERROR(IF(AP150,CEILING(ROWS(AC$11:$AC150),3)/3,CEILING(ROWS(AC$11:$AC150),3)/3),NA())","v":47},null,10,-44,null,true,null,{"$f":"-IFERROR(IF(AP150,CEILING(ROWS(AJ$11:$AJ150),3)/3,IFERROR(INDEX($W$11:$W$60,ABS(AJ149)),1)),0)","v":-44},null,{"$error":"#N/A"},false,false,null,false]
[null,null,null,null,null,null,null,null,null,null,null,null,null,null,null,null,null,null,null,null,null,null,null,null,null,null,null,141,{"$f":"IFERROR(IF(AP151,CEILING(ROWS(AC$11:$AC151),3)/3,CEILING(ROWS(AC$11:$AC151),3)/3),NA())","v":{"$error":"#N/A"}},null,null,0,null,true,null,{"$f":"-IFERROR(IF(AP151,CEILING(ROWS(AJ$11:$AJ151),3)/3,IFERROR(INDEX($W$11:$W$60,ABS(AJ150)),1)),0)","v":0},null,{"$error":"#N/A"},false,false,null,""]
[null,null,null,null,null,null,null,null,null,null,null,null,null,null,null,null,null,null,null,null,null,null,null,null,null,null,null,142,{"$f":"IFERROR(IF(AP152,CEILING(ROWS(AC$11:$AC152),3)/3,CEILING(ROWS(AC$11:$AC152),3)/3),NA())","v":48},null,1,-1,null,false,null,{"$f":"-IFERROR(IF(AP152,CEILING(ROWS(AJ$11:$AJ152),3)/3,IFERROR(INDEX($W$11:$W$60,ABS(AJ151)),1)),0)","v":-48},null,{"$error":"#N/A"},false,false,null,true]
[null,null,null,null,null,null,null,null,null,null,null,null,null,null,null,null,null,null,null,null,null,null,null,null,null,null,null,143,{"$f":"IFERROR(IF(AP153,CEILING(ROWS(AC$11:$AC153),3)/3,CEILING(ROWS(AC$11:$AC153),3)/3),NA())","v":48},null,10,-1,null,false,null,{"$f":"-IFERROR(IF(AP153,CEILING(ROWS(AJ$11:$AJ153),3)/3,IFERROR(INDEX($W$11:$W$60,ABS(AJ152)),1)),0)","v":-1},null,{"$error":"#N/A"},false,{"$f":"OR(AM153,AM152)","v":false},null,false]
[null,null,null,null,null,null,null,null,null,null,null,null,null,null,null,null,null,null,null,null,null,null,null,null,null,null,null,144,{"$f":"IFERROR(IF(AP154,CEILING(ROWS(AC$11:$AC154),3)/3,CEILING(ROWS(AC$11:$AC154),3)/3),NA())","v":{"$error":"#N/A"}},null,null,0,null,true,null,{"$f":"-IFERROR(IF(AP154,CEILING(ROWS(AJ$11:$AJ154),3)/3,IFERROR(INDEX($W$11:$W$60,ABS(AJ153)),1)),0)","v":0},null,{"$error":"#N/A"},false,false,null,""]
[null,null,null,null,null,null,null,null,null,null,null,null,null,null,null,null,null,null,null,null,null,null,null,null,null,null,null,145,{"$f":"IFERROR(IF(AP155,CEILING(ROWS(AC$11:$AC155),3)/3,CEILING(ROWS(AC$11:$AC155),3)/3),NA())","v":49},null,1,-49,null,true,null,{"$f":"-IFERROR(IF(AP155,CEILING(ROWS(AJ$11:$AJ155),3)/3,IFERROR(INDEX($W$11:$W$60,ABS(AJ154)),1)),0)","v":-49},null,{"$error":"#N/A"},false,false,null,true]
[null,null,null,null,null,null,null,null,null,null,null,null,null,null,null,null,null,null,null,null,null,null,null,null,null,null,null,146,{"$f":"IFERROR(IF(AP156,CEILING(ROWS(AC$11:$AC156),3)/3,CEILING(ROWS(AC$11:$AC156),3)/3),NA())","v":49},null,10,-41,null,true,null,{"$f":"-IFERROR(IF(AP156,CEILING(ROWS(AJ$11:$AJ156),3)/3,IFERROR(INDEX($W$11:$W$60,ABS(AJ155)),1)),0)","v":-41},null,{"$error":"#N/A"},false,false,null,false]
[null,null,null,null,null,null,null,null,null,null,null,null,null,null,null,null,null,null,null,null,null,null,null,null,null,null,null,147,{"$f":"IFERROR(IF(AP157,CEILING(ROWS(AC$11:$AC157),3)/3,CEILING(ROWS(AC$11:$AC157),3)/3),NA())","v":{"$error":"#N/A"}},null,null,0,null,true,null,{"$f":"-IFERROR(IF(AP157,CEILING(ROWS(AJ$11:$AJ157),3)/3,IFERROR(INDEX($W$11:$W$60,ABS(AJ156)),1)),0)","v":0},null,{"$error":"#N/A"},false,false,null,""]
[null,null,null,null,null,null,null,null,null,null,null,null,null,null,null,null,null,null,null,null,null,null,null,null,null,null,null,148,{"$f":"IFERROR(IF(AP158,CEILING(ROWS(AC$11:$AC158),3)/3,CEILING(ROWS(AC$11:$AC158),3)/3),NA())","v":50},null,1,-50,null,true,null,{"$f":"-IFERROR(IF(AP158,CEILING(ROWS(AJ$11:$AJ158),3)/3,IFERROR(INDEX($W$11:$W$60,ABS(AJ157)),1)),0)","v":-50},null,{"$error":"#N/A"},false,false,null,true]
[null,null,null,null,null,null,null,null,null,null,null,null,null,null,null,null,null,null,null,null,null,null,null,null,null,null,null,149,{"$f":"IFERROR(IF(AP159,CEILING(ROWS(AC$11:$AC159),3)/3,CEILING(ROWS(AC$11:$AC159),3)/3),NA())","v":50},null,10,-46,null,true,null,{"$f":"-IFERROR(IF(AP159,CEILING(ROWS(AJ$11:$AJ159),3)/3,IFERROR(INDEX($W$11:$W$60,ABS(AJ158)),1)),0)","v":-46},null,{"$error":"#N/A"},false,false,null,false]
[null,null,null,null,null,null,null,null,null,null,null,null,null,null,null,null,null,null,null,null,null,null,null,null,null,null,null,150,{"$f":"IFERROR(IF(AP160,CEILING(ROWS(AC$11:$AC160),3)/3,CEILING(ROWS(AC$11:$AC160),3)/3),NA())","v":{"$error":"#N/A"}},null,null,0,null,true,null,{"$f":"-IFERROR(IF(AP160,CEILING(ROWS(AJ$11:$AJ160),3)/3,IFERROR(INDEX($W$11:$W$60,ABS(AJ159)),1)),0)","v":0},null,{"$error":"#N/A"},false,false,null,""]

{"sheet":"Sheet1","index":2,"n_rows":24,"n_cols":16,"rows_kept":24,"cut":false,"hidden":false,"merged":[]}
[]
[]
[null,null,null,null,null,null,null,null,null,null,null,null,null,null,null,{"$f":"HYPERLINK(\"http://www.goodly.co.in/rio-olympics-visualization-in-excel\",\"www.goodly.co.in\")","v":"www.goodly.co.in"}]
[]
[]
[]
[]
[]
[]
[]
[]
[]
[]
[]
[]
[]
[]
[]
[]
[]
[]
[]
[]
[null,null,"* for top 50 countries only"]

{"sheet":"TOP 50 Ranking Shift","index":3,"n_rows":55,"n_cols":14,"rows_kept":55,"cut":false,"hidden":false,"merged":[]}
[]
[]
[null,"RIO OLYMPICS 2016",null,null,null,null,null,null,"LONDON OLYMPICS 2012"]
[]
[null,"Rank","Country",{"$f":"Comparison.medal&\" Medals\"","v":"Overall Medals"},null,null,null,null,"Rank","Country",{"$f":"Comparison.medal&\" Medals\"","v":"Overall Medals"}]
[null,1,{"$f":"Rio!T11","v":"United States"},{"$f":"Rio!U11","v":121},null,null,null,null,1,{"$f":"Rio!X11","v":"United States"},{"$f":"Rio!Y11","v":103}]
[null,{"$f":"B6+1","v":2},{"$f":"Rio!T12","v":"China"},{"$f":"Rio!U12","v":70},null,null,null,null,{"$f":"I6+1","v":2},{"$f":"Rio!X12","v":"China"},{"$f":"Rio!Y12","v":88}]
[null,{"$f":"B7+1","v":3},{"$f":"Rio!T13","v":"Great Britain"},{"$f":"Rio!U13","v":67},"Silver","Bronze","Overall",null,{"$f":"I7+1","v":3},{"$f":"Rio!X13","v":"Russia"},{"$f":"Rio!Y13","v":77},"Silver","Bronze","Overall"]
[null,4,{"$f":"Rio!T14","v":"Russia"},{"$f":"Rio!U14","v":56},null,null,null,null,4,{"$f":"Rio!X14","v":"Great Britain"},{"$f":"Rio!Y14","v":65}]
[null,5,{"$f":"Rio!T15","v":"France"},{"$f":"Rio!U15","v":42},null,null,null,null,5,{"$f":"Rio!X15","v":"Germany"},{"$f":"Rio!Y15","v":44}]
[null,6,{"$f":"Rio!T16","v":"Germany"},{"$f":"Rio!U16","v":42},null,null,null,null,6,{"$f":"Rio!X16","v":"Japan"},{"$f":"Rio!Y16","v":38}]
[null,7,{"$f":"Rio!T17","v":"Japan"},{"$f":"Rio!U17","v":41},null,null,null,null,7,{"$f":"Rio!X17","v":"Australia"},{"$f":"Rio!Y17","v":35}]
[null,8,{"$f":"Rio!T18","v":"Australia"},{"$f":"Rio!U18","v":29},null,null,null,null,8,{"$f":"Rio!X18","v":"France"},{"$f":"Rio!Y18","v":34}]
[null,9,{"$f":"Rio!T19","v":"Italy"},{"$f":"Rio!U19","v":28},null,null,null,null,9,{"$f":"Rio!X19","v":"Italy"},{"$f":"Rio!Y19","v":28}]
[null,10,{"$f":"Rio!T20","v":"Canada"},{"$f":"Rio!U20","v":22},null,null,null,null,10,{"$f":"Rio!X20","v":"South Korea"},{"$f":"Rio!Y20","v":28}]
[null,11,{"$f":"Rio!T21","v":"Republic of Korea"},{"$f":"Rio!U21","v":21},null,null,null,null,11,{"$f":"Rio!X21","v":"Netherlands"},{"$f":"Rio!Y21","v":20}]
[null,12,{"$f":"Rio!T22","v":"Brazil"},{"$f":"Rio!U22","v":19},null,null,null,null,12,{"$f":"Rio!X22","v":"Canada"},{"$f":"Rio!Y22","v":18}]
[null,13,{"$f":"Rio!T23","v":"Netherlands"},{"$f":"Rio!U23","v":19},null,null,null,null,13,{"$f":"Rio!X23","v":"Ukraine"},{"$f":"Rio!Y23","v":18}]
[null,14,{"$f":"Rio!T24","v":"Azerbaijan"},{"$f":"Rio!U24","v":18},null,null,null,null,14,{"$f":"Rio!X24","v":"Hungary"},{"$f":"Rio!Y24","v":18}]
[null,15,{"$f":"Rio!T25","v":"New Zealand"},{"$f":"Rio!U25","v":18},null,null,null,null,15,{"$f":"Rio!X25","v":"Brazil"},{"$f":"Rio!Y25","v":17}]
[null,16,{"$f":"Rio!T26","v":"Kazakhstan"},{"$f":"Rio!U26","v":17},null,null,null,null,16,{"$f":"Rio!X26","v":"Spain"},{"$f":"Rio!Y26","v":17}]
[null,17,{"$f":"Rio!T27","v":"Spain"},{"$f":"Rio!U27","v":17},null,null,null,null,17,{"$f":"Rio!X27","v":"Cuba"},{"$f":"Rio!Y27","v":15}]
[null,18,{"$f":"Rio!T28","v":"Denmark"},{"$f":"Rio!U28","v":15},null,null,null,null,18,{"$f":"Rio!X28","v":"New Zealand"},{"$f":"Rio!Y28","v":13}]
[null,19,{"$f":"Rio!T29","v":"Hungary"},{"$f":"Rio!U29","v":15},null,null,null,null,19,{"$f":"Rio!X29","v":"Kazakhstan"},{"$f":"Rio!Y29","v":13}]
[null,20,{"$f":"Rio!T30","v":"Uzbekistan"},{"$f":"Rio!U30","v":13},null,null,null,null,20,{"$f":"Rio!X30","v":"Kenya"},{"$f":"Rio!Y30","v":12}]
[null,21,{"$f":"Rio!T31","v":"Kenya"},{"$f":"Rio!U31","v":13},null,null,null,null,21,{"$f":"Rio!X31","v":"Belarus"},{"$f":"Rio!Y31","v":12}]
[null,22,{"$f":"Rio!T32","v":"Poland"},{"$f":"Rio!U32","v":11},null,null,null,null,22,{"$f":"Rio!X32","v":"Jamaica"},{"$f":"Rio!Y32","v":12}]
[null,23,{"$f":"Rio!T33","v":"Ukraine"},{"$f":"Rio!U33","v":11},null,null,null,null,23,{"$f":"Rio!X33","v":"Iran"},{"$f":"Rio!Y33","v":12}]
[null,24,{"$f":"Rio!T34","v":"Sweden"},{"$f":"Rio!U34","v":11},null,null,null,null,24,{"$f":"Rio!X34","v":"Poland"},{"$f":"Rio!Y34","v":10}]
[null,25,{"$f":"Rio!T35","v":"Cuba"},{"$f":"Rio!U35","v":11},null,null,null,null,25,{"$f":"Rio!X35","v":"Azerbaijan"},{"$f":"Rio!Y35","v":10}]
[null,26,{"$f":"Rio!T36","v":"Jamaica"},{"$f":"Rio!U36","v":11},null,null,null,null,26,{"$f":"Rio!X36","v":"Czech Republic"},{"$f":"Rio!Y36","v":10}]
[null,27,{"$f":"Rio!T37","v":"Czech Republic"},{"$f":"Rio!U37","v":10},null,null,null,null,27,{"$f":"Rio!X37","v":"Denmark"},{"$f":"Rio!Y37","v":9}]
[null,28,{"$f":"Rio!T38","v":"South Africa"},{"$f":"Rio!U38","v":10},null,null,null,null,28,{"$f":"Rio!X38","v":"Romania"},{"$f":"Rio!Y38","v":9}]
[null,29,{"$f":"Rio!T39","v":"Croatia"},{"$f":"Rio!U39","v":10},null,null,null,null,29,{"$f":"Rio!X39","v":"Colombia"},{"$f":"Rio!Y39","v":8}]
[null,30,{"$f":"Rio!T40","v":"Belarus"},{"$f":"Rio!U40","v":9},null,null,null,null,30,{"$f":"Rio!X40","v":"Sweden"},{"$f":"Rio!Y40","v":8}]
[null,31,{"$f":"Rio!T41","v":"Ethiopia"},{"$f":"Rio!U41","v":8},null,null,null,null,31,{"$f":"Rio!X41","v":"Mexico"},{"$f":"Rio!Y41","v":7}]
[null,32,{"$f":"Rio!T42","v":"Turkey"},{"$f":"Rio!U42","v":8},null,null,null,null,32,{"$f":"Rio!X42","v":"Georgia"},{"$f":"Rio!Y42","v":7}]
[null,33,{"$f":"Rio!T43","v":"Serbia"},{"$f":"Rio!U43","v":8},null,null,null,null,33,{"$f":"Rio!X43","v":"Ethiopia"},{"$f":"Rio!Y43","v":7}]
[null,34,{"$f":"Rio!T44","v":"Iran"},{"$f":"Rio!U44","v":8},null,null,null,null,34,{"$f":"Rio!X44","v":"India"},{"$f":"Rio!Y44","v":6}]
[null,35,{"$f":"Rio!T45","v":"Colombia"},{"$f":"Rio!U45","v":8},null,null,null,null,35,{"$f":"Rio!X45","v":"Ireland"},{"$f":"Rio!Y45","v":6}]
[null,36,{"$f":"Rio!T46","v":"Georgia"},{"$f":"Rio!U46","v":7},null,null,null,null,36,{"$f":"Rio!X46","v":"Croatia"},{"$f":"Rio!Y46","v":6}]
[null,37,{"$f":"Rio!T47","v":"North Korea"},{"$f":"Rio!U47","v":7},null,null,null,null,37,{"$f":"Rio!X47","v":"South Africa"},{"$f":"Rio!Y47","v":6}]
[null,38,{"$f":"Rio!T48","v":"Switzerland"},{"$f":"Rio!U48","v":7},null,null,null,null,38,{"$f":"Rio!X48","v":"North Korea"},{"$f":"Rio!Y48","v":6}]
[null,39,{"$f":"Rio!T49","v":"Thailand"},{"$f":"Rio!U49","v":6},null,null,null,null,39,{"$f":"Rio!X49","v":"Mongolia"},{"$f":"Rio!Y49","v":5}]
[null,40,{"$f":"Rio!T50","v":"Belgium"},{"$f":"Rio!U50","v":6},null,null,null,null,40,{"$f":"Rio!X50","v":"Lithuania"},{"$f":"Rio!Y50","v":5}]
[null,41,{"$f":"Rio!T51","v":"Greece"},{"$f":"Rio!U51","v":6},null,null,null,null,41,{"$f":"Rio!X51","v":"Slovakia"},{"$f":"Rio!Y51","v":4}]
[null,42,{"$f":"Rio!T52","v":"Mexico"},{"$f":"Rio!U52","v":5},null,null,null,null,42,{"$f":"Rio!X52","v":"Thailand"},{"$f":"Rio!Y52","v":4}]
[null,43,{"$f":"Rio!T53","v":"Malaysia"},{"$f":"Rio!U53","v":5},null,null,null,null,43,{"$f":"Rio!X53","v":"Trinidad and Tobago"},{"$f":"Rio!Y53","v":4}]
[null,44,{"$f":"Rio!T54","v":"Romania"},{"$f":"Rio!U54","v":5},null,null,null,null,44,{"$f":"Rio!X54","v":"Slovenia"},{"$f":"Rio!Y54","v":4}]
[null,45,{"$f":"Rio!T55","v":"Norway"},{"$f":"Rio!U55","v":4},null,null,null,null,45,{"$f":"Rio!X55","v":"Serbia"},{"$f":"Rio!Y55","v":4}]
[null,46,{"$f":"Rio!T56","v":"Lithuania"},{"$f":"Rio!U56","v":4},null,null,null,null,46,{"$f":"Rio!X56","v":"Argentina"},{"$f":"Rio!Y56","v":4}]
[null,47,{"$f":"Rio!T57","v":"Slovenia"},{"$f":"Rio!U57","v":4},null,null,null,null,47,{"$f":"Rio!X57","v":"Turkey"},{"$f":"Rio!Y57","v":4}]
[null,48,{"$f":"Rio!T58","v":"Armenia"},{"$f":"Rio!U58","v":4},null,null,null,null,48,{"$f":"Rio!X58","v":"Norway"},{"$f":"Rio!Y58","v":4}]
[null,49,{"$f":"Rio!T59","v":"Slovakia"},{"$f":"Rio!U59","v":4},null,null,null,null,49,{"$f":"Rio!X59","v":"Switzerland"},{"$f":"Rio!Y59","v":4}]
[null,50,{"$f":"Rio!T60","v":"Argentina"},{"$f":"Rio!U60","v":4},null,null,null,null,50,{"$f":"Rio!X60","v":"Finland"},{"$f":"Rio!Y60","v":3}]

{"sheet":"OVERALL","index":4,"n_rows":27,"n_cols":14,"rows_kept":27,"cut":false,"hidden":false,"merged":[]}
[]
[]
[null,"RIO OLYMPICS 2016",null,null,null,null,null,null,"LONDON OLYMPICS 2012"]
[]
[]
[]
[null,null,null,{"$f":"IF(Rio.medal=D9,\"Sorted by\",\"\")","v":""},{"$f":"IF(Rio.medal=E9,\"Sorted by\",\"\")","v":""},{"$f":"IF(Rio.medal=F9,\"Sorted by\",\"\")","v":""},{"$f":"IF(Rio.medal=G9,\"Sorted by\",\"\")","v":"Sorted by"},null,null,null,{"$f":"IF(London.medal=K9,\"Sorted by\",\"\")","v":""},{"$f":"IF(London.medal=L9,\"Sorted by\",\"\")","v":""},{"$f":"IF(London.medal=M9,\"Sorted by\",\"\")","v":""},{"$f":"IF(London.medal=N9,\"Sorted by\",\"\")","v":"Sorted by"}]
[]
[null,"Rank","Country","Gold","Silver","Bronze","Overall",null,"Rank","Country","Gold","Silver","Bronze","Overall"]
[null,{"$f":"RANK(VLOOKUP(C10,Rio!$I$11:$M$98,2,),Rio!$J$11:$J$98)","v":1},{"$f":"INDEX(Rio!$I$11:$I$98,ROWS($C$10:C10)+Rio.scroll)","v":"United States"},{"$f":"VLOOKUP($C10,Rio!$I$11:$M$98,MATCH(K$9,Rio!$I$10:$M$10,0),)","v":46},{"$f":"VLOOKUP($C10,Rio!$I$11:$M$98,MATCH(L$9,Rio!$I$10:$M$10,0),)","v":37},{"$f":"VLOOKUP($C10,Rio!$I$11:$M$98,MATCH(M$9,Rio!$I$10:$M$10,0),)","v":38},{"$f":"VLOOKUP($C10,Rio!$I$11:$M$98,MATCH(N$9,Rio!$I$10:$M$10,0),)","v":121},null,{"$f":"RANK(VLOOKUP(OVERALL!J10,London!$I$10:$M$94,2,),London!$J$10:$J$94)","v":1},{"$f":"INDEX(London!$I$10:$I$94,ROWS($J$10:J10)+london.scroll)","v":"United States"},{"$f":"VLOOKUP($J10,London!$I$10:$M$94,MATCH(D$9,London!$I$9:$M$9,0),)","v":46},{"$f":"VLOOKUP($J10,London!$I$10:$M$94,MATCH(E$9,London!$I$9:$M$9,0),)","v":28},{"$f":"VLOOKUP($J10,London!$I$10:$M$94,MATCH(F$9,London!$I$9:$M$9,0),)","v":29},{"$f":"VLOOKUP($J10,London!$I$10:$M$94,MATCH(G$9,London!$I$9:$M$9,0),)","v":103}]
[null,{"$f":"RANK(VLOOKUP(C11,Rio!$I$11:$M$98,2,),Rio!$J$11:$J$98)","v":2},{"$f":"INDEX(Rio!$I$11:$I$98,ROWS($C$10:C11)+Rio.scroll)","v":"China"},{"$f":"VLOOKUP($C11,Rio!$I$11:$M$98,MATCH(K$9,Rio!$I$10:$M$10,0),)","v":26},{"$f":"VLOOKUP($C11,Rio!$I$11:$M$98,MATCH(L$9,Rio!$I$10:$M$10,0),)","v":18},{"$f":"VLOOKUP($C11,Rio!$I$11:$M$98,MATCH(M$9,Rio!$I$10:$M$10,0),)","v":26},{"$f":"VLOOKUP($C11,Rio!$I$11:$M$98,MATCH(N$9,Rio!$I$10:$M$10,0),)","v":70},null,{"$f":"RANK(VLOOKUP(OVERALL!J11,London!$I$10:$M$94,2,),London!$J$10:$J$94)","v":2},{"$f":"INDEX(London!$I$10:$I$94,ROWS($J$10:J11)+london.scroll)","v":"China"},{"$f":"VLOOKUP($J11,London!$I$10:$M$94,MATCH(D$9,London!$I$9:$M$9,0),)","v":38},{"$f":"VLOOKUP($J11,London!$I$10:$M$94,MATCH(E$9,London!$I$9:$M$9,0),)","v":29},{"$f":"VLOOKUP($J11,London!$I$10:$M$94,MATCH(F$9,London!$I$9:$M$9,0),)","v":21},{"$f":"VLOOKUP($J11,London!$I$10:$M$94,MATCH(G$9,London!$I$9:$M$9,0),)","v":88}]
[null,{"$f":"RANK(VLOOKUP(C12,Rio!$I$11:$M$98,2,),Rio!$J$11:$J$98)","v":3},{"$f":"INDEX(Rio!$I$11:$I$98,ROWS($C$10:C12)+Rio.scroll)","v":"Great Britain"},{"$f":"VLOOKUP($C12,Rio!$I$11:$M$98,MATCH(K$9,Rio!$I$10:$M$10,0),)","v":27},{"$f":"VLOOKUP($C12,Rio!$I$11:$M$98,MATCH(L$9,Rio!$I$10:$M$10,0),)","v":23},{"$f":"VLOOKUP($C12,Rio!$I$11:$M$98,MATCH(M$9,Rio!$I$10:$M$10,0),)","v":17},{"$f":"VLOOKUP($C12,Rio!$I$11:$M$98,MATCH(N$9,Rio!$I$10:$M$10,0),)","v":67},null,{"$f":"RANK(VLOOKUP(OVERALL!J12,London!$I$10:$M$94,2,),London!$J$10:$J$94)","v":3},{"$f":"INDEX(London!$I$10:$I$94,ROWS($J$10:J12)+london.scroll)","v":"Russia"},{"$f":"VLOOKUP($J12,London!$I$10:$M$94,MATCH(D$9,London!$I$9:$M$9,0),)","v":22},{"$f":"VLOOKUP($J12,London!$I$10:$M$94,MATCH(E$9,London!$I$9:$M$9,0),)","v":23},{"$f":"VLOOKUP($J12,London!$I$10:$M$94,MATCH(F$9,London!$I$9:$M$9,0),)","v":32},{"$f":"VLOOKUP($J12,London!$I$10:$M$94,MATCH(G$9,London!$I$9:$M$9,0),)","v":77}]
[null,{"$f":"RANK(VLOOKUP(C13,Rio!$I$11:$M$98,2,),Rio!$J$11:$J$98)","v":4},{"$f":"INDEX(Rio!$I$11:$I$98,ROWS($C$10:C13)+Rio.scroll)","v":"Russia"},{"$f":"VLOOKUP($C13,Rio!$I$11:$M$98,MATCH(K$9,Rio!$I$10:$M$10,0),)","v":19},{"$f":"VLOOKUP($C13,Rio!$I$11:$M$98,MATCH(L$9,Rio!$I$10:$M$10,0),)","v":18},{"$f":"VLOOKUP($C13,Rio!$I$11:$M$98,MATCH(M$9,Rio!$I$10:$M$10,0),)","v":19},{"$f":"VLOOKUP($C13,Rio!$I$11:$M$98,MATCH(N$9,Rio!$I$10:$M$10,0),)","v":56},null,{"$f":"RANK(VLOOKUP(OVERALL!J13,London!$I$10:$M$94,2,),London!$J$10:$J$94)","v":4},{"$f":"INDEX(London!$I$10:$I$94,ROWS($J$10:J13)+london.scroll)","v":"Great Britain"},{"$f":"VLOOKUP($J13,London!$I$10:$M$94,MATCH(D$9,London!$I$9:$M$9,0),)","v":29},{"$f":"VLOOKUP($J13,London!$I$10:$M$94,MATCH(E$9,London!$I$9:$M$9,0),)","v":17},{"$f":"VLOOKUP($J13,London!$I$10:$M$94,MATCH(F$9,London!$I$9:$M$9,0),)","v":19},{"$f":"VLOOKUP($J13,London!$I$10:$M$94,MATCH(G$9,London!$I$9:$M$9,0),)","v":65}]
[null,{"$f":"RANK(VLOOKUP(C14,Rio!$I$11:$M$98,2,),Rio!$J$11:$J$98)","v":5},{"$f":"INDEX(Rio!$I$11:$I$98,ROWS($C$10:C14)+Rio.scroll)","v":"France"},{"$f":"VLOOKUP($C14,Rio!$I$11:$M$98,MATCH(K$9,Rio!$I$10:$M$10,0),)","v":10},{"$f":"VLOOKUP($C14,Rio!$I$11:$M$98,MATCH(L$9,Rio!$I$10:$M$10,0),)","v":18},{"$f":"VLOOKUP($C14,Rio!$I$11:$M$98,MATCH(M$9,Rio!$I$10:$M$10,0),)","v":14},{"$f":"VLOOKUP($C14,Rio!$I$11:$M$98,MATCH(N$9,Rio!$I$10:$M$10,0),)","v":42},null,{"$f":"RANK(VLOOKUP(OVERALL!J14,London!$I$10:$M$94,2,),London!$J$10:$J$94)","v":5},{"$f":"INDEX(London!$I$10:$I$94,ROWS($J$10:J14)+london.scroll)","v":"Germany"},{"$f":"VLOOKUP($J14,London!$I$10:$M$94,MATCH(D$9,London!$I$9:$M$9,0),)","v":11},{"$f":"VLOOKUP($J14,London!$I$10:$M$94,MATCH(E$9,London!$I$9:$M$9,0),)","v":19},{"$f":"VLOOKUP($J14,London!$I$10:$M$94,MATCH(F$9,London!$I$9:$M$9,0),)","v":14},{"$f":"VLOOKUP($J14,London!$I$10:$M$94,MATCH(G$9,London!$I$9:$M$9,0),)","v":44}]
[null,{"$f":"RANK(VLOOKUP(C15,Rio!$I$11:$M$98,2,),Rio!$J$11:$J$98)","v":5},{"$f":"INDEX(Rio!$I$11:$I$98,ROWS($C$10:C15)+Rio.scroll)","v":"Germany"},{"$f":"VLOOKUP($C15,Rio!$I$11:$M$98,MATCH(K$9,Rio!$I$10:$M$10,0),)","v":17},{"$f":"VLOOKUP($C15,Rio!$I$11:$M$98,MATCH(L$9,Rio!$I$10:$M$10,0),)","v":10},{"$f":"VLOOKUP($C15,Rio!$I$11:$M$98,MATCH(M$9,Rio!$I$10:$M$10,0),)","v":15},{"$f":"VLOOKUP($C15,Rio!$I$11:$M$98,MATCH(N$9,Rio!$I$10:$M$10,0),)","v":42},null,{"$f":"RANK(VLOOKUP(OVERALL!J15,London!$I$10:$M$94,2,),London!$J$10:$J$94)","v":6},{"$f":"INDEX(London!$I$10:$I$94,ROWS($J$10:J15)+london.scroll)","v":"Japan"},{"$f":"VLOOKUP($J15,London!$I$10:$M$94,MATCH(D$9,London!$I$9:$M$9,0),)","v":7},{"$f":"VLOOKUP($J15,London!$I$10:$M$94,MATCH(E$9,London!$I$9:$M$9,0),)","v":14},{"$f":"VLOOKUP($J15,London!$I$10:$M$94,MATCH(F$9,London!$I$9:$M$9,0),)","v":17},{"$f":"VLOOKUP($J15,London!$I$10:$M$94,MATCH(G$9,London!$I$9:$M$9,0),)","v":38}]
[null,{"$f":"RANK(VLOOKUP(C16,Rio!$I$11:$M$98,2,),Rio!$J$11:$J$98)","v":7},{"$f":"INDEX(Rio!$I$11:$I$98,ROWS($C$10:C16)+Rio.scroll)","v":"Japan"},{"$f":"VLOOKUP($C16,Rio!$I$11:$M$98,MATCH(K$9,Rio!$I$10:$M$10,0),)","v":12},{"$f":"VLOOKUP($C16,Rio!$I$11:$M$98,MATCH(L$9,Rio!$I$10:$M$10,0),)","v":8},{"$f":"VLOOKUP($C16,Rio!$I$11:$M$98,MATCH(M$9,Rio!$I$10:$M$10,0),)","v":21},{"$f":"VLOOKUP($C16,Rio!$I$11:$M$98,MATCH(N$9,Rio!$I$10:$M$10,0),)","v":41},null,{"$f":"RANK(VLOOKUP(OVERALL!J16,London!$I$10:$M$94,2,),London!$J$10:$J$94)","v":7},{"$f":"INDEX(London!$I$10:$I$94,ROWS($J$10:J16)+london.scroll)","v":"Australia"},{"$f":"VLOOKUP($J16,London!$I$10:$M$94,MATCH(D$9,London!$I$9:$M$9,0),)","v":8},{"$f":"VLOOKUP($J16,London!$I$10:$M$94,MATCH(E$9,London!$I$9:$M$9,0),)","v":15},{"$f":"VLOOKUP($J16,London!$I$10:$M$94,MATCH(F$9,London!$I$9:$M$9,0),)","v":12},{"$f":"VLOOKUP($J16,London!$I$10:$M$94,MATCH(G$9,London!$I$9:$M$9,0),)","v":35}]
[null,{"$f":"RANK(VLOOKUP(C17,Rio!$I$11:$M$98,2,),Rio!$J$11:$J$98)","v":8},{"$f":"INDEX(Rio!$I$11:$I$98,ROWS($C$10:C17)+Rio.scroll)","v":"Australia"},{"$f":"VLOOKUP($C17,Rio!$I$11:$M$98,MATCH(K$9,Rio!$I$10:$M$10,0),)","v":8},{"$f":"VLOOKUP($C17,Rio!$I$11:$M$98,MATCH(L$9,Rio!$I$10:$M$10,0),)","v":11},{"$f":"VLOOKUP($C17,Rio!$I$11:$M$98,MATCH(M$9,Rio!$I$10:$M$10,0),)","v":10},{"$f":"VLOOKUP($C17,Rio!$I$11:$M$98,MATCH(N$9,Rio!$I$10:$M$10,0),)","v":29},null,{"$f":"RANK(VLOOKUP(OVERALL!J17,London!$I$10:$M$94,2,),London!$J$10:$J$94)","v":8},{"$f":"INDEX(London!$I$10:$I$94,ROWS($J$10:J17)+london.scroll)","v":"France"},{"$f":"VLOOKUP($J17,London!$I$10:$M$94,MATCH(D$9,London!$I$9:$M$9,0),)","v":11},{"$f":"VLOOKUP($J17,London!$I$10:$M$94,MATCH(E$9,London!$I$9:$M$9,0),)","v":11},{"$f":"VLOOKUP($J17,London!$I$10:$M$94,MATCH(F$9,London!$I$9:$M$9,0),)","v":12},{"$f":"VLOOKUP($J17,London!$I$10:$M$94,MATCH(G$9,London!$I$9:$M$9,0),)","v":34}]
[null,{"$f":"RANK(VLOOKUP(C18,Rio!$I$11:$M$98,2,),Rio!$J$11:$J$98)","v":9},{"$f":"INDEX(Rio!$I$11:$I$98,ROWS($C$10:C18)+Rio.scroll)","v":"Italy"},{"$f":"VLOOKUP($C18,Rio!$I$11:$M$98,MATCH(K$9,Rio!$I$10:$M$10,0),)","v":8},{"$f":"VLOOKUP($C18,Rio!$I$11:$M$98,MATCH(L$9,Rio!$I$10:$M$10,0),)","v":12},{"$f":"VLOOKUP($C18,Rio!$I$11:$M$98,MATCH(M$9,Rio!$I$10:$M$10,0),)","v":8},{"$f":"VLOOKUP($C18,Rio!$I$11:$M$98,MATCH(N$9,Rio!$I$10:$M$10,0),)","v":28},null,{"$f":"RANK(VLOOKUP(OVERALL!J18,London!$I$10:$M$94,2,),London!$J$10:$J$94)","v":9},{"$f":"INDEX(London!$I$10:$I$94,ROWS($J$10:J18)+london.scroll)","v":"Italy"},{"$f":"VLOOKUP($J18,London!$I$10:$M$94,MATCH(D$9,London!$I$9:$M$9,0),)","v":8},{"$f":"VLOOKUP($J18,London!$I$10:$M$94,MATCH(E$9,London!$I$9:$M$9,0),)","v":9},{"$f":"VLOOKUP($J18,London!$I$10:$M$94,MATCH(F$9,London!$I$9:$M$9,0),)","v":11},{"$f":"VLOOKUP($J18,London!$I$10:$M$94,MATCH(G$9,London!$I$9:$M$9,0),)","v":28}]
[null,{"$f":"RANK(VLOOKUP(C19,Rio!$I$11:$M$98,2,),Rio!$J$11:$J$98)","v":10},{"$f":"INDEX(Rio!$I$11:$I$98,ROWS($C$10:C19)+Rio.scroll)","v":"Canada"},{"$f":"VLOOKUP($C19,Rio!$I$11:$M$98,MATCH(K$9,Rio!$I$10:$M$10,0),)","v":4},{"$f":"VLOOKUP($C19,Rio!$I$11:$M$98,MATCH(L$9,Rio!$I$10:$M$10,0),)","v":3},{"$f":"VLOOKUP($C19,Rio!$I$11:$M$98,MATCH(M$9,Rio!$I$10:$M$10,0),)","v":15},{"$f":"VLOOKUP($C19,Rio!$I$11:$M$98,MATCH(N$9,Rio!$I$10:$M$10,0),)","v":22},null,{"$f":"RANK(VLOOKUP(OVERALL!J19,London!$I$10:$M$94,2,),London!$J$10:$J$94)","v":9},{"$f":"INDEX(London!$I$10:$I$94,ROWS($J$10:J19)+london.scroll)","v":"South Korea"},{"$f":"VLOOKUP($J19,London!$I$10:$M$94,MATCH(D$9,London!$I$9:$M$9,0),)","v":13},{"$f":"VLOOKUP($J19,London!$I$10:$M$94,MATCH(E$9,London!$I$9:$M$9,0),)","v":8},{"$f":"VLOOKUP($J19,London!$I$10:$M$94,MATCH(F$9,London!$I$9:$M$9,0),)","v":7},{"$f":"VLOOKUP($J19,London!$I$10:$M$94,MATCH(G$9,London!$I$9:$M$9,0),)","v":28}]
[null,{"$f":"RANK(VLOOKUP(C20,Rio!$I$11:$M$98,2,),Rio!$J$11:$J$98)","v":11},{"$f":"INDEX(Rio!$I$11:$I$98,ROWS($C$10:C20)+Rio.scroll)","v":"Republic of Korea"},{"$f":"VLOOKUP($C20,Rio!$I$11:$M$98,MATCH(K$9,Rio!$I$10:$M$10,0),)","v":9},{"$f":"VLOOKUP($C20,Rio!$I$11:$M$98,MATCH(L$9,Rio!$I$10:$M$10,0),)","v":3},{"$f":"VLOOKUP($C20,Rio!$I$11:$M$98,MATCH(M$9,Rio!$I$10:$M$10,0),)","v":9},{"$f":"VLOOKUP($C20,Rio!$I$11:$M$98,MATCH(N$9,Rio!$I$10:$M$10,0),)","v":21},null,{"$f":"RANK(VLOOKUP(OVERALL!J20,London!$I$10:$M$94,2,),London!$J$10:$J$94)","v":11},{"$f":"INDEX(London!$I$10:$I$94,ROWS($J$10:J20)+london.scroll)","v":"Netherlands"},{"$f":"VLOOKUP($J20,London!$I$10:$M$94,MATCH(D$9,London!$I$9:$M$9,0),)","v":6},{"$f":"VLOOKUP($J20,London!$I$10:$M$94,MATCH(E$9,London!$I$9:$M$9,0),)","v":6},{"$f":"VLOOKUP($J20,London!$I$10:$M$94,MATCH(F$9,London!$I$9:$M$9,0),)","v":8},{"$f":"VLOOKUP($J20,London!$I$10:$M$94,MATCH(G$9,London!$I$9:$M$9,0),)","v":20}]
[null,{"$f":"RANK(VLOOKUP(C21,Rio!$I$11:$M$98,2,),Rio!$J$11:$J$98)","v":12},{"$f":"INDEX(Rio!$I$11:$I$98,ROWS($C$10:C21)+Rio.scroll)","v":"Brazil"},{"$f":"VLOOKUP($C21,Rio!$I$11:$M$98,MATCH(K$9,Rio!$I$10:$M$10,0),)","v":7},{"$f":"VLOOKUP($C21,Rio!$I$11:$M$98,MATCH(L$9,Rio!$I$10:$M$10,0),)","v":6},{"$f":"VLOOKUP($C21,Rio!$I$11:$M$98,MATCH(M$9,Rio!$I$10:$M$10,0),)","v":6},{"$f":"VLOOKUP($C21,Rio!$I$11:$M$98,MATCH(N$9,Rio!$I$10:$M$10,0),)","v":19},null,{"$f":"RANK(VLOOKUP(OVERALL!J21,London!$I$10:$M$94,2,),London!$J$10:$J$94)","v":12},{"$f":"INDEX(London!$I$10:$I$94,ROWS($J$10:J21)+london.scroll)","v":"Canada"},{"$f":"VLOOKUP($J21,London!$I$10:$M$94,MATCH(D$9,London!$I$9:$M$9,0),)","v":1},{"$f":"VLOOKUP($J21,London!$I$10:$M$94,MATCH(E$9,London!$I$9:$M$9,0),)","v":5},{"$f":"VLOOKUP($J21,London!$I$10:$M$94,MATCH(F$9,London!$I$9:$M$9,0),)","v":12},{"$f":"VLOOKUP($J21,London!$I$10:$M$94,MATCH(G$9,London!$I$9:$M$9,0),)","v":18}]
[null,{"$f":"RANK(VLOOKUP(C22,Rio!$I$11:$M$98,2,),Rio!$J$11:$J$98)","v":12},{"$f":"INDEX(Rio!$I$11:$I$98,ROWS($C$10:C22)+Rio.scroll)","v":"Netherlands"},{"$f":"VLOOKUP($C22,Rio!$I$11:$M$98,MATCH(K$9,Rio!$I$10:$M$10,0),)","v":8},{"$f":"VLOOKUP($C22,Rio!$I$11:$M$98,MATCH(L$9,Rio!$I$10:$M$10,0),)","v":7},{"$f":"VLOOKUP($C22,Rio!$I$11:$M$98,MATCH(M$9,Rio!$I$10:$M$10,0),)","v":4},{"$f":"VLOOKUP($C22,Rio!$I$11:$M$98,MATCH(N$9,Rio!$I$10:$M$10,0),)","v":19},null,{"$f":"RANK(VLOOKUP(OVERALL!J22,London!$I$10:$M$94,2,),London!$J$10:$J$94)","v":12},{"$f":"INDEX(London!$I$10:$I$94,ROWS($J$10:J22)+london.scroll)","v":"Ukraine"},{"$f":"VLOOKUP($J22,London!$I$10:$M$94,MATCH(D$9,London!$I$9:$M$9,0),)","v":6},{"$f":"VLOOKUP($J22,London!$I$10:$M$94,MATCH(E$9,London!$I$9:$M$9,0),)","v":4},{"$f":"VLOOKUP($J22,London!$I$10:$M$94,MATCH(F$9,London!$I$9:$M$9,0),)","v":8},{"$f":"VLOOKUP($J22,London!$I$10:$M$94,MATCH(G$9,London!$I$9:$M$9,0),)","v":18}]
[null,{"$f":"RANK(VLOOKUP(C23,Rio!$I$11:$M$98,2,),Rio!$J$11:$J$98)","v":14},{"$f":"INDEX(Rio!$I$11:$I$98,ROWS($C$10:C23)+Rio.scroll)","v":"Azerbaijan"},{"$f":"VLOOKUP($C23,Rio!$I$11:$M$98,MATCH(K$9,Rio!$I$10:$M$10,0),)","v":1},{"$f":"VLOOKUP($C23,Rio!$I$11:$M$98,MATCH(L$9,Rio!$I$10:$M$10,0),)","v":7},{"$f":"VLOOKUP($C23,Rio!$I$11:$M$98,MATCH(M$9,Rio!$I$10:$M$10,0),)","v":10},{"$f":"VLOOKUP($C23,Rio!$I$11:$M$98,MATCH(N$9,Rio!$I$10:$M$10,0),)","v":18},null,{"$f":"RANK(VLOOKUP(OVERALL!J23,London!$I$10:$M$94,2,),London!$J$10:$J$94)","v":12},{"$f":"INDEX(London!$I$10:$I$94,ROWS($J$10:J23)+london.scroll)","v":"Hungary"},{"$f":"VLOOKUP($J23,London!$I$10:$M$94,MATCH(D$9,London!$I$9:$M$9,0),)","v":8},{"$f":"VLOOKUP($J23,London!$I$10:$M$94,MATCH(E$9,London!$I$9:$M$9,0),)","v":4},{"$f":"VLOOKUP($J23,London!$I$10:$M$94,MATCH(F$9,London!$I$9:$M$9,0),)","v":6},{"$f":"VLOOKUP($J23,London!$I$10:$M$94,MATCH(G$9,London!$I$9:$M$9,0),)","v":18}]
[null,{"$f":"RANK(VLOOKUP(C24,Rio!$I$11:$M$98,2,),Rio!$J$11:$J$98)","v":14},{"$f":"INDEX(Rio!$I$11:$I$98,ROWS($C$10:C24)+Rio.scroll)","v":"New Zealand"},{"$f":"VLOOKUP($C24,Rio!$I$11:$M$98,MATCH(K$9,Rio!$I$10:$M$10,0),)","v":4},{"$f":"VLOOKUP($C24,Rio!$I$11:$M$98,MATCH(L$9,Rio!$I$10:$M$10,0),)","v":9},{"$f":"VLOOKUP($C24,Rio!$I$11:$M$98,MATCH(M$9,Rio!$I$10:$M$10,0),)","v":5},{"$f":"VLOOKUP($C24,Rio!$I$11:$M$98,MATCH(N$9,Rio!$I$10:$M$10,0),)","v":18},null,{"$f":"RANK(VLOOKUP(OVERALL!J24,London!$I$10:$M$94,2,),London!$J$10:$J$94)","v":15},{"$f":"INDEX(London!$I$10:$I$94,ROWS($J$10:J24)+london.scroll)","v":"Brazil"},{"$f":"VLOOKUP($J24,London!$I$10:$M$94,MATCH(D$9,London!$I$9:$M$9,0),)","v":3},{"$f":"VLOOKUP($J24,London!$I$10:$M$94,MATCH(E$9,London!$I$9:$M$9,0),)","v":5},{"$f":"VLOOKUP($J24,London!$I$10:$M$94,MATCH(F$9,London!$I$9:$M$9,0),)","v":9},{"$f":"VLOOKUP($J24,London!$I$10:$M$94,MATCH(G$9,London!$I$9:$M$9,0),)","v":17}]
[null,{"$f":"RANK(VLOOKUP(C25,Rio!$I$11:$M$98,2,),Rio!$J$11:$J$98)","v":16},{"$f":"INDEX(Rio!$I$11:$I$98,ROWS($C$10:C25)+Rio.scroll)","v":"Kazakhstan"},{"$f":"VLOOKUP($C25,Rio!$I$11:$M$98,MATCH(K$9,Rio!$I$10:$M$10,0),)","v":3},{"$f":"VLOOKUP($C25,Rio!$I$11:$M$98,MATCH(L$9,Rio!$I$10:$M$10,0),)","v":5},{"$f":"VLOOKUP($C25,Rio!$I$11:$M$98,MATCH(M$9,Rio!$I$10:$M$10,0),)","v":9},{"$f":"VLOOKUP($C25,Rio!$I$11:$M$98,MATCH(N$9,Rio!$I$10:$M$10,0),)","v":17},null,{"$f":"RANK(VLOOKUP(OVERALL!J25,London!$I$10:$M$94,2,),London!$J$10:$J$94)","v":15},{"$f":"INDEX(London!$I$10:$I$94,ROWS($J$10:J25)+london.scroll)","v":"Spain"},{"$f":"VLOOKUP($J25,London!$I$10:$M$94,MATCH(D$9,London!$I$9:$M$9,0),)","v":3},{"$f":"VLOOKUP($J25,London!$I$10:$M$94,MATCH(E$9,London!$I$9:$M$9,0),)","v":10},{"$f":"VLOOKUP($J25,London!$I$10:$M$94,MATCH(F$9,London!$I$9:$M$9,0),)","v":4},{"$f":"VLOOKUP($J25,London!$I$10:$M$94,MATCH(G$9,London!$I$9:$M$9,0),)","v":17}]
[null,{"$f":"RANK(VLOOKUP(C26,Rio!$I$11:$M$98,2,),Rio!$J$11:$J$98)","v":16},{"$f":"INDEX(Rio!$I$11:$I$98,ROWS($C$10:C26)+Rio.scroll)","v":"Spain"},{"$f":"VLOOKUP($C26,Rio!$I$11:$M$98,MATCH(K$9,Rio!$I$10:$M$10,0),)","v":7},{"$f":"VLOOKUP($C26,Rio!$I$11:$M$98,MATCH(L$9,Rio!$I$10:$M$10,0),)","v":4},{"$f":"VLOOKUP($C26,Rio!$I$11:$M$98,MATCH(M$9,Rio!$I$10:$M$10,0),)","v":6},{"$f":"VLOOKUP($C26,Rio!$I$11:$M$98,MATCH(N$9,Rio!$I$10:$M$10,0),)","v":17},null,{"$f":"RANK(VLOOKUP(OVERALL!J26,London!$I$10:$M$94,2,),London!$J$10:$J$94)","v":17},{"$f":"INDEX(London!$I$10:$I$94,ROWS($J$10:J26)+london.scroll)","v":"Cuba"},{"$f":"VLOOKUP($J26,London!$I$10:$M$94,MATCH(D$9,London!$I$9:$M$9,0),)","v":5},{"$f":"VLOOKUP($J26,London!$I$10:$M$94,MATCH(E$9,London!$I$9:$M$9,0),)","v":3},{"$f":"VLOOKUP($J26,London!$I$10:$M$94,MATCH(F$9,London!$I$9:$M$9,0),)","v":7},{"$f":"VLOOKUP($J26,London!$I$10:$M$94,MATCH(G$9,London!$I$9:$M$9,0),)","v":15}]
[null,{"$f":"RANK(VLOOKUP(C27,Rio!$I$11:$M$98,2,),Rio!$J$11:$J$98)","v":18},{"$f":"INDEX(Rio!$I$11:$I$98,ROWS($C$10:C27)+Rio.scroll)","v":"Denmark"},{"$f":"VLOOKUP($C27,Rio!$I$11:$M$98,MATCH(K$9,Rio!$I$10:$M$10,0),)","v":2},{"$f":"VLOOKUP($C27,Rio!$I$11:$M$98,MATCH(L$9,Rio!$I$10:$M$10,0),)","v":6},{"$f":"VLOOKUP($C27,Rio!$I$11:$M$98,MATCH(M$9,Rio!$I$10:$M$10,0),)","v":7},{"$f":"VLOOKUP($C27,Rio!$I$11:$M$98,MATCH(N$9,Rio!$I$10:$M$10,0),)","v":15},null,{"$f":"RANK(VLOOKUP(OVERALL!J27,London!$I$10:$M$94,2,),London!$J$10:$J$94)","v":18},{"$f":"INDEX(London!$I$10:$I$94,ROWS($J$10:J27)+london.scroll)","v":"New Zealand"},{"$f":"VLOOKUP($J27,London!$I$10:$M$94,MATCH(D$9,London!$I$9:$M$9,0),)","v":6},{"$f":"VLOOKUP($J27,London!$I$10:$M$94,MATCH(E$9,London!$I$9:$M$9,0),)","v":2},{"$f":"VLOOKUP($J27,London!$I$10:$M$94,MATCH(F$9,London!$I$9:$M$9,0),)","v":5},{"$f":"VLOOKUP($J27,London!$I$10:$M$94,MATCH(G$9,London!$I$9:$M$9,0),)","v":13}]